Workbook

Sheet Page 73
A1: COMPUTING THE VALUE OF EQUITY, E, FOR EL PASO PIPELINE PARTNERS (EPB)
A2: Shares outstanding | B2: 205.7 | C2: <-- Million
A3: Share price, 29 June 2012 | B3: 33.8
A4: Equity value ("market cap") | B4: =B3*B2 -> 6952.66 | C4: =getformula(B4)&", million $" -> <-- =B3*B2, million $

Sheet Page 74
A1: KROGER, COMPUTING NET DEBT (thousand $)
B2: 2011 | C2: 2010
A3: Cash | B3: 825000 | C3: 188000
A4: Marketable securities | B4: 0 | C4: 0
A6: Short-term and current portion of long-term debt | B6: 588000 | C6: 1315000
A7: Long-term debt | B7: 7304000 | C7: 6850000
A9: Net debt | B9: =SUM(B6:B7)-SUM(B3:B4) -> 7067000 | C9: =SUM(C6:C7)-SUM(C3:C4) -> 7977000 | D9: =getformula(C9) -> <-- =SUM(C6:C7)-SUM(C3:C4)

Sheet Page 75
A1: INTEL HAS NEGATIVE NET DEBT (million $)
B2: 2010 | C2: 2011
A3: Cash | B3: 5498 | C3: 5065
A4: Marketable securities | B4: 16387 | C4: 9772
A6: Short-term debt and current portion of long-term debt | B6: 38 | C6: 247
A7: Long-term debt | B7: 2077 | C7: 7084
A8: Net debt | B8: =SUM(B6:B7)-SUM(B3:B4) -> -19770 | C8: =SUM(C6:C7)-SUM(C3:C4) -> -7506 | D8: =getformula(C8) -> <-- =SUM(C6:C7)-SUM(C3:C4)
A10: WHOLE FOODS HAS NEGATIVE NET DEBT (thousand $)
B11: 2010 | C11: 2011
A12: Cash | B12: 218798 | C12: 303960
A13: Marketable securities | B13: 329738 | C13: 442320
A15: Short-term debt and current portion of long-term debt | B15: 410 | C15: 466
A16: Long-term debt | B16: 508288 | C16: 17439
A17: Net debt | B17: =SUM(B15:B16)-SUM(B12:B13) -> -39838 | C17: =SUM(C15:C16)-SUM(C12:C13) -> -728375 | D17: =getformula(C17) -> <-- =SUM(C15:C16)-SUM(C12:C13)

Sheet Page 75, bottom
A1: WHOLE FOODS MARKET TAX RATE
B2: 2009 | C2: 2010 | D2: 2011
A3: Income before tax | B3: 250942 | C3: 411781 | D3: 551712
A4: Income tax expense | B4: 104138 | C4: 165948 | D4: 209100
A5: Tax rate, TC | B5: =B4/B3 -> 0.414988324 | C5: =C4/C3 -> 0.4030006241 | D5: =D4/D3 -> 0.379002088 | E5: =getformula(D5) -> <-- =D4/D3

Sheet Page 76
A1: MERCK TAX RATE
B2: 2009 | C2: 2010 | D2: 2011
A3: Income before taxes | B3: 15290000 | C3: 1653000 | D3: 7334000
A4: Income tax expense | B4: 2268000 | C4: 671000 | D4: 942000
A5: Tax rate, TC | B5: 0.1483322433 | C5: 0.4059286146 | D5: 0.1284428688 | E5: <-- =J4/J3

Sheet Page 78
A1: UNITED STATES STEEL, COST OF DEBT
B2: 2009 | C2: 2010 | D2: 2011
A3: Cash | B3: 1218000 | C3: 578000 | D3: 408000
A4: Short-term investments | B4: 0 | C4: 0 | D4: 0
A6: Short-term debt and current portion of long-term debt | B6: 19000 | C6: 216000 | D6: 400000
A7: Long-term debt | B7: 3828000 | C7: 3517000 | D7: 3345000
A9: Net debt | B9: =SUM(B6:B7)-SUM(B3:B4) -> 2629000 | C9: =SUM(C6:C7)-SUM(C3:C4) -> 3155000 | D9: =SUM(D6:D7)-SUM(D3:D4) -> 3337000 | E9: =getformula(D9) -> <-- =SUM(D6:D7)-SUM(D3:D4)
A10: Interest | B10: 190000 | C10: 195000 | D10: 159000
A11: Implied cost of debt, rD | C11: =C10/AVERAGE(B9:C9) -> 0.06742738589 | D11: =D10/AVERAGE(C9:D9) -> 0.04898336414 | E11: =getformula(D11) -> <-- =D10/AVERAGE(C9:D9)

Sheet Page 79
A1: MERCK, COST OF DEBT rD
B2: 2009 | C2: 2010 | D2: 2011
A3: Cash | B3: 9311000 | C3: 10900000 | D3: 13531000
A4: Short-term investments | B4: 293000 | C4: 1301000 | D4: 1441000
A5: Total liquid assets | B5: =B4+B3 -> 9604000 | C5: =C4+C3 -> 12201000 | D5: =D4+D3 -> 14972000 | E5: =getformula(D5) -> <-- =D4+D3
A7: Short-term debt and current portion of long-term debt | B7: 1379000 | C7: 2400000 | D7: 1990000
A8: Long-term debt | B8: 16095000 | C8: 15482000 | D8: 15525000
A9: Total financial debt | B9: =B7+B8 -> 17474000 | C9: =C7+C8 -> 17882000 | D9: =D7+D8 -> 17515000 | E9: =getformula(D9) -> <-- =D7+D8
A11: Net debt | B11: =B9-B5 -> 7870000 | C11: =C9-C5 -> 5681000 | D11: 2543000 | E11: =getformula(D11) -> <-- =D9-D5
A12: Interest income | B12: 210000 | C12: 83000 | D12: 199000
A13: Interest expense | B13: 460000 | C13: 715000 | D13: 749000
A14: Net interest | B14: =B13-B12 -> 250000 | C14: =C13-C12 -> 632000 | D14: =D13-D12 -> 550000 | E14: =getformula(D14) -> <-- =D13-D12
A15: Implied cost of debt, rD | C15: =C14/AVERAGE(B11:C11) -> 0.09327724891 | D15: =D14/AVERAGE(C11:D11) -> 0.1337548638 | E15: =getformula(D15) -> <-- =D14/AVERAGE(C11:D11)
A17: Interest rate earned | C17: =C12/AVERAGE(SUM(C3:C4),SUM(B3:B4)) -> 0.007612932814 | D17: =D12/AVERAGE(SUM(D3:D4),SUM(C3:C4)) -> 0.01464689214 | E17: =getformula(D17) -> <-- =D12/AVERAGE(SUM(D3:D4),SUM(C3:C4))
A18: Interest rate paid | C18: =C13/AVERAGE(SUM(C7:C8),SUM(B7:B8)) -> 0.04044575178 | D18: =D13/AVERAGE(SUM(D7:D8),SUM(C7:C8)) -> 0.04231997062 | E18: =getformula(D18) -> <-- =D13/AVERAGE(SUM(D7:D8),SUM(C7:C8))

Sheet Page 80
A1: FITCH-RATED A BONDS, Friday 17 August 2012
B2: Price | C2: Coupon | D2: Maturity | E2: Time to maturity | F2: Yield to maturity
A3: CITIGROUP INC | B3: 103.88 | C3: 0.05625 | D3: 2012-08-27 | E3: =(D3-DATE(2012,8,17))/365 -> 0.02739726027 | F3: 0.00364
A4: LINCOLN NATL CORP IND | B4: 105.42 | C4: 0.0565 | D4: 2012-08-27 | E4: =(D4-DATE(2012,8,17))/365 -> 0.02739726027 | F4: -0.01615
A5: GOLDMAN SACHS GROUP INC | B5: 104.68 | C5: 0.057 | D5: 2012-09-01 | E5: 0.04109589041 | F5: -0.00519
A6: WELLS FARGO & CO NEW | B6: 104.85 | C6: 0.05125 | D6: 2012-09-01 | E6: 0.04109589041 | F6: -0.01284
A7: BANK OF AMERICA CORPORATION | B7: 102.91 | C7: 0.05375 | D7: 2012-09-11 | E7: 0.06849315068 | F7: 0.01597
A8: BANK OF AMERICA CORPORATION | B8: 102.81 | C8: 0.04875 | D8: 2012-09-15 | E8: 0.07945205479 | F8: 0.01286
A9: CARGILL INC | B9: 105.81 | C9: 0.056 | D9: 2012-09-15 | E9: 0.07945205479 | F9: -0.01679
A10: HSBC FIN CORP HSBC FIN | B10: 105 | C10: 0.054 | D10: 2012-09-15 | E10: 0.07945205479 | F10: -0.00899
A11: HSBC FIN CORP HSBC FIN | B11: 103.12 | C11: 0.0385 | D11: 2012-09-15 | E11: 0.07945205479 | F11: -0.00106
A12: PRUDENTIAL FINL INC MTNS BOOK | B12: 103.97 | C12: 0.03625 | D12: 2012-09-17 | E12: 0.08493150685 | F12: -0.01331
A13: CONOCOPHILLIPS | B13: 105.7 | C13: 0.0475 | D13: 2012-10-15 | E13: 0.1616438356 | F13: -0.01712
A14: COVIDIEN INTL FIN S A | B14: 106.07 | C14: 0.0545 | D14: 2012-10-15 | E14: 0.1616438356 | F14: -0.01441
A15: HSBC FIN CORP HSBC FIN | B15: 102.81 | C15: 0.036 | D15: 2012-10-15 | E15: 0.1616438356 | F15: 0.0037
A16: NSTAR ELEC CO | B16: 105.36 | C16: 0.04875 | D16: 2012-10-15 | E16: 0.1616438356 | F16: -0.01218
A17: CITIGROUP INC | B17: 104.23 | C17: 0.053 | D17: 2012-10-17 | E17: 0.1671232877 | F17: 0.00469
A18: CATERPILLAR FINL CORP PWRNTSBE | B18: 107.18 | C18: 0.065 | D18: 2012-11-15 | E18: 0.2465753425 | F18: -0.00963
A19: DU PONT E I DE NEMOURS & CO | B19: 105.69 | C19: 0.0475 | D19: 2012-11-15 | E19: 0.2465753425 | F19: -0.01155
A20: GEORGIA PWR CO | B20: 106.16 | C20: 0.05125 | D20: 2012-11-15 | E20: 0.2465753425 | F20: -0.01257
A21: UNITEDHEALTH GROUP INC | B21: 106.5 | C21: 0.055 | D21: 2012-11-15 | E21: 0.2465753425 | F21: -0.01243
A22: DUKE POWER CO LLC | B22: 106.56 | C22: 0.05625 | D22: 2012-11-30 | E22: 0.2876712329 | F22: -0.00907
A23: BHP FIN USA LTD | B23: 109.7 | C23: 0.085 | D23: 2012-12-01 | E23: 0.2904109589 | F23: -0.01121
A24: TD AMERITRADE HLDG CORP | B24: 103.78 | C24: 0.0295 | D24: 2012-12-01 | E24: 0.2904109589 | F24: -0.00807
A25: KELLOGG CO | B25: 107.01 | C25: 0.05125 | D25: 2012-12-03 | E25: 0.295890411 | F25: -0.01755
A26: PACCAR FINL CORP SR MTNS BK EN | B26: 102.84 | C26: 0.0195 | D26: 2012-12-17 | E26: 0.3342465753 | F26: -0.00757
A27: JPMORGAN CHASE & CO | B27: 106.54 | C27: 0.0575 | D27: 2013-01-02 | E27: 0.3780821918 | F27: -0.00259
A28: PRUDENTIAL FINL INC MTNS BOOK | B28: 103.19 | C28: 0.0275 | D28: 2013-01-14 | E28: 0.4109589041 | F28: -0.00093
A29: AT&T INC | B29: 106.74 | C29: 0.0495 | D29: 2013-01-15 | E29: 0.4136986301 | F29: -0.01003
A30: ANHEUSER BUSCH COS INC | B30: 105.74 | C30: 0.04375 | D30: 2013-01-15 | E30: 0.4136986301 | F30: -0.00713
A31: BANK OF AMERICA CORPORATION | B31: 102.67 | C31: 0.04875 | D31: 2013-01-15 | E31: 0.4136986301 | F31: 0.0245
A32: BRANCH BKG & TR CO NC MTN BE | B32: 105.5 | C32: 0.04875 | D32: 2013-01-15 | E32: 0.4136986301 | F32: -0.00025
A33: DEERE JOHN CAPITAL CORP | B33: 107.07 | C33: 0.051 | D33: 2013-01-15 | E33: 0.4136986301 | F33: -0.01138
A34: HSBC FIN CORP HSBC FIN | B34: 104.85 | C34: 0.0505 | D34: 2013-01-15 | E34: 0.4136986301 | F34: 0.00709
A35: PRUDENTIAL FINL INC MTNS BOOK | B35: 105.75 | C35: 0.0515 | D35: 2013-01-15 | E35: 0.4136986301 | F35: 0.00027
A36: BANK ONE CORP | B36: 105.93 | C36: 0.0525 | D36: 2013-01-30 | E36: 0.4547945205 | F36: 0.00146
A37: CONSOLIDATED EDISON CO N Y INC | B37: 106.46 | C37: 0.04875 | D37: 2013-02-01 | E37: 0.4602739726 | F37: -0.00636
A38: MERRILL LYNCH CO INC MTN BE | B38: 102.55 | C38: 0.0545 | D38: 2013-02-05 | E38: 0.4712328767 | F38: 0.03226
A39: CATERPILLAR FINL SVCS MTNS BE | B39: 105.86 | C39: 0.0425 | D39: 2013-02-08 | E39: 0.4794520548 | F39: -0.00663
A40: SYSCO CORP | B40: 106.39 | C40: 0.042 | D40: 2013-02-12 | E40: 0.4904109589 | F40: -0.01088
A41: CATERPILLAR FINL CORP PWRNTSBE | B41: 106.85 | C41: 0.05 | D41: 2013-02-15 | E41: 0.498630137 | F41: -0.00651
A42: COMPUTER SCIENCES CORP | B42: 105.5 | C42: 0.05 | D42: 2013-02-15 | E42: 0.498630137 | F42: 0.00421
A43: HSBC FIN CORP HSBC FIN | B43: 104.38 | C43: 0.05 | D43: 2013-02-15 | E43: 0.498630137 | F43: 0.01329
A44: HSBC FIN CORP HSBC FIN | B44: 105.11 | C44: 0.055 | D44: 2013-02-15 | E44: 0.498630137 | F44: 0.0123
A45: PARKER HANNIFIN CORP | B45: 106.88 | C45: 0.04875 | D45: 2013-02-15 | E45: 0.498630137 | F45: -0.00788
A46: UNITEDHEALTH GROUP INC | B46: 106.58 | C46: 0.04875 | D46: 2013-02-15 | E46: 0.498630137 | F46: -0.00557
A47: VERIZON COMMUNICATIONS INC | B47: 106.21 | C47: 0.0435 | D47: 2013-02-15 | E47: 0.498630137 | F47: -0.00769
A48: ARCHER DANIELS MIDLAND CO | B48: 109.25 | C48: 0.07125 | D48: 2013-03-01 | E48: 0.5369863014 | F48: -0.0026
A49: FLORIDA POWER CORP | B49: 106.94 | C49: 0.048 | D49: 2013-03-01 | E49: 0.5369863014 | F49: -0.00715
A50: HEWLETT PACKARD CO | B50: 106.62 | C50: 0.045 | D50: 2013-03-01 | E50: 0.5369863014 | F50: -0.00757
A51: MORGAN STANLEY | B51: 102.55 | C51: 0.053 | D51: 2013-03-01 | E51: 0.5369863014 | F51: 0.03199
A52: PUBLIC SERVICE CO COLO | B52: 106.91 | C52: 0.04875 | D52: 2013-03-01 | E52: 0.5369863014 | F52: -0.00621
A53: KELLOGG CO | B53: 106.18 | C53: 0.0425 | D53: 2013-03-06 | E53: 0.5506849315 | F53: -0.0061
A54: KONINKLIJKE PHILIPS ELECTRS NV | B54: 106.68 | C54: 0.04625 | D54: 2013-03-11 | E54: 0.5643835616 | F54: -0.00575
A55: AT&T CORP | B55: 108.94 | C55: 0.065 | D55: 2013-03-15 | E55: 0.5753424658 | F55: -0.00409
A56: CANADIAN NATL RY CO | B56: 106.76 | C56: 0.044 | D56: 2013-03-15 | E56: 0.5753424658 | F56: -0.00803
A57: COMPUTER SCIENCES CORP | B57: 105.83 | C57: 0.055 | D57: 2013-03-15 | E57: 0.5753424658 | F57: 0.00941
A58: HSBC FIN CORP HSBC FIN | B58: 105.48 | C58: 0.0565 | D58: 2013-03-15 | E58: 0.5753424658 | F58: 0.01351
A59: SIMON PPTY GROUP LP | B59: 107.46 | C59: 0.0545 | D59: 2013-03-15 | E59: 0.5753424658 | F59: -0.00324
A60: SOVEREIGN BK FSB WYOMISSING PA | B60: 102.43 | C60: 0.05125 | D60: 2013-03-15 | E60: 0.5753424658 | F60: 0.03184
A61: ANHEUSER BUSCH INBEV WORLDWIDE | B61: 104.09 | C61: 0.025 | D61: 2013-03-26 | E61: 0.6054794521 | F61: -0.00585
A62: DIAGEO FIN BV | B62: 108.14 | C62: 0.055 | D62: 2013-04-01 | E62: 0.6219178082 | F62: -0.00571
A63: GOLDMAN SACHS GROUP INC | B63: 105.13 | C63: 0.0525 | D63: 2013-04-01 | E63: 0.6219178082 | F63: 0.01351
A64: DEERE JOHN CAP CORP MTNS BE | B64: 107.1 | C64: 0.045 | D64: 2013-04-03 | E64: 0.6273972603 | F64: -0.00765
A65: CATERPILLAR FINL SVCS MTNS BE | B65: 104.06 | C65: 0.02 | D65: 2013-04-05 | E65: 0.6328767123 | F65: -0.00992
A66: CITIGROUP INC | B66: 105.21 | C66: 0.055 | D66: 2013-04-11 | E66: 0.6493150685 | F66: 0.01612
A67: CATERPILLAR FINL CORP PWRNTSBE | B67: 108.26 | C67: 0.056 | D67: 2013-04-15 | E67: 0.6602739726 | F67: -0.00399
A68: JOHN DEERE CAP CORP CORENOTE P | B68: 107.33 | C68: 0.05 | D68: 2013-04-15 | E68: =(D68-DATE(2012,8,17))/365 -> 0.6602739726 | F68: -0.00322
A69: DELL INC | B69: 107.33 | C69: 0.047 | D69: 2013-04-15 | E69: 0.6602739726 | F69: -0.00611
A70: HSBC FIN CORP HSBC FIN | B70: 106.13 | C70: 0.06 | D70: 2013-04-15 | E70: 0.6602739726 | F70: 0.01468
A71: MERCANTILE BANKSHARES CORP | B71: 106.03 | C71: 0.04625 | D71: 2013-04-15 | E71: 0.6602739726 | F71: 0.00223
A72: NATIONAL RURAL UTILS COOP FIN | B72: 107.46 | C72: 0.0465 | D72: 2013-04-15 | E72: 0.6602739726 | F72: -0.00748
A73: VERIZON COMMUNICATIONS INC | B73: 108.01 | C73: 0.0525 | D73: 2013-04-15 | E73: 0.6602739726 | F73: -0.00558
A74: MERRILL LYNCH CO INC MTN BE | B74: 103.16 | C74: 0.0615 | D74: 2013-04-25 | E74: 0.6876712329 | F74: 0.03809
A75: ALLSTATE LIFE GLOBAL FDG SECD | B75: 107.67 | C75: 0.05375 | D75: 2013-04-30 | E75: 0.701369863 | F75: -0.00044
A76: BANK AMER CORP | B76: 102.89 | C76: 0.049 | D76: 2013-05-01 | E76: 0.704109589 | F76: 0.028
A77: EMERSON ELEC CO | B77: 107.25 | C77: 0.045 | D77: 2013-05-01 | E77: 0.704109589 | F77: -0.00588
A78: AMERICAN EXPRESS CR CORP MTNBE | B78: 107.57 | C78: 0.05875 | D78: 2013-05-02 | E78: 0.7068493151 | F78: 0.00513
A79: ALCAN INC | B79: 106.65 | C79: 0.045 | D79: 2013-05-15 | E79: 0.7424657534 | F79: -0.00063
A80: AMERICAN INTL GROUP INC | B80: 102.5 | C80: 0.0425 | D80: 2013-05-15 | E80: 0.7424657534 | F80: 0.0249
A81: CATERPILLAR FINL CORP PWRNTSBE | B81: 107.14 | C81: 0.0455 | D81: 2013-05-15 | E81: 0.7424657534 | F81: -0.0034
A82: CATERPILLAR FINL CORP PWRNTSBE | B82: 107.64 | C82: 0.0475 | D82: 2013-05-15 | E82: 0.7424657534 | F82: -0.00474
A83: CATERPILLAR FINL CORP PWRNTSBE | B83: 106.91 | C83: 0.044 | D83: 2013-05-15 | E83: 0.7424657534 | F83: -0.00331
A84: GENERAL DYNAMICS CORP | B84: 108.02 | C84: 0.0425 | D84: 2013-05-15 | E84: 0.7424657534 | F84: -0.01198
A85: GLAXOSMITHKLINE CAP INC | B85: 108.28 | C85: 0.0485 | D85: 2013-05-15 | E85: 0.7424657534 | F85: -0.00792
A86: PRUDENTIAL FINL INC INTERNOTE | B86: 107.42 | C86: 0.05375 | D86: 2013-05-15 | E86: 0.7424657534 | F86: 0.00261
A87: WMC FIN USA LTD | B87: 108.15 | C87: 0.05125 | D87: 2013-05-15 | E87: 0.7424657534 | F87: 0
A88: PHILIP MORRIS INTL INC | B88: 108.08 | C88: 0.04875 | D88: 2013-05-16 | E88: 0.7452054795 | F88: -0.00633
A89: SIMON PPTY GROUP LP | B89: 109.5 | C89: 0.053 | D89: 2013-05-30 | E89: 0.7835616438 | F89: -0.00983
A90: PRAXAIR INC | B90: 106.97 | C90: 0.0395 | D90: 2013-06-01 | E90: 0.7890410959 | F90: -0.00664
A91: VERIZON GLOBAL FDG CORP | B91: 107.14 | C91: 0.04375 | D91: 2013-06-01 | E91: 0.7890410959 | F91: -0.00366
A92: DUKE ENERGY OHIO | B92: 104.19 | C92: 0.021 | D92: 2013-06-15 | E92: 0.8273972603 | F92: -0.00607
A93: GENWORTH GLOBAL FDG TR | B93: 106.5 | C93: 0.055 | D93: 2013-06-15 | E93: 0.8273972603 | F93: 0.01223
A94: NYSE EURONEXT | B94: 107.26 | C94: 0.048 | D94: 2013-06-28 | E94: 0.8630136986 | F94: 0.0018
A95: AMERICAN EXPRESS CO | B95: 107.4 | C95: 0.04875 | D95: 2013-07-15 | E95: 0.9095890411 | F95: 0.00299
A96: DU PONT E I DE NEMOURS & CO | B96: 109.67 | C96: 0.05 | D96: 2013-07-15 | E96: 0.9095890411 | F96: -0.00902
A97: GOLDMAN SACHS GROUP INC | B97: 104.6 | C97: 0.0475 | D97: 2013-07-15 | E97: 0.9095890411 | F97: 0.01859
A98: HOUSEHOLD FIN CORP | B98: 105.2 | C98: 0.0475 | D98: 2013-07-15 | E98: 0.9095890411 | F98: 0.0149
A99: THOMSON REUTERS CORP | B99: 109.17 | C99: 0.0595 | D99: 2013-07-15 | E99: 0.9095890411 | F99: 0.00281
A100: ATLANTIC CITY ELEC CO | B100: 109 | C100: 0.06625 | D100: 2013-08-01 | E100: 0.9561643836 | F100: 0.01156
A101: ENTERGY ARK INC | B101: 109.5 | C101: 0.054 | D101: 2013-08-01 | E101: 0.9561643836 | F101: -0.00282
A102: WALGREEN CO | B102: 109.22 | C102: 0.04875 | D102: 2013-08-01 | E102: 0.9561643836 | F102: -0.00619
A103: BRISTOL MYERS SQUIBB CO | B103: 109.99 | C103: 0.0525 | D103: 2013-08-15 | E103: 0.9945205479 | F103: -0.00568
A104: CATERPILLAR FINL CORP PWRNTSBE | B104: 106.72 | C104: 0.0425 | D104: 2013-08-15 | E104: 0.9945205479 | F104: 0.00299
A105: CATERPILLAR FINL SVCS MTNS BE | B105: 109.27 | C105: 0.049 | D105: 2013-08-15 | E105: 0.9945205479 | F105: -0.00505
A106: COCA COLA ENTERPRISES INC | B106: 108.62 | C106: 0.05 | D106: 2013-08-15 | E106: 0.9945205479 | F106: -0.00054
A107: KIMBERLY CLARK CORP | B107: 109.43 | C107: 0.05 | D107: 2013-08-15 | E107: 0.9945205479 | F107: -0.005
A108: THOMSON REUTERS CORP | B108: 108.5 | C108: 0.0525 | D108: 2013-08-15 | E108: 0.9945205479 | F108: 0.00252
A109: CITIGROUP INC | B109: 107 | C109: 0.065 | D109: 2013-08-19 | E109: 1.005479452 | F109: 0.02314
A110: AMERICAN EXPRESS CR CORP MTNBE | B110: 110.92 | C110: 0.073 | D110: 2013-08-20 | E110: 1.008219178 | F110: 0.00883
A111: ROYAL BK SCOTLAND PLC | B111: 100.83 | C111: 0.034 | D111: 2013-08-23 | E111: 1.016438356 | F111: 0.02905
A112: MERRILL LYNCH CO INC MTN BE | B112: 398.5 | C112: 0 | D112: 2013-08-30 | E112: 1.035616438 | F112: 0
A113: DEERE JOHN CAP CORP MTNS BE | B113: 109.22 | C113: 0.049 | D113: 2013-09-09 | E113: 1.063013699 | F113: -0.00286
A114: DELL INC | B114: 102.76 | C114: 0.014 | D114: 2013-09-10 | E114: 1.065753425 | F114: -0.00151
A115: HEWLETT PACKARD CO | B115: 102.29 | C115: 0.0125 | D115: 2013-09-13 | E115: 1.073972603 | F115: -0.00035
A116: AMERICAN EXPRESS CR CORP INTER | B116: 109.38 | C116: 0.0625 | D116: 2013-09-15 | E116: 1.079452055 | F116: 0.00948
A117: CAROLINA PWR & LT CO | B117: 109.81 | C117: 0.05125 | D117: 2013-09-15 | E117: 1.079452055 | F117: -0.00337
A118: CATERPILLAR FINL SVCS MTNS BE | B118: 112.15 | C118: 0.062 | D118: 2013-09-30 | E118: 1.120547945 | F118: -0.00407
A119: EOG RES INC | B119: 111.19 | C119: 0.06125 | D119: 2013-10-01 | E119: 1.123287671 | F119: 0.00021
A120: NIKE INC MTN BE | B120: 109.26 | C120: 0.047 | D120: 2013-10-01 | E120: 1.123287671 | F120: -0.00329
A121: DEAN WITTER DISCOVER & CO | B121: 108.2 | C121: 0.0675 | D121: 2013-10-15 | E121: 1.161643836 | F121: 0.02251
A122: EBAY INC | B122: 102.46 | C122: 0.00875 | D122: 2013-10-15 | E122: 1.161643836 | F122: -0.00431
A123: GOLDMAN SACHS GROUP INC | B123: 105.05 | C123: 0.0525 | D123: 2013-10-15 | E123: 1.161643836 | F123: 0.0247
A124: PECO ENERGY CO | B124: 110.78 | C124: 0.056 | D124: 2013-10-15 | E124: 1.161643836 | F124: -0.00148
A125: WELLS FARGO & CO NEW | B125: 106.86 | C125: 0.0495 | D125: 2013-10-16 | E125: 1.164383562 | F125: 0.01237
A126: BHP FIN USA LTD | B126: 112.75 | C126: 0.0675 | D126: 2013-11-01 | E126: 1.208219178 | F126: 0.0009
A127: NATIONAL RURAL UTILS COOP FIN | B127: 102.38 | C127: 0.01125 | D127: 2013-11-01 | E127: 1.208219178 | F127: -0.00116
A128: BP CAP MKTS P L C | B128: 109.69 | C128: 0.0525 | D128: 2013-11-07 | E128: 1.224657534 | F128: 0.00224
A129: AT&T INC | B129: 113.09 | C129: 0.067 | D129: 2013-11-15 | E129: 1.246575342 | F129: 5e-05
A130: DAIMLER CHRYSLER NORTH AMER HL | B130: 110.95 | C130: 0.065 | D130: 2013-11-15 | E130: 1.246575342 | F130: 0.0084
A131: VERIZON WIRELESS CAP LLC | B131: 114.36 | C131: 0.07375 | D131: 2013-11-15 | E131: 1.246575342 | F131: 0.00027
A132: PACIFIC GAS & ELEC CO | B132: 111.82 | C132: 0.0625 | D132: 2013-12-01 | E132: =(D132-DATE(2012,8,17))/365 -> 1.290410959 | F132: 0.00317
A133: CITIGROUP INC | B133: 106.56 | C133: 0.06 | D133: 2013-12-13 | E133: 1.323287671 | F133: 0.02663
A134: OCCIDENTAL PETE CORP DEL | B134: 103.68 | C134: 0.0145 | D134: 2013-12-13 | E134: 1.323287671 | F134: -0.00352
A135: DISNEY WALT CO | B135: 110.06 | C135: 0.045 | D135: 2013-12-15 | E135: 1.328767123 | F135: -0.0041
A136: UNION BK CALIF N A MEDIUM TERM | B136: 103.32 | C136: 0.02125 | D136: 2013-12-16 | E136: 1.331506849 | F136: 0.0049
A137: VODAFONE GROUP PLC NEW | B137: 109.92 | C137: 0.05 | D137: 2013-12-16 | E137: 1.331506849 | F137: 0.00134
A138: ROYAL BK SCOTLAND PLC | B138: 99.25 | C138: 0.0325 | D138: 2014-01-11 | E138: 1.402739726 | F138: 0.03619
A139: AMERICAN INTL GROUP INC | B139: 99.78 | C139: 0.0365 | D139: 2014-01-15 | E139: 1.41369863 | F139: 0.03756
A140: ANHEUSER BUSCH COS INC | B140: 109.31 | C140: 0.0495 | D140: 2014-01-15 | E140: 1.41369863 | F140: 0.00533
A141: CATERPILLAR FINL SVCS MTNS BE | B141: 109.64 | C141: 0.046 | D141: 2014-01-15 | E141: 1.41369863 | F141: 0.00053
A142: DIAGEO CAP PLC | B142: 115.45 | C142: 0.07375 | D142: 2014-01-15 | E142: 1.41369863 | F142: 0.00087
A143: GOLDMAN SACHS GROUP INC | B143: 104.76 | C143: 0.0515 | D143: 2014-01-15 | E143: 1.41369863 | F143: 0.02823
A144: POLAND REP | B144: 107.92 | C144: 0.0525 | D144: 2014-01-15 | E144: 1.41369863 | F144: 0.01447
A145: EXPORT IMPORT BK KOREA | B145: 113.71 | C145: 0.08125 | D145: 2014-01-21 | E145: 1.430136986 | F145: 0.01578
A146: BURLINGTON NORTHN SANTA FE CP | B146: 115.03 | C146: 0.07 | D146: 2014-02-01 | E146: 1.460273973 | F146: 0.00056
A147: CONOCOPHILLIPS | B147: 110.55 | C147: 0.0475 | D147: 2014-02-01 | E147: 1.460273973 | F147: -0.00113
A148: MERRILL LYNCH CO INC MTN BE | B148: 103.46 | C148: 0.05 | D148: 2014-02-03 | E148: 1.465753425 | F148: 0.03332
A149: AT&T INC | B149: 110.03 | C149: 0.0485 | D149: 2014-02-15 | E149: 1.498630137 | F149: 0.00286
A150: HONEYWELL INTL INC | B150: 108.99 | C150: 0.03875 | D150: 2014-02-15 | E150: 1.498630137 | F150: -0.00192
A151: LINCOLN NATL CORP IND | B151: 106.46 | C151: 0.0475 | D151: 2014-02-15 | E151: 1.498630137 | F151: 0.01752
A152: WACHOVIA CORP NEW | B152: 107.21 | C152: 0.04875 | D152: 2014-02-15 | E152: 1.498630137 | F152: 0.01538
A153: WELLPOINT INC | B153: 111.66 | C153: 0.06 | D153: 2014-02-15 | E153: 1.498630137 | F153: 0.00667
A154: CATERPILLAR FINL SVCS MTNS BE | B154: 113.09 | C154: 0.06125 | D154: 2014-02-17 | E154: 1.504109589 | F154: 0.00191
A155: WESTERN UN CO | B155: 111.28 | C155: 0.065 | D155: 2014-02-26 | E155: 1.528767123 | F155: 0.01362
A156: AMERICA MOVIL SAB DE CV | B156: 111 | C156: 0.055 | D156: 2014-03-01 | E156: 1.536986301 | F156: 0.00572
A157: HEWLETT PACKARD CO | B157: 112.44 | C157: 0.06125 | D157: 2014-03-01 | E157: 1.536986301 | F157: 0.00552
A158: SNAP ON INC | B158: 111.58 | C158: 0.0585 | D158: 2014-03-01 | E158: 1.536986301 | F158: 0.00656
A159: COCA COLA ENTERPRISES INC | B159: 116 | C159: 0.07375 | D159: 2014-03-03 | E159: 1.542465753 | F159: 0.00256
A160: BOEING CO | B160: 111.64 | C160: 0.05 | D160: 2014-03-15 | E160: 1.575342466 | F160: -0.00081
A161: CORNING INC | B161: 111.83 | C161: 0.059 | D161: 2014-03-15 | E161: 1.575342466 | F161: 0.00681
A162: PHILIP MORRIS INTL INC | B162: 115.12 | C162: 0.06875 | D162: 2014-03-17 | E162: 1.580821918 | F162: 0.0026
A163: TEVA PHARMACEUTICAL FIN III BV | B163: 102.21 | C163: 0.017 | D163: 2014-03-21 | E163: 1.591780822 | F163: 0.00732
A164: VERIZON COMMUNICATIONS INC | B164: 104.89 | C164: 0.0195 | D164: 2014-03-28 | E164: 1.610958904 | F164: -0.00147
A165: BHP BILLITON FIN USA LTD | B165: 112.15 | C165: 0.055 | D165: 2014-04-01 | E165: 1.621917808 | F165: 0.00273
A166: MORGAN STANLEY | B166: 97.82 | C166: 0.0475 | D166: 2014-04-01 | E166: 1.621917808 | F166: 0.05756
A167: DELL INC | B167: 112.73 | C167: 0.05625 | D167: 2014-04-15 | E167: 1.660273973 | F167: 0.00241
A168: GLAXOSMITHKLINE CAP INC | B168: 110.33 | C168: 0.04375 | D168: 2014-04-15 | E168: 1.660273973 | F168: 0.0002
A169: NSTAR ELEC CO | B169: 111 | C169: 0.04875 | D169: 2014-04-15 | E169: 1.660273973 | F169: 0.00223
A170: WELLS FARGO & CO NEW | B170: 107.67 | C170: 0.04625 | D170: 2014-04-15 | E170: 1.660273973 | F170: 0.01328
A171: DEERE & CO | B171: 116.52 | C171: 0.0695 | D171: 2014-04-25 | E171: 1.687671233 | F171: 0.00062
A172: BB&T CORPORATION | B172: 111.9 | C172: 0.057 | D172: 2014-04-30 | E172: 1.701369863 | F172: 0.00717
A173: DU PONT E I DE NEMOURS & CO | B173: 113.16 | C173: 0.04875 | D173: 2014-04-30 | E173: 1.701369863 | F173: -0.00535
A174: GOLDMAN SACHS GRP INC MTN BE | B174: 105.73 | C174: 0.06 | D174: 2014-05-01 | E174: 1.704109589 | F174: 0.03505
A175: RIO TINTO FIN USA LTD | B175: 119.39 | C175: 0.0895 | D175: 2014-05-01 | E175: 1.704109589 | F175: 0.0083
A176: CITIGROUP INC | B176: 106.25 | C176: 0.05125 | D176: 2014-05-05 | E176: 1.715068493 | F176: 0.02455
A177: BP CAP MKTS P L C | B177: 107.53 | C177: 0.03625 | D177: 2014-05-08 | E177: 1.723287671 | F177: 0.00512
A178: MORGAN STANLEY | B178: 101.98 | C178: 0.06 | D178: 2014-05-13 | E178: 1.736986301 | F178: 0.05128
A179: BANK AMER CORP | B179: 103.22 | C179: 0.07375 | D179: 2014-05-15 | E179: 1.742465753 | F179: 0.05946
A180: TEXAS INSTRS INC | B180: 103.5 | C180: 0.01375 | D180: 2014-05-15 | E180: 1.742465753 | F180: -0.0005
A181: ALLSTATE CORP | B181: 114.03 | C181: 0.062 | D181: 2014-05-16 | E181: 1.745205479 | F181: 0.00452
A182: PNC FUNDING CORP | B182: 105.93 | C182: 0.03 | D182: 2014-05-19 | E182: 1.753424658 | F182: 0.00576
A183: AMERICAN EXPRESS CO | B183: 113.99 | C183: 0.0725 | D183: 2014-05-20 | E183: 1.756164384 | F183: 0.01461
A184: CATERPILLAR FINL SVCS MTNS BE | B184: 103.88 | C184: 0.01375 | D184: 2014-05-20 | E184: 1.756164384 | F184: -0.0019
A185: BARRICK GOLD CORP | B185: 103.36 | C185: 0.0175 | D185: 2014-05-30 | E185: 1.783561644 | F185: 0.00395
A186: NORDSTROM INC | B186: 114.72 | C186: 0.0675 | D186: 2014-06-01 | E186: 1.789041096 | F186: 0.0079
A187: SCHWAB CHARLES CORP NEW | B187: 111.37 | C187: 0.0495 | D187: 2014-06-01 | E187: 1.789041096 | F187: 0.00375
A188: HEWLETT PACKARD CO | B188: 110.45 | C188: 0.0475 | D188: 2014-06-02 | E188: 1.791780822 | F188: 0.0054
A189: VODAFONE GROUP PLC NEW | B189: 108.66 | C189: 0.0415 | D189: 2014-06-10 | E189: 1.81369863 | F189: 0.00685
A190: BANK OF AMERICA CORPORATION | B190: 101.69 | C190: 0.05375 | D190: 2014-06-15 | E190: 1.82739726 | F190: 0.04661
A191: HSBC FIN CORP HSBC FIN | B191: 101 | C191: 0.0195 | D191: 2014-06-15 | E191: 1.82739726 | F191: 0.01547
A192: METLIFE INC | B192: 110.61 | C192: 0.055 | D192: 2014-06-15 | E192: 1.82739726 | F192: 0.01241
A193: DISNEY WALT CO MTNS BE | B193: 115.51 | C193: 0.062 | D193: 2014-06-20 | E193: 1.84109589 | F193: 0.00114
A194: ANALOG DEVICES INC | B194: 112.03 | C194: 0.05 | D194: 2014-07-01 | E194: 1.871232877 | F194: 0.00319
A195: ORACLE CORP | B195: 109.98 | C195: 0.0375 | D195: 2014-07-08 | E195: 1.890410959 | F195: -0.00079
A196: ANHEUSER BUSCH INBEV WORLDWIDE | B196: 102.91 | C196: 0.015 | D196: 2014-07-14 | E196: =(D196-DATE(2012,8,17))/365 -> 1.906849315 | F196: 0.00381
A197: GOLDMAN SACHS GRP INC MTN BE | B197: 105.25 | C197: 0.042 | D197: 2014-07-15 | E197: 1.909589041 | F197: 0.0213
A198: MERRILL LYNCH CO INC MTN BE | B198: 101.86 | C198: 0.0545 | D198: 2014-07-15 | E198: 1.909589041 | F198: 0.04688
A199: MORGAN STANLEY | B199: 95.44 | C199: 0.02875 | D199: 2014-07-28 | E199: 1.945205479 | F199: 0.04717
A200: WACHOVIA CORP NEW | B200: 107.75 | C200: 0.0525 | D200: 2014-08-01 | E200: 1.956164384 | F200: 0.02239
... 807 more rows

Sheet For book with hidden
A1: FITCH-RATED A BONDS, Friday 17 August 2012
B2: Price | C2: Coupon | D2: Maturity | E2: Time to maturity | F2: Yield to maturity
A3: CITIGROUP INC | B3: 103.88 | C3: 0.05625 | D3: 2012-08-27 | E3: =(D3-DATE(2012,8,17))/365 -> 0.02739726027 | F3: 0.00364
A4: LINCOLN NATL CORP IND | B4: 105.42 | C4: 0.0565 | D4: 2012-08-27 | E4: =(D4-DATE(2012,8,17))/365 -> 0.02739726027 | F4: -0.01615
A5: GOLDMAN SACHS GROUP INC | B5: 104.68 | C5: 0.057 | D5: 2012-09-01 | E5: 0.04109589041 | F5: -0.00519
A6: WELLS FARGO & CO NEW | B6: 104.85 | C6: 0.05125 | D6: 2012-09-01 | E6: 0.04109589041 | F6: -0.01284
A7: BANK OF AMERICA CORPORATION | B7: 102.91 | C7: 0.05375 | D7: 2012-09-11 | E7: 0.06849315068 | F7: 0.01597
A8: BANK OF AMERICA CORPORATION | B8: 102.81 | C8: 0.04875 | D8: 2012-09-15 | E8: 0.07945205479 | F8: 0.01286
A9: CARGILL INC | B9: 105.81 | C9: 0.056 | D9: 2012-09-15 | E9: 0.07945205479 | F9: -0.01679
A10: HSBC FIN CORP HSBC FIN | B10: 105 | C10: 0.054 | D10: 2012-09-15 | E10: 0.07945205479 | F10: -0.00899
A11: HSBC FIN CORP HSBC FIN | B11: 103.12 | C11: 0.0385 | D11: 2012-09-15 | E11: 0.07945205479 | F11: -0.00106
A12: PRUDENTIAL FINL INC MTNS BOOK | B12: 103.97 | C12: 0.03625 | D12: 2012-09-17 | E12: 0.08493150685 | F12: -0.01331
A13: CONOCOPHILLIPS | B13: 105.7 | C13: 0.0475 | D13: 2012-10-15 | E13: 0.1616438356 | F13: -0.01712
A14: COVIDIEN INTL FIN S A | B14: 106.07 | C14: 0.0545 | D14: 2012-10-15 | E14: 0.1616438356 | F14: -0.01441
A15: HSBC FIN CORP HSBC FIN | B15: 102.81 | C15: 0.036 | D15: 2012-10-15 | E15: 0.1616438356 | F15: 0.0037
A16: NSTAR ELEC CO | B16: 105.36 | C16: 0.04875 | D16: 2012-10-15 | E16: 0.1616438356 | F16: -0.01218
A17: CITIGROUP INC | B17: 104.23 | C17: 0.053 | D17: 2012-10-17 | E17: 0.1671232877 | F17: 0.00469
A18: CATERPILLAR FINL CORP PWRNTSBE | B18: 107.18 | C18: 0.065 | D18: 2012-11-15 | E18: 0.2465753425 | F18: -0.00963
A19: DU PONT E I DE NEMOURS & CO | B19: 105.69 | C19: 0.0475 | D19: 2012-11-15 | E19: 0.2465753425 | F19: -0.01155
A20: GEORGIA PWR CO | B20: 106.16 | C20: 0.05125 | D20: 2012-11-15 | E20: 0.2465753425 | F20: -0.01257
A21: UNITEDHEALTH GROUP INC | B21: 106.5 | C21: 0.055 | D21: 2012-11-15 | E21: 0.2465753425 | F21: -0.01243
A22: DUKE POWER CO LLC | B22: 106.56 | C22: 0.05625 | D22: 2012-11-30 | E22: 0.2876712329 | F22: -0.00907
A23: BHP FIN USA LTD | B23: 109.7 | C23: 0.085 | D23: 2012-12-01 | E23: 0.2904109589 | F23: -0.01121
A24: TD AMERITRADE HLDG CORP | B24: 103.78 | C24: 0.0295 | D24: 2012-12-01 | E24: 0.2904109589 | F24: -0.00807
A25: KELLOGG CO | B25: 107.01 | C25: 0.05125 | D25: 2012-12-03 | E25: 0.295890411 | F25: -0.01755
A26: PACCAR FINL CORP SR MTNS BK EN | B26: 102.84 | C26: 0.0195 | D26: 2012-12-17 | E26: 0.3342465753 | F26: -0.00757
A27: JPMORGAN CHASE & CO | B27: 106.54 | C27: 0.0575 | D27: 2013-01-02 | E27: 0.3780821918 | F27: -0.00259
A28: PRUDENTIAL FINL INC MTNS BOOK | B28: 103.19 | C28: 0.0275 | D28: 2013-01-14 | E28: 0.4109589041 | F28: -0.00093
A29: AT&T INC | B29: 106.74 | C29: 0.0495 | D29: 2013-01-15 | E29: 0.4136986301 | F29: -0.01003
A30: ANHEUSER BUSCH COS INC | B30: 105.74 | C30: 0.04375 | D30: 2013-01-15 | E30: 0.4136986301 | F30: -0.00713
A31: BANK OF AMERICA CORPORATION | B31: 102.67 | C31: 0.04875 | D31: 2013-01-15 | E31: 0.4136986301 | F31: 0.0245
A32: BRANCH BKG & TR CO NC MTN BE | B32: 105.5 | C32: 0.04875 | D32: 2013-01-15 | E32: 0.4136986301 | F32: -0.00025
A33: DEERE JOHN CAPITAL CORP | B33: 107.07 | C33: 0.051 | D33: 2013-01-15 | E33: 0.4136986301 | F33: -0.01138
A34: HSBC FIN CORP HSBC FIN | B34: 104.85 | C34: 0.0505 | D34: 2013-01-15 | E34: 0.4136986301 | F34: 0.00709
A35: PRUDENTIAL FINL INC MTNS BOOK | B35: 105.75 | C35: 0.0515 | D35: 2013-01-15 | E35: 0.4136986301 | F35: 0.00027
A36: BANK ONE CORP | B36: 105.93 | C36: 0.0525 | D36: 2013-01-30 | E36: 0.4547945205 | F36: 0.00146
A37: CONSOLIDATED EDISON CO N Y INC | B37: 106.46 | C37: 0.04875 | D37: 2013-02-01 | E37: 0.4602739726 | F37: -0.00636
A38: MERRILL LYNCH CO INC MTN BE | B38: 102.55 | C38: 0.0545 | D38: 2013-02-05 | E38: 0.4712328767 | F38: 0.03226
A39: CATERPILLAR FINL SVCS MTNS BE | B39: 105.86 | C39: 0.0425 | D39: 2013-02-08 | E39: 0.4794520548 | F39: -0.00663
A40: SYSCO CORP | B40: 106.39 | C40: 0.042 | D40: 2013-02-12 | E40: 0.4904109589 | F40: -0.01088
A41: CATERPILLAR FINL CORP PWRNTSBE | B41: 106.85 | C41: 0.05 | D41: 2013-02-15 | E41: 0.498630137 | F41: -0.00651
A42: COMPUTER SCIENCES CORP | B42: 105.5 | C42: 0.05 | D42: 2013-02-15 | E42: 0.498630137 | F42: 0.00421
A43: HSBC FIN CORP HSBC FIN | B43: 104.38 | C43: 0.05 | D43: 2013-02-15 | E43: 0.498630137 | F43: 0.01329
A44: HSBC FIN CORP HSBC FIN | B44: 105.11 | C44: 0.055 | D44: 2013-02-15 | E44: 0.498630137 | F44: 0.0123
A45: PARKER HANNIFIN CORP | B45: 106.88 | C45: 0.04875 | D45: 2013-02-15 | E45: 0.498630137 | F45: -0.00788
A46: UNITEDHEALTH GROUP INC | B46: 106.58 | C46: 0.04875 | D46: 2013-02-15 | E46: 0.498630137 | F46: -0.00557
A47: VERIZON COMMUNICATIONS INC | B47: 106.21 | C47: 0.0435 | D47: 2013-02-15 | E47: 0.498630137 | F47: -0.00769
A48: ARCHER DANIELS MIDLAND CO | B48: 109.25 | C48: 0.07125 | D48: 2013-03-01 | E48: 0.5369863014 | F48: -0.0026
A49: FLORIDA POWER CORP | B49: 106.94 | C49: 0.048 | D49: 2013-03-01 | E49: 0.5369863014 | F49: -0.00715
A50: HEWLETT PACKARD CO | B50: 106.62 | C50: 0.045 | D50: 2013-03-01 | E50: 0.5369863014 | F50: -0.00757
A51: MORGAN STANLEY | B51: 102.55 | C51: 0.053 | D51: 2013-03-01 | E51: 0.5369863014 | F51: 0.03199
A52: PUBLIC SERVICE CO COLO | B52: 106.91 | C52: 0.04875 | D52: 2013-03-01 | E52: 0.5369863014 | F52: -0.00621
A53: KELLOGG CO | B53: 106.18 | C53: 0.0425 | D53: 2013-03-06 | E53: 0.5506849315 | F53: -0.0061
A54: KONINKLIJKE PHILIPS ELECTRS NV | B54: 106.68 | C54: 0.04625 | D54: 2013-03-11 | E54: 0.5643835616 | F54: -0.00575
A55: AT&T CORP | B55: 108.94 | C55: 0.065 | D55: 2013-03-15 | E55: 0.5753424658 | F55: -0.00409
A56: CANADIAN NATL RY CO | B56: 106.76 | C56: 0.044 | D56: 2013-03-15 | E56: 0.5753424658 | F56: -0.00803
A57: COMPUTER SCIENCES CORP | B57: 105.83 | C57: 0.055 | D57: 2013-03-15 | E57: 0.5753424658 | F57: 0.00941
A58: HSBC FIN CORP HSBC FIN | B58: 105.48 | C58: 0.0565 | D58: 2013-03-15 | E58: 0.5753424658 | F58: 0.01351
A59: SIMON PPTY GROUP LP | B59: 107.46 | C59: 0.0545 | D59: 2013-03-15 | E59: 0.5753424658 | F59: -0.00324
A60: SOVEREIGN BK FSB WYOMISSING PA | B60: 102.43 | C60: 0.05125 | D60: 2013-03-15 | E60: 0.5753424658 | F60: 0.03184
A61: ANHEUSER BUSCH INBEV WORLDWIDE | B61: 104.09 | C61: 0.025 | D61: 2013-03-26 | E61: 0.6054794521 | F61: -0.00585
A62: DIAGEO FIN BV | B62: 108.14 | C62: 0.055 | D62: 2013-04-01 | E62: 0.6219178082 | F62: -0.00571
A63: GOLDMAN SACHS GROUP INC | B63: 105.13 | C63: 0.0525 | D63: 2013-04-01 | E63: 0.6219178082 | F63: 0.01351
A64: DEERE JOHN CAP CORP MTNS BE | B64: 107.1 | C64: 0.045 | D64: 2013-04-03 | E64: 0.6273972603 | F64: -0.00765
A65: CATERPILLAR FINL SVCS MTNS BE | B65: 104.06 | C65: 0.02 | D65: 2013-04-05 | E65: 0.6328767123 | F65: -0.00992
A66: CITIGROUP INC | B66: 105.21 | C66: 0.055 | D66: 2013-04-11 | E66: 0.6493150685 | F66: 0.01612
A67: CATERPILLAR FINL CORP PWRNTSBE | B67: 108.26 | C67: 0.056 | D67: 2013-04-15 | E67: 0.6602739726 | F67: -0.00399
A68: JOHN DEERE CAP CORP CORENOTE P | B68: 107.33 | C68: 0.05 | D68: 2013-04-15 | E68: =(D68-DATE(2012,8,17))/365 -> 0.6602739726 | F68: -0.00322
A69: DELL INC | B69: 107.33 | C69: 0.047 | D69: 2013-04-15 | E69: 0.6602739726 | F69: -0.00611
A70: HSBC FIN CORP HSBC FIN | B70: 106.13 | C70: 0.06 | D70: 2013-04-15 | E70: 0.6602739726 | F70: 0.01468
A71: MERCANTILE BANKSHARES CORP | B71: 106.03 | C71: 0.04625 | D71: 2013-04-15 | E71: 0.6602739726 | F71: 0.00223
A72: NATIONAL RURAL UTILS COOP FIN | B72: 107.46 | C72: 0.0465 | D72: 2013-04-15 | E72: 0.6602739726 | F72: -0.00748
A73: VERIZON COMMUNICATIONS INC | B73: 108.01 | C73: 0.0525 | D73: 2013-04-15 | E73: 0.6602739726 | F73: -0.00558
A74: MERRILL LYNCH CO INC MTN BE | B74: 103.16 | C74: 0.0615 | D74: 2013-04-25 | E74: 0.6876712329 | F74: 0.03809
A75: ALLSTATE LIFE GLOBAL FDG SECD | B75: 107.67 | C75: 0.05375 | D75: 2013-04-30 | E75: 0.701369863 | F75: -0.00044
A76: BANK AMER CORP | B76: 102.89 | C76: 0.049 | D76: 2013-05-01 | E76: 0.704109589 | F76: 0.028
A77: EMERSON ELEC CO | B77: 107.25 | C77: 0.045 | D77: 2013-05-01 | E77: 0.704109589 | F77: -0.00588
A78: AMERICAN EXPRESS CR CORP MTNBE | B78: 107.57 | C78: 0.05875 | D78: 2013-05-02 | E78: 0.7068493151 | F78: 0.00513
A79: ALCAN INC | B79: 106.65 | C79: 0.045 | D79: 2013-05-15 | E79: 0.7424657534 | F79: -0.00063
A80: AMERICAN INTL GROUP INC | B80: 102.5 | C80: 0.0425 | D80: 2013-05-15 | E80: 0.7424657534 | F80: 0.0249
A81: CATERPILLAR FINL CORP PWRNTSBE | B81: 107.14 | C81: 0.0455 | D81: 2013-05-15 | E81: 0.7424657534 | F81: -0.0034
A82: CATERPILLAR FINL CORP PWRNTSBE | B82: 107.64 | C82: 0.0475 | D82: 2013-05-15 | E82: 0.7424657534 | F82: -0.00474
A83: CATERPILLAR FINL CORP PWRNTSBE | B83: 106.91 | C83: 0.044 | D83: 2013-05-15 | E83: 0.7424657534 | F83: -0.00331
A84: GENERAL DYNAMICS CORP | B84: 108.02 | C84: 0.0425 | D84: 2013-05-15 | E84: 0.7424657534 | F84: -0.01198
A85: GLAXOSMITHKLINE CAP INC | B85: 108.28 | C85: 0.0485 | D85: 2013-05-15 | E85: 0.7424657534 | F85: -0.00792
A86: PRUDENTIAL FINL INC INTERNOTE | B86: 107.42 | C86: 0.05375 | D86: 2013-05-15 | E86: 0.7424657534 | F86: 0.00261
A87: WMC FIN USA LTD | B87: 108.15 | C87: 0.05125 | D87: 2013-05-15 | E87: 0.7424657534 | F87: 0
A88: PHILIP MORRIS INTL INC | B88: 108.08 | C88: 0.04875 | D88: 2013-05-16 | E88: 0.7452054795 | F88: -0.00633
A89: SIMON PPTY GROUP LP | B89: 109.5 | C89: 0.053 | D89: 2013-05-30 | E89: 0.7835616438 | F89: -0.00983
A90: PRAXAIR INC | B90: 106.97 | C90: 0.0395 | D90: 2013-06-01 | E90: 0.7890410959 | F90: -0.00664
A91: VERIZON GLOBAL FDG CORP | B91: 107.14 | C91: 0.04375 | D91: 2013-06-01 | E91: 0.7890410959 | F91: -0.00366
A92: DUKE ENERGY OHIO | B92: 104.19 | C92: 0.021 | D92: 2013-06-15 | E92: 0.8273972603 | F92: -0.00607
A93: GENWORTH GLOBAL FDG TR | B93: 106.5 | C93: 0.055 | D93: 2013-06-15 | E93: 0.8273972603 | F93: 0.01223
A94: NYSE EURONEXT | B94: 107.26 | C94: 0.048 | D94: 2013-06-28 | E94: 0.8630136986 | F94: 0.0018
A95: AMERICAN EXPRESS CO | B95: 107.4 | C95: 0.04875 | D95: 2013-07-15 | E95: 0.9095890411 | F95: 0.00299
A96: DU PONT E I DE NEMOURS & CO | B96: 109.67 | C96: 0.05 | D96: 2013-07-15 | E96: 0.9095890411 | F96: -0.00902
A97: GOLDMAN SACHS GROUP INC | B97: 104.6 | C97: 0.0475 | D97: 2013-07-15 | E97: 0.9095890411 | F97: 0.01859
A98: HOUSEHOLD FIN CORP | B98: 105.2 | C98: 0.0475 | D98: 2013-07-15 | E98: 0.9095890411 | F98: 0.0149
A99: THOMSON REUTERS CORP | B99: 109.17 | C99: 0.0595 | D99: 2013-07-15 | E99: 0.9095890411 | F99: 0.00281
A100: ATLANTIC CITY ELEC CO | B100: 109 | C100: 0.06625 | D100: 2013-08-01 | E100: 0.9561643836 | F100: 0.01156
A101: ENTERGY ARK INC | B101: 109.5 | C101: 0.054 | D101: 2013-08-01 | E101: 0.9561643836 | F101: -0.00282
A102: WALGREEN CO | B102: 109.22 | C102: 0.04875 | D102: 2013-08-01 | E102: 0.9561643836 | F102: -0.00619
A103: BRISTOL MYERS SQUIBB CO | B103: 109.99 | C103: 0.0525 | D103: 2013-08-15 | E103: 0.9945205479 | F103: -0.00568
A104: CATERPILLAR FINL CORP PWRNTSBE | B104: 106.72 | C104: 0.0425 | D104: 2013-08-15 | E104: 0.9945205479 | F104: 0.00299
A105: CATERPILLAR FINL SVCS MTNS BE | B105: 109.27 | C105: 0.049 | D105: 2013-08-15 | E105: 0.9945205479 | F105: -0.00505
A106: COCA COLA ENTERPRISES INC | B106: 108.62 | C106: 0.05 | D106: 2013-08-15 | E106: 0.9945205479 | F106: -0.00054
A107: KIMBERLY CLARK CORP | B107: 109.43 | C107: 0.05 | D107: 2013-08-15 | E107: 0.9945205479 | F107: -0.005
A108: THOMSON REUTERS CORP | B108: 108.5 | C108: 0.0525 | D108: 2013-08-15 | E108: 0.9945205479 | F108: 0.00252
A109: CITIGROUP INC | B109: 107 | C109: 0.065 | D109: 2013-08-19 | E109: 1.005479452 | F109: 0.02314
A110: AMERICAN EXPRESS CR CORP MTNBE | B110: 110.92 | C110: 0.073 | D110: 2013-08-20 | E110: 1.008219178 | F110: 0.00883
A111: ROYAL BK SCOTLAND PLC | B111: 100.83 | C111: 0.034 | D111: 2013-08-23 | E111: 1.016438356 | F111: 0.02905
A112: MERRILL LYNCH CO INC MTN BE | B112: 398.5 | C112: 0 | D112: 2013-08-30 | E112: 1.035616438 | F112: 0
A113: DEERE JOHN CAP CORP MTNS BE | B113: 109.22 | C113: 0.049 | D113: 2013-09-09 | E113: 1.063013699 | F113: -0.00286
A114: DELL INC | B114: 102.76 | C114: 0.014 | D114: 2013-09-10 | E114: 1.065753425 | F114: -0.00151
A115: HEWLETT PACKARD CO | B115: 102.29 | C115: 0.0125 | D115: 2013-09-13 | E115: 1.073972603 | F115: -0.00035
A116: AMERICAN EXPRESS CR CORP INTER | B116: 109.38 | C116: 0.0625 | D116: 2013-09-15 | E116: 1.079452055 | F116: 0.00948
A117: CAROLINA PWR & LT CO | B117: 109.81 | C117: 0.05125 | D117: 2013-09-15 | E117: 1.079452055 | F117: -0.00337
A118: CATERPILLAR FINL SVCS MTNS BE | B118: 112.15 | C118: 0.062 | D118: 2013-09-30 | E118: 1.120547945 | F118: -0.00407
A119: EOG RES INC | B119: 111.19 | C119: 0.06125 | D119: 2013-10-01 | E119: 1.123287671 | F119: 0.00021
A120: NIKE INC MTN BE | B120: 109.26 | C120: 0.047 | D120: 2013-10-01 | E120: 1.123287671 | F120: -0.00329
A121: DEAN WITTER DISCOVER & CO | B121: 108.2 | C121: 0.0675 | D121: 2013-10-15 | E121: 1.161643836 | F121: 0.02251
A122: EBAY INC | B122: 102.46 | C122: 0.00875 | D122: 2013-10-15 | E122: 1.161643836 | F122: -0.00431
A123: GOLDMAN SACHS GROUP INC | B123: 105.05 | C123: 0.0525 | D123: 2013-10-15 | E123: 1.161643836 | F123: 0.0247
A124: PECO ENERGY CO | B124: 110.78 | C124: 0.056 | D124: 2013-10-15 | E124: 1.161643836 | F124: -0.00148
A125: WELLS FARGO & CO NEW | B125: 106.86 | C125: 0.0495 | D125: 2013-10-16 | E125: 1.164383562 | F125: 0.01237
A126: BHP FIN USA LTD | B126: 112.75 | C126: 0.0675 | D126: 2013-11-01 | E126: 1.208219178 | F126: 0.0009
A127: NATIONAL RURAL UTILS COOP FIN | B127: 102.38 | C127: 0.01125 | D127: 2013-11-01 | E127: 1.208219178 | F127: -0.00116
A128: BP CAP MKTS P L C | B128: 109.69 | C128: 0.0525 | D128: 2013-11-07 | E128: 1.224657534 | F128: 0.00224
A129: AT&T INC | B129: 113.09 | C129: 0.067 | D129: 2013-11-15 | E129: 1.246575342 | F129: 5e-05
A130: DAIMLER CHRYSLER NORTH AMER HL | B130: 110.95 | C130: 0.065 | D130: 2013-11-15 | E130: 1.246575342 | F130: 0.0084
A131: VERIZON WIRELESS CAP LLC | B131: 114.36 | C131: 0.07375 | D131: 2013-11-15 | E131: 1.246575342 | F131: 0.00027
A132: PACIFIC GAS & ELEC CO | B132: 111.82 | C132: 0.0625 | D132: 2013-12-01 | E132: =(D132-DATE(2012,8,17))/365 -> 1.290410959 | F132: 0.00317
A133: CITIGROUP INC | B133: 106.56 | C133: 0.06 | D133: 2013-12-13 | E133: 1.323287671 | F133: 0.02663
A134: OCCIDENTAL PETE CORP DEL | B134: 103.68 | C134: 0.0145 | D134: 2013-12-13 | E134: 1.323287671 | F134: -0.00352
A135: DISNEY WALT CO | B135: 110.06 | C135: 0.045 | D135: 2013-12-15 | E135: 1.328767123 | F135: -0.0041
A136: UNION BK CALIF N A MEDIUM TERM | B136: 103.32 | C136: 0.02125 | D136: 2013-12-16 | E136: 1.331506849 | F136: 0.0049
A137: VODAFONE GROUP PLC NEW | B137: 109.92 | C137: 0.05 | D137: 2013-12-16 | E137: 1.331506849 | F137: 0.00134
A138: ROYAL BK SCOTLAND PLC | B138: 99.25 | C138: 0.0325 | D138: 2014-01-11 | E138: 1.402739726 | F138: 0.03619
A139: AMERICAN INTL GROUP INC | B139: 99.78 | C139: 0.0365 | D139: 2014-01-15 | E139: 1.41369863 | F139: 0.03756
A140: ANHEUSER BUSCH COS INC | B140: 109.31 | C140: 0.0495 | D140: 2014-01-15 | E140: 1.41369863 | F140: 0.00533
A141: CATERPILLAR FINL SVCS MTNS BE | B141: 109.64 | C141: 0.046 | D141: 2014-01-15 | E141: 1.41369863 | F141: 0.00053
A142: DIAGEO CAP PLC | B142: 115.45 | C142: 0.07375 | D142: 2014-01-15 | E142: 1.41369863 | F142: 0.00087
A143: GOLDMAN SACHS GROUP INC | B143: 104.76 | C143: 0.0515 | D143: 2014-01-15 | E143: 1.41369863 | F143: 0.02823
A144: POLAND REP | B144: 107.92 | C144: 0.0525 | D144: 2014-01-15 | E144: 1.41369863 | F144: 0.01447
A145: EXPORT IMPORT BK KOREA | B145: 113.71 | C145: 0.08125 | D145: 2014-01-21 | E145: 1.430136986 | F145: 0.01578
A146: BURLINGTON NORTHN SANTA FE CP | B146: 115.03 | C146: 0.07 | D146: 2014-02-01 | E146: 1.460273973 | F146: 0.00056
A147: CONOCOPHILLIPS | B147: 110.55 | C147: 0.0475 | D147: 2014-02-01 | E147: 1.460273973 | F147: -0.00113
A148: MERRILL LYNCH CO INC MTN BE | B148: 103.46 | C148: 0.05 | D148: 2014-02-03 | E148: 1.465753425 | F148: 0.03332
A149: AT&T INC | B149: 110.03 | C149: 0.0485 | D149: 2014-02-15 | E149: 1.498630137 | F149: 0.00286
A150: HONEYWELL INTL INC | B150: 108.99 | C150: 0.03875 | D150: 2014-02-15 | E150: 1.498630137 | F150: -0.00192
A151: LINCOLN NATL CORP IND | B151: 106.46 | C151: 0.0475 | D151: 2014-02-15 | E151: 1.498630137 | F151: 0.01752
A152: WACHOVIA CORP NEW | B152: 107.21 | C152: 0.04875 | D152: 2014-02-15 | E152: 1.498630137 | F152: 0.01538
A153: WELLPOINT INC | B153: 111.66 | C153: 0.06 | D153: 2014-02-15 | E153: 1.498630137 | F153: 0.00667
A154: CATERPILLAR FINL SVCS MTNS BE | B154: 113.09 | C154: 0.06125 | D154: 2014-02-17 | E154: 1.504109589 | F154: 0.00191
A155: WESTERN UN CO | B155: 111.28 | C155: 0.065 | D155: 2014-02-26 | E155: 1.528767123 | F155: 0.01362
A156: AMERICA MOVIL SAB DE CV | B156: 111 | C156: 0.055 | D156: 2014-03-01 | E156: 1.536986301 | F156: 0.00572
A157: HEWLETT PACKARD CO | B157: 112.44 | C157: 0.06125 | D157: 2014-03-01 | E157: 1.536986301 | F157: 0.00552
A158: SNAP ON INC | B158: 111.58 | C158: 0.0585 | D158: 2014-03-01 | E158: 1.536986301 | F158: 0.00656
A159: COCA COLA ENTERPRISES INC | B159: 116 | C159: 0.07375 | D159: 2014-03-03 | E159: 1.542465753 | F159: 0.00256
A160: BOEING CO | B160: 111.64 | C160: 0.05 | D160: 2014-03-15 | E160: 1.575342466 | F160: -0.00081
A161: CORNING INC | B161: 111.83 | C161: 0.059 | D161: 2014-03-15 | E161: 1.575342466 | F161: 0.00681
A162: PHILIP MORRIS INTL INC | B162: 115.12 | C162: 0.06875 | D162: 2014-03-17 | E162: 1.580821918 | F162: 0.0026
A163: TEVA PHARMACEUTICAL FIN III BV | B163: 102.21 | C163: 0.017 | D163: 2014-03-21 | E163: 1.591780822 | F163: 0.00732
A164: VERIZON COMMUNICATIONS INC | B164: 104.89 | C164: 0.0195 | D164: 2014-03-28 | E164: 1.610958904 | F164: -0.00147
A165: BHP BILLITON FIN USA LTD | B165: 112.15 | C165: 0.055 | D165: 2014-04-01 | E165: 1.621917808 | F165: 0.00273
A166: MORGAN STANLEY | B166: 97.82 | C166: 0.0475 | D166: 2014-04-01 | E166: 1.621917808 | F166: 0.05756
A167: DELL INC | B167: 112.73 | C167: 0.05625 | D167: 2014-04-15 | E167: 1.660273973 | F167: 0.00241
A168: GLAXOSMITHKLINE CAP INC | B168: 110.33 | C168: 0.04375 | D168: 2014-04-15 | E168: 1.660273973 | F168: 0.0002
A169: NSTAR ELEC CO | B169: 111 | C169: 0.04875 | D169: 2014-04-15 | E169: 1.660273973 | F169: 0.00223
A170: WELLS FARGO & CO NEW | B170: 107.67 | C170: 0.04625 | D170: 2014-04-15 | E170: 1.660273973 | F170: 0.01328
A171: DEERE & CO | B171: 116.52 | C171: 0.0695 | D171: 2014-04-25 | E171: 1.687671233 | F171: 0.00062
A172: BB&T CORPORATION | B172: 111.9 | C172: 0.057 | D172: 2014-04-30 | E172: 1.701369863 | F172: 0.00717
A173: DU PONT E I DE NEMOURS & CO | B173: 113.16 | C173: 0.04875 | D173: 2014-04-30 | E173: 1.701369863 | F173: -0.00535
A174: GOLDMAN SACHS GRP INC MTN BE | B174: 105.73 | C174: 0.06 | D174: 2014-05-01 | E174: 1.704109589 | F174: 0.03505
A175: RIO TINTO FIN USA LTD | B175: 119.39 | C175: 0.0895 | D175: 2014-05-01 | E175: 1.704109589 | F175: 0.0083
A176: CITIGROUP INC | B176: 106.25 | C176: 0.05125 | D176: 2014-05-05 | E176: 1.715068493 | F176: 0.02455
A177: BP CAP MKTS P L C | B177: 107.53 | C177: 0.03625 | D177: 2014-05-08 | E177: 1.723287671 | F177: 0.00512
A178: MORGAN STANLEY | B178: 101.98 | C178: 0.06 | D178: 2014-05-13 | E178: 1.736986301 | F178: 0.05128
A179: BANK AMER CORP | B179: 103.22 | C179: 0.07375 | D179: 2014-05-15 | E179: 1.742465753 | F179: 0.05946
A180: TEXAS INSTRS INC | B180: 103.5 | C180: 0.01375 | D180: 2014-05-15 | E180: 1.742465753 | F180: -0.0005
A181: ALLSTATE CORP | B181: 114.03 | C181: 0.062 | D181: 2014-05-16 | E181: 1.745205479 | F181: 0.00452
A182: PNC FUNDING CORP | B182: 105.93 | C182: 0.03 | D182: 2014-05-19 | E182: 1.753424658 | F182: 0.00576
A183: AMERICAN EXPRESS CO | B183: 113.99 | C183: 0.0725 | D183: 2014-05-20 | E183: 1.756164384 | F183: 0.01461
A184: CATERPILLAR FINL SVCS MTNS BE | B184: 103.88 | C184: 0.01375 | D184: 2014-05-20 | E184: 1.756164384 | F184: -0.0019
A185: BARRICK GOLD CORP | B185: 103.36 | C185: 0.0175 | D185: 2014-05-30 | E185: 1.783561644 | F185: 0.00395
A186: NORDSTROM INC | B186: 114.72 | C186: 0.0675 | D186: 2014-06-01 | E186: 1.789041096 | F186: 0.0079
A187: SCHWAB CHARLES CORP NEW | B187: 111.37 | C187: 0.0495 | D187: 2014-06-01 | E187: 1.789041096 | F187: 0.00375
A188: HEWLETT PACKARD CO | B188: 110.45 | C188: 0.0475 | D188: 2014-06-02 | E188: 1.791780822 | F188: 0.0054
A189: VODAFONE GROUP PLC NEW | B189: 108.66 | C189: 0.0415 | D189: 2014-06-10 | E189: 1.81369863 | F189: 0.00685
A190: BANK OF AMERICA CORPORATION | B190: 101.69 | C190: 0.05375 | D190: 2014-06-15 | E190: 1.82739726 | F190: 0.04661
A191: HSBC FIN CORP HSBC FIN | B191: 101 | C191: 0.0195 | D191: 2014-06-15 | E191: 1.82739726 | F191: 0.01547
A192: METLIFE INC | B192: 110.61 | C192: 0.055 | D192: 2014-06-15 | E192: 1.82739726 | F192: 0.01241
A193: DISNEY WALT CO MTNS BE | B193: 115.51 | C193: 0.062 | D193: 2014-06-20 | E193: 1.84109589 | F193: 0.00114
A194: ANALOG DEVICES INC | B194: 112.03 | C194: 0.05 | D194: 2014-07-01 | E194: 1.871232877 | F194: 0.00319
A195: ORACLE CORP | B195: 109.98 | C195: 0.0375 | D195: 2014-07-08 | E195: 1.890410959 | F195: -0.00079
A196: ANHEUSER BUSCH INBEV WORLDWIDE | B196: 102.91 | C196: 0.015 | D196: 2014-07-14 | E196: =(D196-DATE(2012,8,17))/365 -> 1.906849315 | F196: 0.00381
A197: GOLDMAN SACHS GRP INC MTN BE | B197: 105.25 | C197: 0.042 | D197: 2014-07-15 | E197: 1.909589041 | F197: 0.0213
A198: MERRILL LYNCH CO INC MTN BE | B198: 101.86 | C198: 0.0545 | D198: 2014-07-15 | E198: 1.909589041 | F198: 0.04688
A199: MORGAN STANLEY | B199: 95.44 | C199: 0.02875 | D199: 2014-07-28 | E199: 1.945205479 | F199: 0.04717
A200: WACHOVIA CORP NEW | B200: 107.75 | C200: 0.0525 | D200: 2014-08-01 | E200: 1.956164384 | F200: 0.02239
... 807 more rows

Sheet Page 81, bottom
A1: COMPUTING MERCK'S rD FROM THE A YIELD CURVE
A2: Average time to maturity (years) | B2: 7
A3: Yield | B3: =0.000008*B2^3 - 0.0004*B2^2 + 0.008*B2 + 0.0005 -> 0.039644 | C3: =getformula(B3) -> <-- =0.000008*B2^3 - 0.0004*B2^2 + 0.008*B2 + 0.0005

Sheet Page 84, top
A1: THE GORDON MODEL COST OF EQUITY
A2: Current share price, P0 | B2: 60
A3: Current dividend, Div0 | B3: 3
A4: Anticipated dividend growth rate, g | B4: 0.12
A5: Gordon model cost of equity, rE | B5: =B3*(1+B4)/B2+B4 -> 0.176 | C5: =getformula(B5) -> <-- =B3*(1+B4)/B2+B4

Sheet Page 84, bottom
A1: MERCK DIVIDEND HISTORY
A2: Date | B2: Dividend per share | D2: Dividend growth
A3: 2002-09-04 | B3: 0.36 | D3: Whole period
A4: 2002-12-04 | B4: 0.36 | D4: Quarterly growth | E4: =(B43/B3)^(1/40)-1 -> 0.003861202304 | F4: =getformula(E4) -> <-- =(B43/B3)^(1/40)-1
A5: 2003-03-05 | B5: 0.36 | D5: Annual growth | E5: =(1+E4)^4-1 -> 0.015534493 | F5: =getformula(E5) -> <-- =(1+E4)^4-1
A6: 2003-06-04 | B6: 0.36
A7: 2003-08-20 | B7: 2.876 | D7: Last 5 years
A8: 2003-09-03 | B8: 0.37 | D8: Quarterly growth | E8: =(B43/B23)^(1/20)-1 -> 0.005016714713 | F8: =getformula(E8) -> <-- =(B43/B23)^(1/20)-1
A9: 2003-12-03 | B9: 0.37 | D9: Annual growth | E9: =(1+E8)^4-1 -> 0.02021836908 | F9: =getformula(E9) -> <-- =(1+E8)^4-1
A10: 2004-03-03 | B10: 0.37
A11: 2004-06-02 | B11: 0.37
A12: 2004-09-01 | B12: 0.38
A13: 2004-12-01 | B13: 0.38
A14: 2005-03-02 | B14: 0.38
A15: 2005-06-01 | B15: 0.38
A16: 2005-08-31 | B16: 0.38
A17: 2005-11-30 | B17: 0.38
A18: 2006-03-08 | B18: 0.38
A19: 2006-05-31 | B19: 0.38
A20: 2006-08-30 | B20: 0.38
A21: 2006-12-06 | B21: 0.38
A22: 2007-03-07 | B22: 0.38
A23: 2007-06-06 | B23: 0.38
A24: 2007-09-05 | B24: 0.38
A25: 2007-12-05 | B25: 0.38
A26: 2008-03-05 | B26: 0.38
A27: 2008-06-04 | B27: 0.38
A28: 2008-09-03 | B28: 0.38
A29: 2008-12-03 | B29: 0.38
A30: 2009-03-04 | B30: 0.38
A31: 2009-06-04 | B31: 0.38
A32: 2009-09-02 | B32: 0.38
A33: 2009-12-11 | B33: 0.38
A34: 2010-03-11 | B34: 0.38
A35: 2010-06-11 | B35: 0.38
A36: 2010-09-13 | B36: 0.38
A37: 2010-12-13 | B37: 0.38
A38: 2011-03-11 | B38: 0.38
A39: 2011-06-13 | B39: 0.38
A40: 2011-09-13 | B40: 0.38
A41: 2011-12-13 | B41: 0.42
A42: 2012-03-13 | B42: 0.42
A43: 2012-06-13 | B43: 0.42

Sheet Page 85
A1: COMPUTING MERCK'S rE WITH THE GORDON MODEL
A2: Merck stock price P0, 29 June 2012 | B2: 41.75
A3: Current dividend
A4: Quarterly | B4: 0.42
A5: Annualized dividend, Div0 | B5: =4*B4 -> 1.68 | C5: =getformula(B5) -> <-- =4*B4
A6: Dividend growth rate, g
A7: Last 5 years | B7: 0.0155
A8: Last 10 years | B8: 0.0202
A10: Gordon model cost of equity, rE
A11: Using last 5 years' growth | B11: =$B$5/$B$2*(1+B7)+B7 -> 0.05636323353 | C11: =getformula(B11) -> <-- =$B$5/$B$2*(1+B7)+B7
A12: Using last 10 years' growth | B12: =$B$5/$B$2*(1+B8)+B8 -> 0.06125235928 | C12: =getformula(B12) -> <-- =$B$5/$B$2*(1+B8)+B8

Sheet Page 86
A1: GORDON MODEL FOR MERCK'S EQUITY PAYOUTS
B2: Dividends | C2: Share repurchases | D2: Proceeds from stock option exercise | E2: Total equity payout
A3: 1905-06-29 | B3: 3307.3 | C3: 1429.7 | D3: 898.6 | E3: =B3+C3-D3 -> 3838.4 | F3: =getformula(E3) -> <-- =B3+C3-D3
A4: 1905-06-30 | B4: 3278.5 | C4: 2725 | D4: 102.3 | E4: =B4+C4-D4 -> 5901.2
A5: 1905-07-01 | B5: 3215 | C5: 0 | D5: 186 | E5: 3029
A6: 1905-07-02 | B6: 4734 | C6: 1593 | D6: 363 | E6: 5964
A7: 1905-07-03 | B7: 4818 | C7: 1921 | D7: 321 | E7: 6418
A9: Growth | B9: =(E7/E3)^(1/4)-1 -> 0.1371358997 | C9: =getformula(B9) -> <-- =(E7/E3)^(1/4)-1
A11: Computing the Gordon model cost of equity rE based on total equity payouts
A12: Shares outstanding (million) | B12: =(3576948356-536109713)/1000000 -> 3040.838643
A13: Price per share | B13: 41.75
A14: Market value of equity | B14: =B12*B13 -> 126955.0133 | C14: =getformula(B14)&", $ million" -> <-- =B12*B13, $ million
A16: Gordon model cost of equity, rE | B16: =E7*(1+B9)/B14+B9 -> 0.1946219178 | C16: =getformula(B16) -> <-- =E7*(1+B9)/B14+B9

Sheet Page 88
A1: THE GORDON MODEL WITH TWO GROWTH RATES Using the TwoStageGordon function
A2: Current dividend, Div0 | B2: 3
A3: Growth rate g1, years 1-m ("supernormal") | B3: 0.35
A4: Growth rate g2, years 6 - ¥ | B4: 0.08
A5: Number of supernormal growth years, m | B5: 5
A6: Share price | B6: 30
A7: Cost of equity | B7: =twostagegordon(B6,B2,B3,5,B4) -> 0.3276272719 | C7: =getformula(B7) -> <-- =twostagegordon(B6,B2,B3,5,B4)

Sheet Page 88, bottom
A1: MERCK'S COST OF EQUITY USING THE TWO-STAGE GORDON MODEL
B2: Dividends | C2: Share repurchases | D2: Proceeds from stock option exercise | E2: Total equity payout
A3: 1905-06-29 | B3: 3307.3 | C3: 1429.7 | D3: 898.6 | E3: =B3+C3-D3 -> 3838.4 | F3: =getformula(E3) -> <-- =B3+C3-D3
A4: 1905-06-30 | B4: 3278.5 | C4: 2725 | D4: 102.3 | E4: =B4+C4-D4 -> 5901.2
A5: 1905-07-01 | B5: 3215 | C5: 0 | D5: 186 | E5: 3029
A6: 1905-07-02 | B6: 4734 | C6: 1593 | D6: 363 | E6: 5964
A7: 1905-07-03 | B7: 4818 | C7: 1921 | D7: 321 | E7: 6418
A9: Growth | B9: =(E7/E3)^(1/4)-1 -> 0.1371358997 | C9: =getformula(B9) -> <-- =(E7/E3)^(1/4)-1
A11: Computing the Gordon model cost of equity rE based on total equity payouts and the 2-stage Gordon model
A12: Shares outstanding (million) | B12: =(3576948356-536109713)/1000000 -> 3040.838643
A13: Price per share | B13: 41.75
A14: Market value of equity | B14: =B12*B13 -> 126955.0133 | C14: =getformula(B14)&", $ million" -> <-- =B12*B13, $ million
A16: High growth rate, ghigh
A17: Number of high-growth years, m | B17: 2
A18: Normal growth rate, gnormal | B18: 0.05 | C18: <-- Author guess
A20: Cost of equity, rE using the function twostagegordon | B20: =twostagegordon(B14,E7,B9,B17,B18) -> 0.1119906385 | C20: =getformula(B20) -> <-- =twostagegordon(B14,E7,B9,B17,B18)

Sheet Pages 91,93
A1: COMPUTING THE BETA FOR MERCK monthly returns for Merck and SP500, 2007-2012
A2: Alpha | B2: =INTERCEPT(E11:E70,F11:F70) -> 0.001813135561 | C2: =getformula(B2) -> <-- =INTERCEPT(E11:E70,F11:F70) | I2: Computing beta using Covar and Var
A3: Beta | B3: =SLOPE(E11:E70,F11:F70) -> 0.6435028854 | C3: =getformula(B3) -> <-- =SLOPE(E11:E70,F11:F70) | I3: Covar(Merck,SP500) | J3: =_xlfn.COVARIANCE.S(E11:E70,F11:F70) -> 0.002056268902 | K3: =getformula(J3) -> <-- =COVARIANCE.S(E11:E70,F11:F70)
A4: R-squared | B4: =RSQ(E11:E70,F11:F70) -> 0.2245208046 | C4: =getformula(B4) -> <-- =RSQ(E11:E70,F11:F70) | I4: Variance(SP500) | J4: =_xlfn.VAR.S(F11:F70) -> 0.003195430741 | K4: =getformula(J4) -> <-- =VAR.S(F11:F70)
A5: t-statistic for alpha | B5: =tintercept(E11:E70,F11:F70) -> 0.2058900074 | C5: =getformula(B5) -> <-- =tintercept(E11:E70,F11:F70) | I5: Beta | J5: =J3/J4 -> 0.6435028854 | K5: =getformula(J5) -> <-- =J3/J4
A6: t-statistic for beta | B6: =tslope(E11:E70,F11:F70) -> 4.097860936 | C6: =getformula(B6) -> <-- =tslope(E11:E70,F11:F70)
B8: Prices | E8: Returns
A9: Date | B9: Merck | C9: SP500 | E9: Merck | F9: SP500 | J9: ="Cells "&CHAR(COLUMN(J13)+64)&ROW(J13)&":"&CHAR(COLUMN(K17)+64)&ROW(K17)&"created with the formula "&ggetformula(J13) -> Cells J13:K17created with the formula {=LINEST(E11:E70,F11:F70,,1)}
A10: 2007-06-01 | B10: 39.9 | C10: 1503.35
A11: 2007-07-02 | B11: 39.78 | C11: 1455.27 | E11: =LN(B11/B10) -> -0.00301205047 | F11: =LN(C11/C10) -> -0.03250450084 | G11: =getformula(F11) -> <-- =LN(C11/C10)
A12: 2007-08-01 | B12: 40.2 | C12: 1473.99 | E12: =LN(B12/B11) -> 0.0105027222 | F12: 0.01278155907 | G12: =getformula(F12) -> <-- =LN(C12/C11) | J12: Slope | K12: Intercept
A13: 2007-09-04 | B13: 41.73 | C13: 1526.75 | E13: 0.03735329898 | F13: 0.03516828364 | G13: =getformula(F13) -> <-- =LN(C13/C12) | I13: Slope --> | J13: =LINEST(E11:E70,F11:F70,,1) -> 0.6435028854 | K13: 0.001813135561 | L13: <-- Intercept
A14: 2007-10-01 | B14: 47.04 | C14: 1549.38 | E14: 0.119778009 | F14: 0.01471355779 | I14: Standard error of slope --> | J14: 0.1570338514 | K14: 0.00880633103 | L14: <-- Standard error of intercept
A15: 2007-11-01 | B15: 47.93 | C15: 1481.14 | E15: 0.01874330958 | F15: -0.04504278937 | I15: R-squared --> | J15: 0.2245208046 | K15: 0.0681842382 | L15: <-- Standard error of y values
A16: 2007-12-03 | B16: 47.23 | C16: 1468.36 | E16: -0.01471232926 | F16: -0.008665929805 | I16: F statistic --> | J16: 16.79246425 | K16: 58 | L16: <-- Degrees of freedom
A17: 2008-01-02 | B17: 37.47 | C17: 1378.55 | E17: -0.2314886711 | F17: -0.0631139096 | I17: SSxy --> | J17: 0.07806968333 | K17: 0.2696472397 | L17: <-- SSE = Residual sum of squares
A18: 2008-02-01 | B18: 36 | C18: 1330.63 | E18: -0.04002167435 | F18: -0.03537970784
A19: 2008-03-03 | B19: 31.11 | C19: 1322.7 | E19: -0.1459896275 | F19: -0.005977412241
A20: 2008-04-01 | B20: 31.19 | C20: 1385.59 | E20: 0.00256821971 | F20: 0.04645093966
A21: 2008-05-01 | B21: 31.94 | C21: 1400.38 | E21: 0.02376161217 | F21: 0.01061758665
A22: 2008-06-02 | B22: 31.21 | C22: 1280 | E22: -0.0231205865 | F22: -0.08988355043
A23: 2008-07-01 | B23: 27.24 | C23: 1267.38 | E23: -0.136052075 | F23: -0.009908300486
A24: 2008-08-01 | B24: 29.54 | C24: 1282.83 | E24: 0.08105879582 | F24: 0.01211679746
A25: 2008-09-02 | B25: 26.42 | C25: 1166.36 | E25: -0.111623978 | F25: -0.09518078677
A26: 2008-10-01 | B26: 25.91 | C26: 968.75 | E26: -0.01949230452 | F26: -0.1856364864
A27: 2008-11-03 | B27: 22.37 | C27: 896.24 | E27: -0.1469082191 | F27: -0.07779834642
A28: 2008-12-01 | B28: 25.82 | C28: 903.25 | E28: 0.1434286099 | F28: 0.007791135777
A29: 2009-01-02 | B29: 24.25 | C29: 825.88 | E29: -0.06273276804 | F29: -0.08954988551
A30: 2009-02-02 | B30: 20.55 | C30: 735.09 | E30: -0.1655556764 | F30: -0.1164565438
A31: 2009-03-02 | B31: 23.1 | C31: 797.87 | E31: 0.1169716766 | F31: 0.08195273621
A32: 2009-04-01 | B32: 20.93 | C32: 872.81 | E32: -0.09864908107 | F32: 0.08977221492
A33: 2009-05-01 | B33: 23.81 | C33: 919.14 | E33: 0.128922124 | F33: 0.05172055842
A34: 2009-06-01 | B34: 24.48 | C34: 919.32 | E34: 0.02775079715 | F34: 0.0001958160641
A35: 2009-07-01 | B35: 26.28 | C35: 987.48 | E35: 0.07095173597 | F35: 0.07152197709
A36: 2009-08-03 | B36: 28.39 | C36: 1020.62 | E36: 0.07722877687 | F36: 0.03300932135
A37: 2009-09-01 | B37: 28.03 | C37: 1057.08 | E37: -0.01276160531 | F37: 0.03510010416
A38: 2009-10-01 | B38: 27.41 | C38: 1036.19 | E38: -0.02236745486 | F38: -0.01995986522
A39: 2009-11-02 | B39: 32.09 | C39: 1095.63 | E39: 0.1576365448 | F39: 0.05577901558
A40: 2009-12-01 | B40: 32.71 | C40: 1115.1 | E40: 0.01913638643 | F40: 0.0176145467
A41: 2010-01-04 | B41: 34.18 | C41: 1073.87 | E41: 0.04395983614 | F41: -0.03767514106
A42: 2010-02-01 | B42: 33.01 | C42: 1104.49 | E42: -0.03483013182 | F42: 0.02811474404
A43: 2010-03-01 | B43: 33.79 | C43: 1169.43 | E43: =LN(B43/B42) -> 0.02335435486 | F43: 0.05713276065
A44: 2010-04-01 | B44: 31.7 | C44: 1186.69 | E44: -0.06384821984 | F44: 0.01465146831
A45: 2010-05-03 | B45: 30.48 | C45: 1089.41 | E45: -0.03924595006 | F45: -0.08553165363
A46: 2010-06-01 | B46: 31.98 | C46: 1030.71 | E46: 0.04803997659 | F46: -0.05538838013
A47: 2010-07-01 | B47: 31.52 | C47: 1101.6 | E47: -0.01448844242 | F47: 0.06651578327
A48: 2010-08-02 | B48: 32.16 | C48: 1049.33 | E48: 0.02010117932 | F48: -0.04861180317
A49: 2010-09-01 | B49: 34.02 | C49: 1141.2 | E49: 0.05622514266 | F49: 0.0839284751
A50: 2010-10-01 | B50: 33.56 | C50: 1183.26 | E50: -0.01361370537 | F50: 0.03619300071
A51: 2010-11-01 | B51: 31.86 | C51: 1180.55 | E51: -0.05198357712 | F51: -0.002292909487
A52: 2010-12-01 | B52: 33.66 | C52: 1257.64 | E52: 0.05495888428 | F52: 0.06325651722
A53: 2011-01-03 | B53: 30.98 | C53: 1286.12 | E53: -0.08296835377 | F53: 0.02239298526
A54: 2011-02-01 | B54: 30.42 | C54: 1327.22 | E54: -0.01824154816 | F54: 0.03145659504
A55: 2011-03-01 | B55: 31.19 | C55: 1325.83 | E55: 0.02499724379 | F55: -0.001047850683
A56: 2011-04-01 | B56: 33.97 | C56: 1363.61 | E56: 0.08538025155 | F56: 0.02809691637
A57: 2011-05-02 | B57: 34.73 | C57: 1345.2 | E57: 0.02212608458 | F57: -0.0135928939
A58: 2011-06-01 | B58: 33.71 | C58: 1320.64 | E58: -0.02980933751 | F58: -0.0184262333
A59: 2011-07-01 | B59: 32.6 | C59: 1292.28 | E59: -0.03348224087 | F59: -0.02170836744
A60: 2011-08-01 | B60: 31.62 | C60: 1218.89 | E60: -0.03052245659 | F60: -0.05846749162
A61: 2011-09-01 | B61: 31.61 | C61: 1131.42 | E61: -0.0003163055538 | F61: -0.07446712754
A62: 2011-10-03 | B62: 33.35 | C62: 1253.3 | E62: 0.05358424613 | F62: 0.1023065917
A63: 2011-11-01 | B63: 34.56 | C63: 1246.96 | E63: 0.03563917157 | F63: -0.005071483437
A64: 2011-12-01 | B64: 36.88 | C64: 1257.6 | E64: 0.06497245475 | F64: 0.008496553494
A65: 2012-01-03 | B65: 37.44 | C65: 1312.41 | E65: 0.01507025292 | F65: 0.04265999901
A66: 2012-02-01 | B66: 37.34 | C66: 1365.68 | E66: -0.002674513496 | F66: 0.03978733139
A67: 2012-03-01 | B67: 37.98 | C67: 1408.47 | E67: 0.01699456727 | F67: 0.03085153576
A68: 2012-04-02 | B68: 38.82 | C68: 1397.91 | E68: 0.02187587236 | F68: -0.007525744796
A69: 2012-05-01 | B69: 37.17 | C69: 1310.33 | E69: -0.04343359343 | F69: -0.06469925017
A70: 2012-06-01 | B70: 41.75 | C70: 1362.16 | E70: 0.116197467 | F70: 0.03879266124

Sheet Page 95
A1: COMPUTING THE BETA FOR MERCK monthly returns for Merck and SP500, 2007-2012
A2: Alpha | B2: =INTERCEPT(E11:E70,F11:F70) -> 0.001813135561 | C2: =getformula(B2) -> <-- =INTERCEPT(E11:E70,F11:F70)
A3: Beta | B3: =SLOPE(E11:E70,F11:F70) -> 0.6435028854 | C3: =getformula(B3) -> <-- =SLOPE(E11:E70,F11:F70) | I3: SUMMARY OUTPUT
A4: R-squared | B4: =RSQ(E11:E70,F11:F70) -> 0.2245208046 | C4: =getformula(B4) -> <-- =RSQ(E11:E70,F11:F70)
A5: t-statistic for alpha | B5: =tintercept(E11:E70,F11:F70) -> 0.2058900074 | C5: =getformula(B5) -> <-- =tintercept(E11:E70,F11:F70) | I5: Regression Statistics
A6: t-statistic for beta | B6: =tslope(E11:E70,F11:F70) -> 4.097860936 | C6: =getformula(B6) -> <-- =tslope(E11:E70,F11:F70) | I6: Multiple R | J6: 0.4738362635
I7: R Square | J7: 0.2245208046
B8: Prices | E8: Returns | I8: Adjusted R Square | J8: 0.2111504737
A9: Date | B9: Merck | C9: SP500 | E9: Merck | F9: SP500 | I9: Standard Error | J9: 0.0681842382
A10: 2007-06-01 | B10: 39.9 | C10: 1503.35 | I10: Observations | J10: 60
A11: 2007-07-02 | B11: 39.78 | C11: 1455.27 | E11: =LN(B11/B10) -> -0.00301205047 | F11: =LN(C11/C10) -> -0.03250450084 | G11: =getformula(F11) -> <-- =LN(C11/C10)
A12: 2007-08-01 | B12: 40.2 | C12: 1473.99 | E12: =LN(B12/B11) -> 0.0105027222 | F12: 0.01278155907 | G12: =getformula(F12) -> <-- =LN(C12/C11) | I12: ANOVA
A13: 2007-09-04 | B13: 41.73 | C13: 1526.75 | E13: 0.03735329898 | F13: 0.03516828364 | G13: =getformula(F13) -> <-- =LN(C13/C12) | J13: df | K13: SS | L13: MS | M13: F | N13: Significance F
A14: 2007-10-01 | B14: 47.04 | C14: 1549.38 | E14: 0.119778009 | F14: 0.01471355779 | I14: Regression | J14: 1 | K14: 0.07806968333 | L14: 0.07806968333 | M14: 16.79246425 | N14: 0.0001312321529
A15: 2007-11-01 | B15: 47.93 | C15: 1481.14 | E15: 0.01874330958 | F15: -0.04504278937 | I15: Residual | J15: 58 | K15: 0.2696472397 | L15: 0.004649090339
A16: 2007-12-03 | B16: 47.23 | C16: 1468.36 | E16: -0.01471232926 | F16: -0.008665929805 | I16: Total | J16: 59 | K16: 0.347716923
A17: 2008-01-02 | B17: 37.47 | C17: 1378.55 | E17: -0.2314886711 | F17: -0.0631139096
A18: 2008-02-01 | B18: 36 | C18: 1330.63 | E18: -0.04002167435 | F18: -0.03537970784 | J18: Coefficients | K18: Standard Error | L18: t Stat | M18: P-value | N18: Lower 95% | O18: Upper 95% | P18: Lower 95.0% | Q18: Upper 95.0%
A19: 2008-03-03 | B19: 31.11 | C19: 1322.7 | E19: -0.1459896275 | F19: -0.005977412241 | I19: Intercept | J19: 0.001813135561 | K19: 0.00880633103 | L19: 0.2058900074 | M19: 0.8375978179 | N19: -0.01581465123 | O19: 0.01944092235 | P19: -0.01581465123 | Q19: 0.01944092235
A20: 2008-04-01 | B20: 31.19 | C20: 1385.59 | E20: 0.00256821971 | F20: 0.04645093966 | I20: X Variable 1 | J20: 0.6435028854 | K20: 0.1570338514 | L20: 4.097860936 | M20: 0.0001312321529 | N20: 0.3291654794 | O20: 0.9578402914 | P20: 0.3291654794 | Q20: 0.9578402914
A21: 2008-05-01 | B21: 31.94 | C21: 1400.38 | E21: 0.02376161217 | F21: 0.01061758665
A22: 2008-06-02 | B22: 31.21 | C22: 1280 | E22: -0.0231205865 | F22: -0.08988355043
A23: 2008-07-01 | B23: 27.24 | C23: 1267.38 | E23: -0.136052075 | F23: -0.009908300486
A24: 2008-08-01 | B24: 29.54 | C24: 1282.83 | E24: 0.08105879582 | F24: 0.01211679746
A25: 2008-09-02 | B25: 26.42 | C25: 1166.36 | E25: -0.111623978 | F25: -0.09518078677
A26: 2008-10-01 | B26: 25.91 | C26: 968.75 | E26: -0.01949230452 | F26: -0.1856364864
A27: 2008-11-03 | B27: 22.37 | C27: 896.24 | E27: -0.1469082191 | F27: -0.07779834642
A28: 2008-12-01 | B28: 25.82 | C28: 903.25 | E28: 0.1434286099 | F28: 0.007791135777
A29: 2009-01-02 | B29: 24.25 | C29: 825.88 | E29: -0.06273276804 | F29: -0.08954988551
A30: 2009-02-02 | B30: 20.55 | C30: 735.09 | E30: -0.1655556764 | F30: -0.1164565438
A31: 2009-03-02 | B31: 23.1 | C31: 797.87 | E31: 0.1169716766 | F31: 0.08195273621
A32: 2009-04-01 | B32: 20.93 | C32: 872.81 | E32: -0.09864908107 | F32: 0.08977221492
A33: 2009-05-01 | B33: 23.81 | C33: 919.14 | E33: 0.128922124 | F33: 0.05172055842
A34: 2009-06-01 | B34: 24.48 | C34: 919.32 | E34: 0.02775079715 | F34: 0.0001958160641
A35: 2009-07-01 | B35: 26.28 | C35: 987.48 | E35: 0.07095173597 | F35: 0.07152197709
A36: 2009-08-03 | B36: 28.39 | C36: 1020.62 | E36: 0.07722877687 | F36: 0.03300932135
A37: 2009-09-01 | B37: 28.03 | C37: 1057.08 | E37: -0.01276160531 | F37: 0.03510010416
A38: 2009-10-01 | B38: 27.41 | C38: 1036.19 | E38: -0.02236745486 | F38: -0.01995986522
A39: 2009-11-02 | B39: 32.09 | C39: 1095.63 | E39: 0.1576365448 | F39: 0.05577901558
A40: 2009-12-01 | B40: 32.71 | C40: 1115.1 | E40: 0.01913638643 | F40: 0.0176145467
A41: 2010-01-04 | B41: 34.18 | C41: 1073.87 | E41: 0.04395983614 | F41: -0.03767514106
A42: 2010-02-01 | B42: 33.01 | C42: 1104.49 | E42: -0.03483013182 | F42: 0.02811474404
A43: 2010-03-01 | B43: 33.79 | C43: 1169.43 | E43: =LN(B43/B42) -> 0.02335435486 | F43: 0.05713276065
A44: 2010-04-01 | B44: 31.7 | C44: 1186.69 | E44: -0.06384821984 | F44: 0.01465146831
A45: 2010-05-03 | B45: 30.48 | C45: 1089.41 | E45: -0.03924595006 | F45: -0.08553165363
A46: 2010-06-01 | B46: 31.98 | C46: 1030.71 | E46: 0.04803997659 | F46: -0.05538838013
A47: 2010-07-01 | B47: 31.52 | C47: 1101.6 | E47: -0.01448844242 | F47: 0.06651578327
A48: 2010-08-02 | B48: 32.16 | C48: 1049.33 | E48: 0.02010117932 | F48: -0.04861180317
A49: 2010-09-01 | B49: 34.02 | C49: 1141.2 | E49: 0.05622514266 | F49: 0.0839284751
A50: 2010-10-01 | B50: 33.56 | C50: 1183.26 | E50: -0.01361370537 | F50: 0.03619300071
A51: 2010-11-01 | B51: 31.86 | C51: 1180.55 | E51: -0.05198357712 | F51: -0.002292909487
A52: 2010-12-01 | B52: 33.66 | C52: 1257.64 | E52: 0.05495888428 | F52: 0.06325651722
A53: 2011-01-03 | B53: 30.98 | C53: 1286.12 | E53: -0.08296835377 | F53: 0.02239298526
A54: 2011-02-01 | B54: 30.42 | C54: 1327.22 | E54: -0.01824154816 | F54: 0.03145659504
A55: 2011-03-01 | B55: 31.19 | C55: 1325.83 | E55: 0.02499724379 | F55: -0.001047850683
A56: 2011-04-01 | B56: 33.97 | C56: 1363.61 | E56: 0.08538025155 | F56: 0.02809691637
A57: 2011-05-02 | B57: 34.73 | C57: 1345.2 | E57: 0.02212608458 | F57: -0.0135928939
A58: 2011-06-01 | B58: 33.71 | C58: 1320.64 | E58: -0.02980933751 | F58: -0.0184262333
A59: 2011-07-01 | B59: 32.6 | C59: 1292.28 | E59: -0.03348224087 | F59: -0.02170836744
A60: 2011-08-01 | B60: 31.62 | C60: 1218.89 | E60: -0.03052245659 | F60: -0.05846749162
A61: 2011-09-01 | B61: 31.61 | C61: 1131.42 | E61: -0.0003163055538 | F61: -0.07446712754
A62: 2011-10-03 | B62: 33.35 | C62: 1253.3 | E62: 0.05358424613 | F62: 0.1023065917
A63: 2011-11-01 | B63: 34.56 | C63: 1246.96 | E63: 0.03563917157 | F63: -0.005071483437
A64: 2011-12-01 | B64: 36.88 | C64: 1257.6 | E64: 0.06497245475 | F64: 0.008496553494
A65: 2012-01-03 | B65: 37.44 | C65: 1312.41 | E65: 0.01507025292 | F65: 0.04265999901
A66: 2012-02-01 | B66: 37.34 | C66: 1365.68 | E66: -0.002674513496 | F66: 0.03978733139
A67: 2012-03-01 | B67: 37.98 | C67: 1408.47 | E67: 0.01699456727 | F67: 0.03085153576
A68: 2012-04-02 | B68: 38.82 | C68: 1397.91 | E68: 0.02187587236 | F68: -0.007525744796
A69: 2012-05-01 | B69: 37.17 | C69: 1310.33 | E69: -0.04343359343 | F69: -0.06469925017
A70: 2012-06-01 | B70: 41.75 | C70: 1362.16 | E70: 0.116197467 | F70: 0.03879266124

Sheet Page 96
A1: COMPUTING THE COST OF EQUITY FOR MERCK Classic CAPM: rE = rf + b*[E(rM) - rf ]
A2: Merck beta, b | B2: ='Pages 91,93'!B3 -> 0.6435028854
A3: Risk-free rate, rf | B3: 0.02
A4: Expected market return, E(rM) | B4: 0.08
A5: Merck cost of equity, rE | B5: =B3+B2*(B4-B3) -> 0.05861017312 | C5: =getformula(B5) -> <-- =B3+B2*(B4-B3)

Sheet Page 98
A1: COMPUTING THE COST OF EQUITY FOR MERCK Tax-adjusted CAPM: rE = rf*(1-TC) + b*[E(rM) - rf*(1-TC) ]
A2: Merck beta, b | B2: ='Pages 91,93'!B3 -> 0.6435028854
A3: Merck tax rate, TC | B3: ='Page 76'!D5 -> 0.1284428688 | C3: =getformula(B3) -> <-- ='Page 76'!D5
A4: Risk-free rate, rf | B4: 0.02
A5: Expected market return, E(rM) | B5: 0.0845
A6: Merck tax-adjusted cost of equity, rE | B6: =B4*(1-B3)+B2*(B5-B4*(1-B3)) -> 0.06059014587 | C6: =getformula(B6) -> <-- =B4*(1-B3)+B2*(B5-B4*(1-B3))

Sheet Page 99
A1: MEASURING E(rM) USING HISTORICAL DATA Derived from prices for the Vanguard 500 Index Fund (symbol: VFINX) These prices include dividends; April 1987 - June 2012
A2: Average monthly return | B2: =AVERAGE(C10:C311) -> 0.006892696672 | C2: =getformula(B2) -> <-- =AVERAGE(C10:C311)
A3: Monthly standard deviation | B3: =STDEV(C10:C311) -> 0.04582487419 | C3: =getformula(B3) -> <-- =STDEV(C10:C311)
A5: Annualized return | B5: =12*B2 -> 0.08271236007 | C5: =getformula(B5) -> <-- =12*B2
A6: Annualized standard deviation | B6: =SQRT(12)*B3 -> 0.1587420207 | C6: =getformula(B6) -> <-- =SQRT(12)*B3
A8: Date | B8: Price | C8: Return
A9: 1987-04-01 | B9: 15.66
A10: 1987-05-01 | B10: 15.82 | C10: =LN(B10/B9) -> 0.01016527178 | D10: =getformula(C10) -> <-- =LN(B10/B9)
A11: 1987-06-01 | B11: 16.62 | C11: 0.04933182709 | D11: =getformula(C11) -> <-- =LN(B11/B10)
A12: 1987-07-01 | B12: 17.44 | C12: 0.04815962905 | D12: =getformula(C12) -> <-- =LN(B12/B11)
A13: 1987-08-03 | B13: 18.11 | C13: 0.03769785341 | D13: =getformula(C13) -> <-- =LN(B13/B12)
A14: 1987-09-01 | B14: 17.69 | C14: -0.02346476372
A15: 1987-10-01 | B15: 13.85 | C15: -0.2447142755
A16: 1987-11-02 | B16: 12.72 | C16: -0.08510967472
A17: 1987-12-01 | B17: 13.67 | C17: 0.07202809282
A18: 1988-01-04 | B18: 14.14 | C18: 0.03380400973
A19: 1988-02-01 | B19: 14.79 | C19: 0.04494361625
A20: 1988-03-01 | B20: 14.34 | C20: -0.03089844155
A21: 1988-04-04 | B21: 14.49 | C21: 0.01040592116
A22: 1988-05-02 | B22: 14.6 | C22: 0.007562772382
A23: 1988-06-01 | B23: 15.27 | C23: 0.04486859052
A24: 1988-07-01 | B24: 15.21 | C24: -0.003937012959
A25: 1988-08-01 | B25: 14.7 | C25: -0.03410561249
A26: 1988-09-01 | B26: 15.32 | C26: 0.04131167053
A27: 1988-10-03 | B27: 15.74 | C27: 0.02704607868
A28: 1988-11-01 | B28: 15.51 | C28: -0.0147202658
A29: 1988-12-01 | B29: 15.78 | C29: 0.01725833823
A30: 1989-01-03 | B30: 16.94 | C30: 0.07093437381
A31: 1989-02-01 | B31: 16.52 | C31: -0.02510592113
A32: 1989-03-01 | B32: 16.89 | C32: 0.02214996273
A33: 1989-04-03 | B33: 17.77 | C33: 0.05078991135
A34: 1989-05-01 | B34: 18.49 | C34: 0.03971840323
A35: 1989-06-01 | B35: 18.38 | C35: -0.005966928471
A36: 1989-07-03 | B36: 20.03 | C36: 0.08596803275
A37: 1989-08-01 | B37: 20.4 | C37: 0.01830375117
A38: 1989-09-01 | B38: 20.32 | C38: -0.00392927814
A39: 1989-10-02 | B39: 19.85 | C39: -0.02340161558
A40: 1989-11-01 | B40: 20.25 | C40: 0.01995078642
A41: 1989-12-01 | B41: 20.74 | C41: 0.02390940925
A42: 1990-01-02 | B42: 19.34 | C42: -0.06988871278
A43: 1990-02-01 | B43: 19.59 | C43: 0.01284374193
A44: 1990-03-01 | B44: 20.1 | C44: 0.02570058311
A45: 1990-04-02 | B45: 19.6 | C45: -0.02519024883
A46: 1990-05-01 | B46: 21.5 | C46: 0.0925233689
A47: 1990-06-01 | B47: 21.36 | C47: -0.006532921042
A48: 1990-07-02 | B48: 21.28 | C48: -0.003752349619
A49: 1990-08-01 | B49: 19.36 | C49: -0.09455858263
A50: 1990-09-04 | B50: 18.41 | C50: -0.0503150866
A51: 1990-10-01 | B51: 18.34 | C51: -0.003809528417
A52: 1990-11-01 | B52: 19.52 | C52: 0.06235511416
A53: 1990-12-03 | B53: 20.04 | C53: 0.02629069523
A54: 1991-01-02 | B54: 20.91 | C54: 0.04249723722
A55: 1991-02-01 | B55: 22.4 | C55: 0.06883344542
A56: 1991-03-01 | B56: 22.94 | C56: 0.02382115284
A57: 1991-04-01 | B57: 22.99 | C57: 0.002177227074
A58: 1991-05-01 | B58: 23.97 | C58: 0.04174370967
A59: 1991-06-03 | B59: 22.88 | C59: -0.04653988193
A60: 1991-07-01 | B60: 23.94 | C60: 0.04528753362
A61: 1991-08-01 | B61: 24.49 | C61: 0.02271417083
A62: 1991-09-03 | B62: 24.09 | C62: -0.01646805434
A63: 1991-10-01 | B63: 24.41 | C63: 0.01319606778
A64: 1991-11-01 | B64: 23.43 | C64: -0.04097563189
A65: 1991-12-02 | B65: 26.1 | C65: 0.1079180618
A66: 1992-01-02 | B66: 25.61 | C66: -0.01895241412
A67: 1992-02-03 | B67: 25.93 | C67: 0.01241769934
A68: 1992-03-02 | B68: 25.43 | C68: -0.01947102012
A69: 1992-04-01 | B69: 26.17 | C69: 0.02868413711
A70: 1992-05-01 | B70: 26.3 | C70: 0.004955222642
A71: 1992-06-01 | B71: 25.91 | C71: -0.01493994461
A72: 1992-07-01 | B72: 26.95 | C72: 0.03935430278
A73: 1992-08-03 | B73: 26.4 | C73: -0.0206192872
A74: 1992-09-01 | B74: 26.7 | C74: =LN(B74/B73) -> 0.01129955525
A75: 1992-10-01 | B75: 26.79 | C75: 0.00336511815
A76: 1992-11-02 | B76: 27.7 | C76: 0.03340372964
A77: 1992-12-01 | B77: 28.24 | C77: 0.01930699943
A78: 1993-01-04 | B78: 28.26 | C78: 0.0007079646313
A79: 1993-02-01 | B79: 28.65 | C79: 0.0137060659
A80: 1993-03-01 | B80: 29.25 | C80: 0.02072613052
A81: 1993-04-01 | B81: 28.54 | C81: -0.02457296163
A82: 1993-05-03 | B82: 29.3 | C82: 0.02628090397
A83: 1993-06-01 | B83: 29.38 | C83: 0.002726654723
A84: 1993-07-01 | B84: 29.25 | C84: -0.004434597068
A85: 1993-08-02 | B85: 30.36 | C85: 0.03724637885
A86: 1993-09-01 | B86: 30.12 | C86: -0.007936549596
A87: 1993-10-01 | B87: 30.75 | C87: 0.02070059132
A88: 1993-11-01 | B88: 30.44 | C88: -0.01013246126
A89: 1993-12-01 | B89: 30.81 | C89: 0.01208177962
A90: 1994-01-03 | B90: 31.85 | C90: 0.03319806941
A91: 1994-02-01 | B91: 30.99 | C91: -0.02737281022
A92: 1994-03-01 | B92: 29.63 | C92: -0.04487721021
A93: 1994-04-04 | B93: 30.01 | C93: 0.01274329787
A94: 1994-05-02 | B94: 30.49 | C94: 0.01586810155
A95: 1994-06-01 | B95: 29.75 | C95: -0.02456962901
A96: 1994-07-01 | B96: 30.72 | C96: 0.03208477629
A97: 1994-08-01 | B97: 31.97 | C97: 0.03988405479
A98: 1994-09-01 | B98: 31.19 | C98: -0.02470043245
A99: 1994-10-03 | B99: 31.89 | C99: 0.0221949504
A100: 1994-11-01 | B100: 30.73 | C100: -0.03705310488
A101: 1994-12-01 | B101: 31.17 | C101: 0.01421671764
A102: 1995-01-03 | B102: 31.98 | C102: 0.02565461363
A103: 1995-02-01 | B103: 33.22 | C103: 0.03804139678
A104: 1995-03-01 | B104: 34.2 | C104: 0.02907353988
A105: 1995-04-03 | B105: 35.21 | C105: 0.0291044891
A106: 1995-05-01 | B106: 36.6 | C106: 0.03871810724
A107: 1995-06-01 | B107: 37.44 | C107: 0.0226914112
A108: 1995-07-03 | B108: 38.68 | C108: 0.03258301898
A109: 1995-08-01 | B109: 38.78 | C109: 0.002581979229
A110: 1995-09-01 | B110: 40.42 | C110: 0.04142006216
A111: 1995-10-02 | B111: 40.27 | C111: -0.003717937112
A112: 1995-11-01 | B112: 42.03 | C112: 0.04277687415
A113: 1995-12-01 | B113: 42.85 | C113: 0.01932199603
A114: 1996-01-02 | B114: 44.3 | C114: 0.03327903201
A115: 1996-02-01 | B115: 44.71 | C115: 0.009212513195
A116: 1996-03-01 | B116: 45.14 | C116: 0.009571581144
A117: 1996-04-01 | B117: 45.8 | C117: 0.01451531973
A118: 1996-05-01 | B118: 46.97 | C118: 0.02522500892
A119: 1996-06-03 | B119: 47.15 | C119: 0.003824909041
A120: 1996-07-01 | B120: 45.06 | C120: -0.04533907408
A121: 1996-08-01 | B121: 46.01 | C121: 0.02086382916
A122: 1996-09-03 | B122: 48.59 | C122: 0.05455898425
A123: 1996-10-01 | B123: 49.93 | C123: 0.02720427609
A124: 1996-11-01 | B124: 53.7 | C124: 0.072790977
A125: 1996-12-02 | B125: 52.65 | C125: -0.01974676293
A126: 1997-01-02 | B126: 55.93 | C126: 0.06043467025
A127: 1997-02-03 | B127: 56.37 | C127: 0.00783619326
A128: 1997-03-03 | B128: 54.04 | C128: -0.042212589
A129: 1997-04-01 | B129: 57.25 | C129: 0.05770312934
A130: 1997-05-01 | B130: 60.74 | C130: 0.05917481718
A131: 1997-06-02 | B131: 63.44 | C131: 0.04349211771
A132: 1997-07-01 | B132: 68.5 | C132: 0.07673916794
A133: 1997-08-01 | B133: 64.65 | C133: -0.05784564005
A134: 1997-09-02 | B134: 68.19 | C134: 0.05330982131
A135: 1997-10-01 | B135: 65.9 | C135: -0.03415948502
A136: 1997-11-03 | B136: 68.93 | C136: 0.04495305539
A137: 1997-12-01 | B137: 70.11 | C137: 0.01697394032
A138: 1998-01-02 | B138: 70.89 | C138: =LN(B138/B137) -> 0.01106394265
A139: 1998-02-02 | B139: 75.99 | C139: 0.06947237281
A140: 1998-03-02 | B140: 79.86 | C140: 0.04967334895
A141: 1998-04-01 | B141: 80.67 | C141: 0.01009165731
A142: 1998-05-01 | B142: 79.26 | C142: -0.01763317119
A143: 1998-06-01 | B143: 82.49 | C143: 0.03994348611
A144: 1998-07-01 | B144: 81.62 | C144: -0.01060274389
A145: 1998-08-03 | B145: 69.81 | C145: -0.156297064
A146: 1998-09-01 | B146: 74.28 | C146: 0.0620644705
A147: 1998-10-01 | B147: 80.35 | C147: 0.0785503557
A148: 1998-11-02 | B148: 85.23 | C148: 0.05896139235
A149: 1998-12-01 | B149: 90.17 | C149: 0.05634329298
A150: 1999-01-04 | B150: 93.97 | C150: 0.04127880488
A151: 1999-02-01 | B151: 91.03 | C151: -0.03178645988
A152: 1999-03-01 | B152: 94.66 | C152: 0.03910240196
A153: 1999-04-01 | B153: 98.31 | C153: 0.0378342269
A154: 1999-05-03 | B154: 95.96 | C154: -0.02419431341
A155: 1999-06-01 | B155: 101.29 | C155: 0.05405625173
A156: 1999-07-01 | B156: 98.12 | C156: -0.03179647031
A157: 1999-08-02 | B157: 97.64 | C157: -0.004903973866
A158: 1999-09-01 | B158: 94.96 | C158: -0.02783149522
A159: 1999-10-01 | B159: 100.97 | C159: 0.06136769271
A160: 1999-11-01 | B160: 103.01 | C160: 0.02000262788
A161: 1999-12-01 | B161: 109.18 | C161: 0.05817182546
A162: 2000-01-03 | B162: 103.69 | C162: -0.05159221778
A163: 2000-02-01 | B163: 101.71 | C163: -0.01928005193
A164: 2000-03-01 | B164: 111.64 | C164: 0.09315378203
A165: 2000-04-03 | B165: 108.28 | C165: -0.03055894392
A166: 2000-05-01 | B166: 106.07 | C166: -0.02062121123
A167: 2000-06-01 | B167: 108.71 | C167: 0.0245845327
A168: 2000-07-03 | B168: 107.09 | C168: -0.0150141838
A169: 2000-08-01 | B169: 113.72 | C169: 0.06006968437
A170: 2000-09-01 | B170: 107.7 | C170: -0.05438970262
A171: 2000-10-02 | B171: 107.24 | C171: -0.004280270795
A172: 2000-11-01 | B172: 98.79 | C172: -0.08207292831
A173: 2000-12-01 | B173: 99.3 | C173: 0.005149185995
A174: 2001-01-02 | B174: 102.82 | C174: 0.03483431558
A175: 2001-02-01 | B175: 93.42 | C175: -0.09587443155
A176: 2001-03-01 | B176: 87.48 | C176: -0.06569525927
A177: 2001-04-02 | B177: 94.28 | C177: 0.07485888226
A178: 2001-05-01 | B178: 94.89 | C178: 0.006449247918
A179: 2001-06-01 | B179: 92.57 | C179: -0.02475321091
A180: 2001-07-02 | B180: 91.64 | C180: -0.01009725749
A181: 2001-08-01 | B181: 85.89 | C181: -0.06480044981
A182: 2001-09-04 | B182: 78.94 | C182: -0.08437933754
A183: 2001-10-01 | B183: 80.43 | C183: 0.01869917068
A184: 2001-11-01 | B184: 86.59 | C184: 0.07379709454
A185: 2001-12-03 | B185: 87.35 | C185: 0.00873870112
A186: 2002-01-02 | B186: 86.06 | C186: -0.01487830917
A187: 2002-02-01 | B187: 84.4 | C187: -0.01947732581
A188: 2002-03-01 | B188: 87.55 | C188: 0.03664265713
A189: 2002-04-01 | B189: 82.23 | C189: -0.06268985975
A190: 2002-05-01 | B190: 81.61 | C190: -0.007568395502
A191: 2002-06-03 | B191: 75.79 | C191: -0.07398544566
A192: 2002-07-01 | B192: 69.94 | C192: -0.08032862619
A193: 2002-08-01 | B193: 70.39 | C193: 0.006413475985
A194: 2002-09-03 | B194: 62.73 | C194: -0.1152114055
A195: 2002-10-01 | B195: 68.24 | C195: 0.08419110107
A196: 2002-11-01 | B196: 72.44 | C196: 0.05972772983
A197: 2002-12-02 | B197: 67.98 | C197: -0.06354508875
A198: 2003-01-02 | B198: 66.2 | C198: -0.02653308133
A199: 2003-02-03 | B199: 65.2 | C199: -0.01522099401
A200: 2003-03-03 | B200: 65.82 | C200: 0.009464274583
A201: 2003-04-01 | B201: 71.25 | C201: 0.07927107563
A202: 2003-05-01 | B202: 75 | C202: =LN(B202/B201) -> 0.05129329439
... 109 more rows

Sheet Page 100
A1: MEASURING THE MARKET RISK PREMIUM E(rM) - rf USING HISTORICAL DATA Vanguard 500 Index Fund (symbol: VFINX) minus Treasury Bills April 1987 - June 2012 All measurements relate to monthly returns on SP500, rMt, and the Treasury bill rate rft
A2: Average monthly risk premium | B2: =AVERAGE(E10:E311) -> 0.003667247 | C2: =getformula(B2) -> <-- =AVERAGE(E10:E311)
A3: Monthly standard deviation | B3: =STDEV(E10:E311) -> 0.04576300392 | C3: =getformula(B3) -> <-- =STDEV(E10:E311)
A5: Annualized risk premium | B5: =12*B2 -> 0.044006964 | C5: =getformula(B5) -> <-- =12*B2
A6: Annualized standard deviation | B6: =SQRT(12)*B3 -> 0.1585276958 | C6: =getformula(B6) -> <-- =SQRT(12)*B3
A8: Date | B8: Price | C8: Return | D8: Treasury bill rate | E8: Market risk premium
A9: 1987-04-01 | B9: 1900-01-15T15:50:24
A10: 1987-05-01 | B10: 1900-01-15T19:40:48 | C10: =LN(B10/B9) -> 0.01016527178 | D10: ='3month_treasury (2)'!D4 -> 0.004837744287 | E10: =C10-D10 -> 0.005327527489 | F10: =getformula(E10) -> <-- =C10-D10
A11: 1987-06-01 | B11: 1900-01-16T14:52:48 | C11: 0.04933182709 | D11: ='3month_treasury (2)'!D5 -> 0.004855409011 | E11: 0.04447641808 | F11: =getformula(E11) -> <-- =C11-D11
A12: 1987-07-01 | B12: 1900-01-17T10:33:36 | C12: 0.04815962905 | D12: ='3month_treasury (2)'!D6 -> 0.004864242777 | E12: 0.04329538628
A13: 1987-08-03 | B13: 1900-01-18T02:38:24 | C13: 0.03769785341 | D13: ='3month_treasury (2)'!D7 -> 0.004881913119 | E13: 0.0328159403
A14: 1987-09-01 | B14: 1900-01-17T16:33:36 | C14: -0.02346476372 | D14: ='3month_treasury (2)'!D8 -> 0.005191752183 | E14: -0.02865651591
A15: 1987-10-01 | B15: 1900-01-13T20:24:00 | C15: -0.2447142755 | D15: ='3month_treasury (2)'!D9 -> 0.005511650209 | E15: -0.2502259257
A16: 1987-11-02 | B16: 1900-01-12T17:16:48 | C16: -0.08510967472 | D16: ='3month_treasury (2)'!D10 -> 0.005271611637 | E16: -0.09038128636
A17: 1987-12-01 | B17: 1900-01-13T16:04:48 | C17: 0.07202809282 | D17: ='3month_treasury (2)'!D11 -> 0.004881913119 | E17: 0.0671461797
A18: 1988-01-04 | B18: 1900-01-14T03:21:36 | C18: 0.03380400973 | D18: ='3month_treasury (2)'!D12 -> 0.004952631981 | E18: 0.02885137775
A19: 1988-02-01 | B19: 1900-01-14T18:57:36 | C19: 0.04494361625 | D19: ='3month_treasury (2)'!D13 -> 0.004988013929 | E19: 0.03995560232
A20: 1988-03-01 | B20: 1900-01-14T08:09:36 | C20: -0.03089844155 | D20: ='3month_treasury (2)'!D14 -> 0.004855409011 | E20: -0.03575385056
A21: 1988-04-04 | B21: 1900-01-14T11:45:36 | C21: 0.01040592116 | D21: ='3month_treasury (2)'!D15 -> 0.004890749696 | E21: 0.005515171465
A22: 1988-05-02 | B22: 1900-01-14T14:24:00 | C22: 0.007562772382 | D22: ='3month_treasury (2)'!D16 -> 0.005076534581 | E22: 0.002486237801
A23: 1988-06-01 | B23: 1900-01-15T06:28:48 | C23: 0.04486859052 | D23: ='3month_treasury (2)'!D17 -> 0.005387099458 | E23: 0.03948149106
A24: 1988-07-01 | B24: 1900-01-15T05:02:24 | C24: -0.003937012959 | D24: ='3month_treasury (2)'!D18 -> 0.005565086141 | E24: -0.0095020991
A25: 1988-08-01 | B25: 1900-01-14T16:48:00 | C25: -0.03410561249 | D25: ='3month_treasury (2)'!D19 -> 0.005805972771 | E25: -0.03991158526
A26: 1988-09-01 | B26: 1900-01-15T07:40:48 | C26: 0.04131167053 | D26: ='3month_treasury (2)'!D20 -> 0.006101338528 | E26: 0.035210332
A27: 1988-10-03 | B27: 1900-01-15T17:45:36 | C27: 0.02704607868 | D27: ='3month_treasury (2)'!D21 -> 0.006262889467 | E27: 0.02078318921
A28: 1988-11-01 | B28: 1900-01-15T12:14:24 | C28: -0.0147202658 | D28: ='3month_treasury (2)'!D22 -> 0.006361769438 | E28: -0.02108203524
A29: 1988-12-01 | B29: 1900-01-15T18:43:12 | C29: 0.01725833823 | D29: ='3month_treasury (2)'!D23 -> 0.006731359169 | E29: 0.01052697906
A30: 1989-01-03 | B30: 1900-01-16T22:33:36 | C30: 0.07093437381 | D30: ='3month_treasury (2)'!D24 -> 0.007011897343 | E30: 0.06392247646
A31: 1989-02-01 | B31: 1900-01-16T12:28:48 | C31: -0.02510592113 | D31: ='3month_treasury (2)'!D25 -> 0.007193392206 | E31: -0.03229931334
A32: 1989-03-01 | B32: 1900-01-16T21:21:36 | C32: 0.02214996273 | D32: ='3month_treasury (2)'!D26 -> 0.007429928027 | E32: 0.0147200347
A33: 1989-04-03 | B33: 1900-01-17T18:28:48 | C33: 0.05078991135 | D33: ='3month_treasury (2)'!D27 -> 0.007694550934 | E33: 0.04309536041
A34: 1989-05-01 | B34: 1900-01-18T11:45:36 | C34: 0.03971840323 | D34: ='3month_treasury (2)'!D28 -> 0.007539325264 | E34: 0.03217907797
A35: 1989-06-01 | B35: 1900-01-18T09:07:12 | C35: -0.005966928471 | D35: ='3month_treasury (2)'!D29 -> 0.007338873239 | E35: -0.01330580171
A36: 1989-07-03 | B36: 1900-01-20T00:43:12 | C36: 0.08596803275 | D36: ='3month_treasury (2)'!D30 -> 0.007084447861 | E36: 0.07888358489
A37: 1989-08-01 | B37: 1900-01-20T09:36:00 | C37: 0.01830375117 | D37: ='3month_treasury (2)'!D31 -> 0.006839842586 | E37: 0.01146390859
A38: 1989-09-01 | B38: 1900-01-20T07:40:48 | C38: -0.00392927814 | D38: ='3month_treasury (2)'!D32 -> 0.006857936894 | E38: -0.01078721503
A39: 1989-10-02 | B39: 1900-01-19T20:24:00 | C39: -0.02340161558 | D39: ='3month_treasury (2)'!D33 -> 0.006722325256 | E39: -0.03012394083
A40: 1989-11-01 | B40: 1900-01-20T06:00:00 | C40: 0.01995078642 | D40: ='3month_treasury (2)'!D34 -> 0.006623016792 | E40: 0.01332776963
A41: 1989-12-01 | B41: 1900-01-20T17:45:36 | C41: 0.02390940925 | D41: ='3month_treasury (2)'!D35 -> 0.006668142332 | E41: 0.01724126692
A42: 1990-01-02 | B42: 1900-01-19T08:09:36 | C42: -0.06988871278 | D42: ='3month_treasury (2)'!D36 -> 0.006613994615 | E42: -0.07650270739
A43: 1990-02-01 | B43: 1900-01-19T14:09:36 | C43: 0.01284374193 | D43: ='3month_treasury (2)'!D37 -> 0.006623016792 | E43: 0.006220725139
A44: 1990-03-01 | B44: 1900-01-20T02:24:00 | C44: 0.02570058311 | D44: ='3month_treasury (2)'!D38 -> 0.006713292322 | E44: 0.01898729079
A45: 1990-04-02 | B45: 1900-01-19T14:24:00 | C45: -0.02519024883 | D45: ='3month_treasury (2)'!D39 -> 0.006857936894 | E45: -0.03204818572
A46: 1990-05-01 | B46: 1900-01-21T12:00:00 | C46: 0.0925233689 | D46: ='3month_treasury (2)'!D40 -> 0.006740394062 | E46: 0.08578297484
A47: 1990-06-01 | B47: 1900-01-21T08:38:24 | C47: -0.006532921042 | D47: ='3month_treasury (2)'!D41 -> 0.006713292322 | E47: -0.01324621336
A48: 1990-07-02 | B48: 1900-01-21T06:43:12 | C48: -0.003752349619 | D48: ='3month_treasury (2)'!D42 -> 0.006704260366 | E48: -0.01045660999
A49: 1990-08-01 | B49: 1900-01-19T08:38:24 | C49: -0.09455858263 | D49: ='3month_treasury (2)'!D43 -> 0.006604973415 | E49: -0.101163556
A50: 1990-09-04 | B50: 1900-01-18T09:50:24 | C50: -0.0503150866 | D50: ='3month_treasury (2)'!D44 -> 0.006451762247 | E50: -0.05676684885
A51: 1990-10-01 | B51: 1900-01-18T08:09:36 | C51: -0.003809528417 | D51: ='3month_treasury (2)'!D45 -> 0.006370764347 | E51: -0.01018029276
A52: 1990-11-01 | B52: 1900-01-19T12:28:48 | C52: 0.06235511416 | D52: ='3month_treasury (2)'!D46 -> 0.006200026881 | E52: 0.05615508728
A53: 1990-12-03 | B53: 1900-01-20T00:57:36 | C53: 0.02629069523 | D53: ='3month_treasury (2)'!D47 -> 0.006101338528 | E53: 0.0201893567
A54: 1991-01-02 | B54: 1900-01-20T21:50:24 | C54: 0.04249723722 | D54: ='3month_treasury (2)'!D48 -> 0.005814907884 | E54: 0.03668232934
A55: 1991-02-01 | B55: 1900-01-22T09:36:00 | C55: 0.06883344542 | D55: ='3month_treasury (2)'!D49 -> 0.005351547694 | E55: 0.06348189773
A56: 1991-03-01 | B56: 1900-01-22T22:33:36 | C56: 0.02382115284 | D56: ='3month_treasury (2)'!D50 -> 0.005103109123 | E56: 0.01871804372
A57: 1991-04-01 | B57: 1900-01-22T23:45:36 | C57: 0.002177227074 | D57: ='3month_treasury (2)'!D51 -> 0.005076534581 | E57: -0.002899307507
A58: 1991-05-01 | B58: 1900-01-23T23:16:48 | C58: 0.04174370967 | D58: ='3month_treasury (2)'!D52 -> 0.004846576181 | E58: 0.03689713349
A59: 1991-06-03 | B59: 1900-01-22T21:07:12 | C59: -0.04653988193 | D59: ='3month_treasury (2)'!D53 -> 0.004678930052 | E59: -0.05121881199
A60: 1991-07-01 | B60: 1900-01-23T22:33:36 | C60: 0.04528753362 | D60: ='3month_treasury (2)'!D54 -> 0.004775947226 | E60: 0.04051158639
A61: 1991-08-01 | B61: 1900-01-24T11:45:36 | C61: 0.02271417083 | D61: ='3month_treasury (2)'!D55 -> 0.004784772572 | E61: 0.01792939826
A62: 1991-09-03 | B62: 1900-01-24T02:09:36 | C62: -0.01646805434 | D62: ='3month_treasury (2)'!D56 -> 0.004564418821 | E62: -0.02103247316
A63: 1991-10-01 | B63: 1900-01-24T09:50:24 | C63: 0.01319606778 | D63: ='3month_treasury (2)'!D57 -> 0.004467647454 | E63: 0.008728420324
A64: 1991-11-01 | B64: 1900-01-23T10:19:12 | C64: -0.04097563189 | D64: ='3month_treasury (2)'!D58 -> 0.004265669731 | E64: -0.04524130162
A65: 1991-12-02 | B65: 1900-01-26T02:24:00 | C65: 0.1079180618 | D65: ='3month_treasury (2)'!D59 -> 0.00388936735 | E65: 0.1040286945
A66: 1992-01-02 | B66: 1900-01-25T14:38:24 | C66: -0.01895241412 | D66: ='3month_treasury (2)'!D60 -> 0.00346261893 | E66: -0.02241503305
A67: 1992-02-03 | B67: 1900-01-25T22:19:12 | C67: 0.01241769934 | D67: ='3month_treasury (2)'!D61 -> 0.00322840236 | E67: 0.009189296979
A68: 1992-03-02 | B68: 1900-01-25T10:19:12 | C68: -0.01947102012 | D68: ='3month_treasury (2)'!D62 -> 0.0032630596 | E68: -0.02273407972
A69: 1992-04-01 | B69: 1900-01-26T04:04:48 | C69: 0.02868413711 | D69: ='3month_treasury (2)'!D63 -> 0.003436562335 | E69: 0.02524757477
A70: 1992-05-01 | B70: 1900-01-26T07:12:00 | C70: 0.004955222642 | D70: ='3month_treasury (2)'!D64 -> 0.003185101068 | E70: 0.001770121573
A71: 1992-06-01 | B71: 1900-01-25T21:50:24 | C71: -0.01493994461 | D71: ='3month_treasury (2)'!D65 -> 0.003081269677 | E71: -0.01802121429
A72: 1992-07-01 | B72: 1900-01-26T22:48:00 | C72: 0.03935430278 | D72: ='3month_treasury (2)'!D66 -> 0.003107215399 | E72: 0.03624708738
A73: 1992-08-03 | B73: 1900-01-26T09:36:00 | C73: -0.0206192872 | D73: ='3month_treasury (2)'!D67 -> 0.002718875236 | E73: -0.02333816244
A74: 1992-09-01 | B74: 1900-01-26T16:48:00 | C74: =LN(B74/B73) -> 0.01129955525 | D74: ='3month_treasury (2)'!D68 -> 0.002650026046 | E74: =C74-D74 -> 0.008649529208
A75: 1992-10-01 | B75: 1900-01-26T18:57:36 | C75: 0.00336511815 | D75: ='3month_treasury (2)'!D69 -> 0.002460983551 | E75: 0.0009041345998
A76: 1992-11-02 | B76: 1900-01-27T16:48:00 | C76: 0.03340372964 | D76: ='3month_treasury (2)'!D70 -> 0.002418079089 | E76: 0.03098565055
A77: 1992-12-01 | B77: 1900-01-28T05:45:36 | C77: 0.01930699943 | D77: ='3month_treasury (2)'!D71 -> 0.002650026046 | E77: 0.01665697339
A78: 1993-01-04 | B78: 1900-01-28T06:14:24 | C78: 0.0007079646313 | D78: ='3month_treasury (2)'!D72 -> 0.002727485385 | E78: -0.002019520754
A79: 1993-02-01 | B79: 1900-01-28T15:36:00 | C79: 0.0137060659 | D79: ='3month_treasury (2)'!D73 -> 0.00253826729 | E79: 0.01116779861
A80: 1993-03-01 | B80: 1900-01-29T06:00:00 | C80: 0.02072613052 | D80: ='3month_treasury (2)'!D74 -> 0.002478151522 | E80: 0.018247979
A81: 1993-04-01 | B81: 1900-01-28T12:57:36 | C81: -0.02457296163 | D81: ='3month_treasury (2)'!D75 -> 0.002495323031 | E81: -0.02706828466
A82: 1993-05-03 | B82: 1900-01-29T07:12:00 | C82: 0.02628090397 | D82: ='3month_treasury (2)'!D76 -> 0.002426658214 | E82: 0.02385424576
A83: 1993-06-01 | B83: 1900-01-29T09:07:12 | C83: 0.002726654723 | D83: ='3month_treasury (2)'!D77 -> 0.002503910113 | E83: 0.00022274461
A84: 1993-07-01 | B84: 1900-01-29T06:00:00 | C84: -0.004434597068 | D84: ='3month_treasury (2)'!D78 -> 0.002598426457 | E84: -0.007033023525
A85: 1993-08-02 | B85: 1900-01-30T08:38:24 | C85: 0.03724637885 | D85: ='3month_treasury (2)'!D79 -> 0.002572638639 | E85: 0.03467374021
A86: 1993-09-01 | B86: 1900-01-30T02:52:48 | C86: -0.007936549596 | D86: ='3month_treasury (2)'!D80 -> 0.002555451193 | E86: -0.01049200079
A87: 1993-10-01 | B87: 1900-01-30T18:00:00 | C87: 0.02070059132 | D87: ='3month_treasury (2)'!D81 -> 0.002495323031 | E87: 0.01820526829
A88: 1993-11-01 | B88: 1900-01-30T10:33:36 | C88: -0.01013246126 | D88: ='3month_treasury (2)'!D82 -> 0.002555451193 | E88: -0.01268791245
A89: 1993-12-01 | B89: 1900-01-30T19:26:24 | C89: 0.01208177962 | D89: ='3month_treasury (2)'!D83 -> 0.002624222258 | E89: 0.009457557357
A90: 1994-01-03 | B90: 1900-01-31T20:24:00 | C90: 0.03319806941 | D90: ='3month_treasury (2)'!D84 -> 0.002589829631 | E90: 0.03060823978
A91: 1994-02-01 | B91: 1900-01-30T23:45:36 | C91: -0.02737281022 | D91: ='3month_treasury (2)'!D85 -> 0.002521086931 | E91: -0.02989389715
A92: 1994-03-01 | B92: 1900-01-29T15:07:12 | C92: -0.04487721021 | D92: ='3month_treasury (2)'!D86 -> 0.002753321173 | E92: -0.04763053139
A93: 1994-04-04 | B93: 1900-01-30T00:14:24 | C93: 0.01274329787 | D93: ='3month_treasury (2)'!D87 -> 0.00296893147 | E93: 0.009774366397
A94: 1994-05-02 | B94: 1900-01-30T11:45:36 | C94: 0.01586810155 | D94: ='3month_treasury (2)'!D88 -> 0.003124517036 | E94: 0.01274358451
A95: 1994-06-01 | B95: 1900-01-29T18:00:00 | C95: -0.02456962901 | D95: ='3month_treasury (2)'!D89 -> 0.003523449355 | E95: -0.02809307836
A96: 1994-07-01 | B96: 1900-01-30T17:16:48 | C96: 0.03208477629 | D96: ='3month_treasury (2)'!D90 -> 0.003523449355 | E96: 0.02856132693
A97: 1994-08-01 | B97: 1900-01-31T23:16:48 | C97: 0.03988405479 | D97: ='3month_treasury (2)'!D91 -> 0.003688784692 | E97: 0.0361952701
A98: 1994-09-01 | B98: 1900-01-31T04:33:36 | C98: -0.02470043245 | D98: ='3month_treasury (2)'!D92 -> 0.003819544695 | E98: -0.02851997715
A99: 1994-10-03 | B99: 1900-01-31T21:21:36 | C99: 0.0221949504 | D99: ='3month_treasury (2)'!D93 -> 0.00394177276 | E99: 0.01825317764
A100: 1994-11-01 | B100: 1900-01-30T17:31:12 | C100: -0.03705310488 | D100: ='3month_treasury (2)'!D94 -> 0.004230593088 | E100: -0.04128369797
A101: 1994-12-01 | B101: 1900-01-31T04:04:48 | C101: 0.01421671764 | D101: ='3month_treasury (2)'!D95 -> 0.004529216229 | E101: 0.009687501408
A102: 1995-01-03 | B102: 1900-01-31T23:31:12 | C102: 0.02565461363 | D102: ='3month_treasury (2)'!D96 -> 0.00480242607 | E102: 0.02085218756
A103: 1995-02-01 | B103: 1900-02-02T05:16:48 | C103: 0.03804139678 | D103: ='3month_treasury (2)'!D97 -> 0.004899587209 | E103: 0.03314180957
A104: 1995-03-01 | B104: 1900-02-03T04:48:00 | C104: 0.02907353988 | D104: ='3month_treasury (2)'!D98 -> 0.004952631981 | E104: 0.0241209079
A105: 1995-04-03 | B105: 1900-02-04T05:02:24 | C105: 0.0291044891 | D105: ='3month_treasury (2)'!D99 -> 0.004917265048 | E105: 0.02418722405
A106: 1995-05-01 | B106: 1900-02-05T14:24:00 | C106: 0.03871810724 | D106: ='3month_treasury (2)'!D100 -> 0.004846576181 | E106: 0.03387153106
A107: 1995-06-01 | B107: 1900-02-06T10:33:36 | C107: 0.0226914112 | D107: ='3month_treasury (2)'!D101 -> 0.004864242777 | E107: 0.01782716842
A108: 1995-07-03 | B108: 1900-02-07T16:19:12 | C108: 0.03258301898 | D108: ='3month_treasury (2)'!D102 -> 0.004687745129 | E108: 0.02789527385
A109: 1995-08-01 | B109: 1900-02-07T18:43:12 | C109: 0.002581979229 | D109: ='3month_treasury (2)'!D103 -> 0.004643679064 | E109: -0.002061699835
A110: 1995-09-01 | B110: 1900-02-09T10:04:48 | C110: 0.04142006216 | D110: ='3month_treasury (2)'!D104 -> 0.004626059161 | E110: 0.036794003
A111: 1995-10-02 | B111: 1900-02-09T06:28:48 | C111: -0.003717937112 | D111: ='3month_treasury (2)'!D105 -> 0.004520417904 | E111: -0.008238355016
A112: 1995-11-01 | B112: 1900-02-11T00:43:12 | C112: 0.04277687415 | D112: ='3month_treasury (2)'!D106 -> 0.004520417904 | E112: 0.03825645625
A113: 1995-12-01 | B113: 1900-02-11T20:24:00 | C113: 0.01932199603 | D113: ='3month_treasury (2)'!D107 -> 0.004590830526 | E113: 0.0147311655
A114: 1996-01-02 | B114: 1900-02-13T07:12:00 | C114: 0.03327903201 | D114: ='3month_treasury (2)'!D108 -> 0.004397338795 | E114: 0.02888169321
A115: 1996-02-01 | B115: 1900-02-13T17:02:24 | C115: 0.009212513195 | D115: ='3month_treasury (2)'!D109 -> 0.004274441199 | E115: 0.004938071996
A116: 1996-03-01 | B116: 1900-02-14T03:21:36 | C116: 0.009571581144 | D116: ='3month_treasury (2)'!D110 -> 0.004125451659 | E116: 0.005446129485
A117: 1996-04-01 | B117: 1900-02-14T19:12:00 | C117: 0.01451531973 | D117: ='3month_treasury (2)'!D111 -> 0.004239360864 | E117: 0.01027595887
A118: 1996-05-01 | B118: 1900-02-15T23:16:48 | C118: 0.02522500892 | D118: ='3month_treasury (2)'!D112 -> 0.004230593088 | E118: 0.02099441583
A119: 1996-06-03 | B119: 1900-02-16T03:36:00 | C119: 0.003824909041 | D119: ='3month_treasury (2)'!D113 -> 0.004291986906 | E119: -0.000467077865
A120: 1996-07-01 | B120: 1900-02-14T01:26:24 | C120: -0.04533907408 | D120: ='3month_treasury (2)'!D114 -> 0.004353425987 | E120: -0.04969250006
A121: 1996-08-01 | B121: 1900-02-15T00:14:24 | C121: 0.02086382916 | D121: ='3month_treasury (2)'!D115 -> 0.004406124134 | E121: 0.01645770503
A122: 1996-09-03 | B122: 1900-02-17T14:09:36 | C122: 0.05455898425 | D122: ='3month_treasury (2)'!D116 -> 0.004318312394 | E122: 0.05024067186
A123: 1996-10-01 | B123: 1900-02-18T22:19:12 | C123: 0.02720427609 | D123: ='3month_treasury (2)'!D117 -> 0.004353425987 | E123: 0.02285085011
A124: 1996-11-01 | B124: 1900-02-22T16:48:00 | C124: 0.072790977 | D124: ='3month_treasury (2)'!D118 -> 0.004265669731 | E124: 0.06852530727
A125: 1996-12-02 | B125: 1900-02-21T15:36:00 | C125: -0.01974676293 | D125: ='3month_treasury (2)'!D119 -> 0.004300761144 | E125: -0.02404752408
A126: 1997-01-02 | B126: 1900-02-24T22:19:12 | C126: 0.06043467025 | D126: ='3month_treasury (2)'!D120 -> 0.004195531203 | E126: 0.05623913905
A127: 1997-02-03 | B127: 1900-02-25T08:52:48 | C127: 0.00783619326 | D127: ='3month_treasury (2)'!D121 -> 0.004300761144 | E127: 0.003535432116
A128: 1997-03-03 | B128: 1900-02-23T00:57:36 | C128: -0.042212589 | D128: ='3month_treasury (2)'!D122 -> 0.004283213591 | E128: -0.04649580259
A129: 1997-04-01 | B129: 1900-02-26T06:00:00 | C129: 0.05770312934 | D129: ='3month_treasury (2)'!D123 -> 0.004397338795 | E129: 0.05330579055
A130: 1997-05-01 | B130: 60.74 | C130: 0.05917481718 | D130: ='3month_treasury (2)'!D124 -> 0.004414910399 | E130: 0.05475990678
A131: 1997-06-02 | B131: 1900-03-03T10:33:36 | C131: 0.04349211771 | D131: ='3month_treasury (2)'!D125 -> 0.004318312394 | E131: 0.03917380531
A132: 1997-07-01 | B132: 1900-03-08T12:00:00 | C132: 0.07673916794 | D132: ='3month_treasury (2)'!D126 -> 0.004213060301 | E132: 0.07252610764
A133: 1997-08-01 | B133: 1900-03-04T15:36:00 | C133: -0.05784564005 | D133: ='3month_treasury (2)'!D127 -> 0.004318312394 | E133: -0.06216395244
A134: 1997-09-02 | B134: 1900-03-08T04:33:36 | C134: 0.05330982131 | D134: ='3month_treasury (2)'!D128 -> 0.004397338795 | E134: 0.04891248252
A135: 1997-10-01 | B135: 1900-03-05T21:36:00 | C135: -0.03415948502 | D135: ='3month_treasury (2)'!D129 -> 0.004230593088 | E135: -0.03839007811
A136: 1997-11-03 | B136: 1900-03-08T22:19:12 | C136: 0.04495305539 | D136: ='3month_treasury (2)'!D130 -> 0.004248129564 | E136: 0.04070492583
A137: 1997-12-01 | B137: 1900-03-10T02:38:24 | C137: 0.01697394032 | D137: ='3month_treasury (2)'!D131 -> 0.004397338795 | E137: 0.01257660153
A138: 1998-01-02 | B138: 1900-03-10T21:21:36 | C138: =LN(B138/B137) -> 0.01106394265 | D138: ='3month_treasury (2)'!D132 -> 0.004414910399 | E138: =C138-D138 -> 0.006649032249
A139: 1998-02-02 | B139: 1900-03-15T23:45:36 | C139: 0.06947237281 | D139: ='3month_treasury (2)'!D133 -> 0.004309536307 | E139: 0.06516283651
A140: 1998-03-02 | B140: 1900-03-19T20:38:24 | C140: 0.04967334895 | D140: ='3month_treasury (2)'!D134 -> 0.004353425987 | E140: 0.04531992297
A141: 1998-04-01 | B141: 1900-03-20T16:04:48 | C141: 0.01009165731 | D141: ='3month_treasury (2)'!D135 -> 0.004300761144 | E141: 0.005790896169
A142: 1998-05-01 | B142: 1900-03-19T06:14:24 | C142: -0.01763317119 | D142: ='3month_treasury (2)'!D136 -> 0.004230593088 | E142: -0.02186376427
A143: 1998-06-01 | B143: 1900-03-22T11:45:36 | C143: 0.03994348611 | D143: ='3month_treasury (2)'!D137 -> 0.004274441199 | E143: 0.03566904491
A144: 1998-07-01 | B144: 1900-03-21T14:52:48 | C144: -0.01060274389 | D144: ='3month_treasury (2)'!D138 -> 0.004256899186 | E144: -0.01485964308
A145: 1998-08-03 | B145: 1900-03-09T19:26:24 | C145: -0.156297064 | D145: ='3month_treasury (2)'!D139 -> 0.004239360864 | E145: -0.1605364249
A146: 1998-09-01 | B146: 1900-03-14T06:43:12 | C146: 0.0620644705 | D146: ='3month_treasury (2)'!D140 -> 0.004186768036 | E146: 0.05787770247
A147: 1998-10-01 | B147: 1900-03-20T08:24:00 | C147: 0.0785503557 | D147: ='3month_treasury (2)'!D141 -> 0.003933036236 | E147: 0.07461731946
A148: 1998-11-02 | B148: 1900-03-25T05:31:12 | C148: 0.05896139235 | D148: ='3month_treasury (2)'!D142 -> 0.003367117886 | E148: 0.05559427446
A149: 1998-12-01 | B149: 1900-03-30T04:04:48 | C149: 0.05634329298 | D149: ='3month_treasury (2)'!D143 -> 0.003758497826 | E149: 0.05258479515
A150: 1999-01-04 | B150: 1900-04-02T23:16:48 | C150: 0.04127880488 | D150: ='3month_treasury (2)'!D144 -> 0.003741064074 | E150: 0.03753774081
A151: 1999-02-01 | B151: 1900-03-31T00:43:12 | C151: -0.03178645988 | D151: ='3month_treasury (2)'!D145 -> 0.003697495645 | E151: -0.03548395552
A152: 1999-03-01 | B152: 1900-04-03T15:50:24 | C152: 0.03910240196 | D152: ='3month_treasury (2)'!D146 -> 0.003784655294 | E152: 0.03531774667
A153: 1999-04-01 | B153: 1900-04-07T07:26:24 | C153: 0.0378342269 | D153: ='3month_treasury (2)'!D147 -> 0.003784655294 | E153: 0.03404957161
A154: 1999-05-03 | B154: 1900-04-04T23:02:24 | C154: -0.02419431341 | D154: ='3month_treasury (2)'!D148 -> 0.003653949982 | E154: -0.02784826339
A155: 1999-06-01 | B155: 1900-04-10T06:57:36 | C155: 0.05405625173 | D155: ='3month_treasury (2)'!D149 -> 0.003836994875 | E155: 0.05021925685
A156: 1999-07-01 | B156: 1900-04-07T02:52:48 | C156: -0.03179647031 | D156: ='3month_treasury (2)'!D150 -> 0.003898099297 | E156: -0.0356945696
A157: 1999-08-02 | B157: 1900-04-06T15:21:36 | C157: -0.004903973866 | D157: ='3month_treasury (2)'!D151 -> 0.003880636318 | E157: -0.008784610184
A158: 1999-09-01 | B158: 1900-04-03T23:02:24 | C158: -0.02783149522 | D158: ='3month_treasury (2)'!D152 -> 0.004029188412 | E158: -0.03186068364
A159: 1999-10-01 | B159: 1900-04-09T23:16:48 | C159: 0.06136769271 | D159: ='3month_treasury (2)'!D153 -> 0.003994211146 | E159: 0.05737348157
A160: 1999-11-01 | B160: 1900-04-12T00:14:24 | C160: 0.02000262788 | D160: ='3month_treasury (2)'!D154 -> 0.004151724582 | E160: 0.0158509033
A161: 1999-12-01 | B161: 1900-04-18T04:19:12 | C161: 0.05817182546 | D161: ='3month_treasury (2)'!D155 -> 0.004335867341 | E161: 0.05383595812
A162: 2000-01-03 | B162: 1900-04-12T16:33:36 | C162: -0.05159221778 | D162: ='3month_treasury (2)'!D156 -> 0.004450064727 | E162: -0.05604228251
A163: 2000-02-01 | B163: 1900-04-10T17:02:24 | C163: -0.01928005193 | D163: ='3month_treasury (2)'!D157 -> 0.004555616779 | E163: -0.02383566871
A164: 2000-03-01 | B164: 1900-04-20T15:21:36 | C164: 0.09315378203 | D164: ='3month_treasury (2)'!D158 -> 0.004758299337 | E164: 0.08839548269
A165: 2000-04-03 | B165: 1900-04-17T06:43:12 | C165: -0.03055894392 | D165: ='3month_treasury (2)'!D159 -> 0.004881913119 | E165: -0.03544085704
A166: 2000-05-01 | B166: 1900-04-15T01:40:48 | C166: -0.02062121123 | D166: ='3month_treasury (2)'!D160 -> 0.004855409011 | E166: -0.02547662024
A167: 2000-06-01 | B167: 1900-04-17T17:02:24 | C167: 0.0245845327 | D167: ='3month_treasury (2)'!D161 -> 0.004970321077 | E167: 0.01961421162
A168: 2000-07-03 | B168: 1900-04-16T02:09:36 | C168: -0.0150141838 | D168: ='3month_treasury (2)'!D162 -> 0.004881913119 | E168: -0.01989609692
A169: 2000-08-01 | B169: 1900-04-22T17:16:48 | C169: 0.06006968437 | D169: ='3month_treasury (2)'!D163 -> 0.005120830193 | E169: 0.05494885418
A170: 2000-09-01 | B170: 1900-04-16T16:48:00 | C170: -0.05438970262 | D170: ='3month_treasury (2)'!D164 -> 0.005236109098 | E170: -0.05962581172
A171: 2000-10-02 | B171: 1900-04-16T05:45:36 | C171: -0.004280270795 | D171: ='3month_treasury (2)'!D165 -> 0.005156283643 | E171: -0.009436554438
A172: 2000-11-01 | B172: 1900-04-07T18:57:36 | C172: -0.08207292831 | D172: ='3month_treasury (2)'!D166 -> 0.005253858476 | E172: -0.08732678679
A173: 2000-12-01 | B173: 1900-04-08T07:12:00 | C173: 0.005149185995 | D173: ='3month_treasury (2)'!D167 -> 0.005307129307 | E173: -0.0001579433124
A174: 2001-01-02 | B174: 1900-04-11T19:40:48 | C174: 0.03483431558 | D174: ='3month_treasury (2)'!D168 -> 0.004952631981 | E174: 0.0298816836
A175: 2001-02-01 | B175: 1900-04-02T10:04:48 | C175: -0.09587443155 | D175: ='3month_treasury (2)'!D169 -> 0.004406124134 | E175: -0.1002805557
A176: 2001-03-01 | B176: 1900-03-27T11:31:12 | C176: -0.06569525927 | D176: ='3month_treasury (2)'!D170 -> 0.004169244467 | E176: -0.06986450373
A177: 2001-04-02 | B177: 1900-04-03T06:43:12 | C177: 0.07485888226 | D177: ='3month_treasury (2)'!D171 -> 0.00376721607 | E177: 0.07109166619
A178: 2001-05-01 | B178: 1900-04-03T21:21:36 | C178: 0.006449247918 | D178: ='3month_treasury (2)'!D172 -> 0.003289061993 | E178: 0.003160185925
A179: 2001-06-01 | B179: 1900-04-01T13:40:48 | C179: -0.02475321091 | D179: ='3month_treasury (2)'!D173 -> 0.003072622898 | E179: -0.0278258338
A180: 2001-07-02 | B180: 1900-03-31T15:21:36 | C180: -0.01009725749 | D180: ='3month_treasury (2)'!D174 -> 0.002960296339 | E180: -0.01305755383
A181: 2001-08-01 | B181: 1900-03-25T21:21:36 | C181: -0.06480044981 | D181: ='3month_treasury (2)'!D175 -> 0.002977567496 | E181: -0.0677780173
A182: 2001-09-04 | B182: 1900-03-18T22:33:36 | C182: -0.08437933754 | D182: ='3month_treasury (2)'!D176 -> 0.002848120983 | E182: -0.08722745853
A183: 2001-10-01 | B183: 1900-03-20T10:19:12 | C183: 0.01869917068 | D183: ='3month_treasury (2)'!D177 -> 0.002229561442 | E183: 0.01646960924
A184: 2001-11-01 | B184: 1900-03-26T14:09:36 | C184: 0.07379709454 | D184: ='3month_treasury (2)'!D178 -> 0.001819724551 | E184: 0.07197736999
A185: 2001-12-03 | B185: 1900-03-27T08:24:00 | C185: 0.00873870112 | D185: ='3month_treasury (2)'!D179 -> 0.001573087981 | E185: 0.00716561314
A186: 2002-01-02 | B186: 1900-03-26T01:26:24 | C186: -0.01487830917 | D186: ='3month_treasury (2)'!D180 -> 0.001420369551 | E186: -0.01629867872
A187: 2002-02-01 | B187: 1900-03-24T09:36:00 | C187: -0.01947732581 | D187: ='3month_treasury (2)'!D181 -> 0.001386470096 | E187: -0.0208637959
A188: 2002-03-01 | B188: 1900-03-27T13:12:00 | C188: 0.03664265713 | D188: ='3month_treasury (2)'!D182 -> 0.001454282801 | E188: 0.03518837433
A189: 2002-04-01 | B189: 1900-03-22T05:31:12 | C189: -0.06268985975 | D189: ='3month_treasury (2)'!D183 -> 0.001505178568 | E189: -0.06419503832
A190: 2002-05-01 | B190: 1900-03-21T14:38:24 | C190: -0.007568395502 | D190: ='3month_treasury (2)'!D184 -> 0.001445803195 | E190: -0.009014198696
A191: 2002-06-03 | B191: 1900-03-15T18:57:36 | C191: -0.07398544566 | D191: ='3month_treasury (2)'!D185 -> 0.001454282801 | E191: -0.07543972846
A192: 2002-07-01 | B192: 1900-03-09T22:33:36 | C192: -0.08032862619 | D192: ='3month_treasury (2)'!D186 -> 0.00142884657 | E192: -0.08175747276
A193: 2002-08-01 | B193: 1900-03-10T09:21:36 | C193: 0.006413475985 | D193: ='3month_treasury (2)'!D187 -> 0.001411893394 | E193: 0.005001582591
A194: 2002-09-03 | B194: 1900-03-02T17:31:12 | C194: -0.1152114055 | D194: ='3month_treasury (2)'!D188 -> 0.001361054552 | E194: -0.1165724601
A195: 2002-10-01 | B195: 1900-03-08T05:45:36 | C195: 0.08419110107 | D195: ='3month_treasury (2)'!D189 -> 0.001369525539 | E195: 0.08282157554
A196: 2002-11-01 | B196: 1900-03-12T10:33:36 | C196: 0.05972772983 | D196: ='3month_treasury (2)'!D190 -> 0.001327179213 | E196: 0.05840055062
A197: 2002-12-02 | B197: 1900-03-07T23:31:12 | C197: -0.06354508875 | D197: ='3month_treasury (2)'!D191 -> 0.001031355922 | E197: -0.06457644467
A198: 2003-01-02 | B198: 1900-03-06T04:48:00 | C198: -0.02653308133 | D198: ='3month_treasury (2)'!D192 -> 0.0009976143151 | E198: -0.02753069564
A199: 2003-02-03 | B199: 1900-03-05T04:48:00 | C199: -0.01522099401 | D199: ='3month_treasury (2)'!D193 -> 0.0009807486333 | E199: -0.01620174264
A200: 2003-03-03 | B200: 1900-03-05T19:40:48 | C200: 0.009464274583 | D200: ='3month_treasury (2)'!D194 -> 0.0009807486333 | E200: 0.008483525949
A201: 2003-04-01 | B201: 1900-03-11T06:00:00 | C201: 0.07927107563 | D201: ='3month_treasury (2)'!D195 -> 0.0009470275066 | E201: 0.07832404813
A202: 2003-05-01 | B202: 1900-03-15 | C202: =LN(B202/B201) -> 0.05129329439 | D202: ='3month_treasury (2)'!D196 -> 0.0009470275066 | E202: =C202-D202 -> 0.05034626688
... 109 more rows

Sheet Page 101
A1: COMPUTING THE COST OF EQUITY FOR MERCK USING THE MARKET RISK PREMIUM E(rM) - rf
A2: Merck beta, b | B2: ='Page 96'!B2 -> 0.6435028854 | C2: =getformula(B2) -> <-- ='Page 96'!B2
A3: E(rM) derived from SP price/earnings | B3: ='Page 100'!B5 -> 0.044006964 | C3: =getformula(B3) -> <-- ='Page 100'!B5
A4: Merck tax rate, TC | B4: ='Page 98'!B3 -> 0.1284428688 | C4: =getformula(B4) -> <-- ='Page 98'!B3
A5: Risk free rate, rf | B5: 0.02 | C5: <-- Still to be discussed
A6: Intel cost of equity, rE,Intel
A7: Classic CAPM | B7: =B5+B2*B3 -> 0.04831860831 | C7: =getformula(B7) -> <-- =B5+B2*B3
A8: Tax-adjusted CAPM | B8: =B5*(1-B4)+B2*(B3+B4*B5) -> 0.04740281807 | C8: =getformula(B8) -> <-- =B5*(1-B4)+B2*(B3+B4*B5)
A10: Note: The tax-adjusted model in cell B8 uses the equivalence: E(rM) - rf (1-TC) = E(rM) - rf + TC*rf For the low levels of taxes and low rf in this example, there is virtually no difference between the two approaches.

Sheet Page 102
A1: COMPUTING E(rM) USING MARKET MULTIPLE
A2: Market price/earnings multiple, June 2012 | B2: 15.2
A3: Equity cash flow payout ratio | B3: 0.5 | C3: <-- Approx. U.S.: Dividends + repurchases
A4: Anticipated growth of market equity cash flow | B4: 0.05 | C4: <-- Analyst's estimate
A5: Expected market return, E(rM) | B5: =B3*(1+B4)/B2+B4 -> 0.08453947368 | C5: =getformula(B5) -> <-- =B3*(1+B4)/B2+B4

Sheet Page 103
A1: COMPUTING THE WACC FOR MERCK
A2: Shares outstanding | B2: 3.04 | C2: <-- Billions
A3: Share price, 29 June 2012 | B3: 41.75
A4: Equity value, E | B4: =B2*B3 -> 126.92 | C4: =getformula(B4) -> <-- =B2*B3
A5: Net debt, D | B5: 2.59 | C5: <-- Billions
A6: Tax rate, TC | B6: ='Page 98'!B3 -> 0.1284428688 | C6: =getformula(B6) -> <-- ='Page 98'!B3
A7: Cost of debt, rD | B7: 0.0423 | C7: =getformula(B7) -> <-- 0.0423
A8: Expected market return, E(rM) | B8: ='Page 102'!B5 -> 0.08453947368 | C8: =getformula(B8) -> <-- ='Page 102'!B5
A9: Risk-free rate, rf | B9: ='Page 101'!B5 -> 0.02
A10: Equity beta, b | B10: ='Pages 91,93'!B3 -> 0.6435028854 | C10: =getformula(B10) -> <-- ='Pages 91,93'!B3
A12: WACC based on Gordon per-share dividends
A13: Current dividend/share | B13: =4*'Page 84, bottom'!B43 -> 1.68 | C13: =getformula(B13) -> <-- =4*'Page 84, bottom'!B43
A14: Growth rate | B14: ='Page 84, bottom'!E9 -> 0.02021836908 | C14: =getformula(B14) -> <-- ='Page 84, bottom'!E9
A15: Cost of equity, rE | B15: =B13*(1+B14)/B3+B14 -> 0.06127146752 | C15: =getformula(B15) -> <-- =B13*(1+B14)/B3+B14
A16: WACC | B16: =B15*$B$4/($B$4+$B$5)+B7*(1-$B$6)*$B$5/($B$4+$B$5) -> 0.06078341319 | C16: =getformula(B16) -> <-- =B15*$B$4/($B$4+$B$5)+B7*(1-$B$6)*$B$5/($B$4+$B$5)
A18: WACC based on Gordon equity payouts
A19: Current equity payout | B19: ='Page 86'!E7 -> 6418 | C19: =getformula(B19) -> <-- ='Page 86'!E7
A20: Growth rate | B20: ='Page 86'!B9 -> 0.1371358997 | C20: =getformula(B20) -> <-- ='Page 86'!B9
A21: Cost of equity, rE | B21: ='Page 88, bottom'!B20 -> 0.1119906385 | C21: =getformula(B21) -> <-- ='Page 88, bottom'!B20
A22: WACC | B22: =B21*$B$4/($B$4+$B$5)+B13*(1-$B$6)*$B$5/($B$4+$B$5) -> 0.1390330572 | C22: =getformula(B22) -> <-- =B21*$B$4/($B$4+$B$5)+B13*(1-$B$6)*$B$5/($B$4+$B$5)
A24: WACC based on classic CAPM
A25: Cost of equity, rE | B25: =B9+B10*(B8-B9) -> 0.06153133754 | C25: =getformula(B25) -> <-- =B9+B10*(B8-B9)
A26: WACC | B26: =B25*$B$4/($B$4+$B$5)+B17*(1-$B$6)*$B$5/($B$4+$B$5) -> 0.06030080581 | C26: =getformula(B26) -> <-- =B25*$B$4/($B$4+$B$5)+B17*(1-$B$6)*$B$5/($B$4+$B$5)
A28: WACC based on tax-adjusted CAPM
A29: Cost of equity, rE | B29: =B9*(1-B6)+B10*(B8-B9*(1-B6)) -> 0.06061554729 | C29: =getformula(B29) -> <-- =B9*(1-B6)+B10*(B8-B9*(1-B6))
A30: WACC | B30: =B29*$B$4/($B$4+$B$5)+B21*(1-$B$6)*$B$5/($B$4+$B$5) -> 0.06135530402 | C30: =getformula(B30) -> <-- =B29*$B$4/($B$4+$B$5)+B21*(1-$B$6)*$B$5/($B$4+$B$5)
A32: Estimated WACC? | B32: =AVERAGE(B16,B26,B30) -> 0.06081317434 | C32: =getformula(B32) -> <-- =AVERAGE(B16,B26,B30)

Sheet Page 104
A1: COMPUTING WHOLE FOODS MARKET (WFM) rE WITH THE GORDON MODEL
A2: WFM stock price P0, 29 June 2012 | B2: 95.32
A3: Current dividend
A4: Quarterly | B4: =B26 -> 0.14
A5: Annualized dividend, Div0 | B5: =4*B4 -> 0.56 | C5: =getformula(B5) -> <-- =4*B4
A6: Dividend growth rate, g since April 2007 | B6: =(B26/B14)^(1/5.22)-1 -> -0.04700395605 | C6: =getformula(B6) -> <-- =(B26/B14)^(1/5.22)-1
A7: Dividend growth rate, g since January 2011 | B7: =(B26/B20)^(1/2.5)-1 -> 0.1440663559
A8: Gordon model cost of equity, rE
A9: Based on dividends since April 2007 | B9: =$B$5*(1+B6)/$B$2+B6 -> -0.04140515428 | C9: =getformula(B9) -> <-- =$B$5*(1+B6)/$B$2+B6
A10: Based on dividends since January 2011 | B10: =$B$5*(1+B7)/$B$2+B7 -> 0.1507876857 | C10: =getformula(B10) -> <-- =$B$5*(1+B7)/$B$2+B7
A12: Whole Foods Dividend History
A13: Date | B13: Dividend per share
A14: 2007-04-11 | B14: 0.18
A15: 2007-07-11 | B15: 0.18
A16: 2007-10-10 | B16: 0.18
A17: 2008-01-09 | B17: 0.2
A18: 2008-04-09 | B18: 0.2
A19: 2008-07-09 | B19: 0.2
A20: 2011-01-06 | B20: 0.1
A21: 2011-04-08 | B21: 0.1
A22: 2011-06-22 | B22: 0.1
A23: 2011-09-15 | B23: 0.1
A24: 2012-01-11 | B24: 0.14
A25: 2012-04-03 | B25: 0.14
A26: 2012-06-27 | B26: 0.14
A28: Term of dividends | B28: =(A26-A14)/365 -> 5.216438356 | C28: =getformula(B28) -> <-- =(A26-A14)/365

Sheet Page 105, top
A1: GORDON MODEL FOR WHOLE FOOD'S EQUITY PAYOUTS
B2: Dividends | C2: Common stock issuance | D2: Proceeds from stock option exercise | E2: Total equity payout
A3: 2007 | B3: 96742 | C3: 54383 | E3: =B3-C3 -> 42359 | F3: =getformula(E3) -> <-- =B3-C3
A4: 2008 | B4: 109072 | C4: 18019 | E4: =B4-C4 -> 91053
A5: 2009 | B5: 0 | C5: 4286 | E5: -4286
A6: 2010 | B6: 0 | C6: 46962 | E6: -46962
A7: 2011 | B7: 52620 | C7: 296719 | E7: -244099
A9: Growth
A11: Computing the Gordon model cost of equity rE based on total equity payouts
A12: Shares outstanding (million)
A13: Price per share
A14: Market value of equity
A16: Gordon model cost of equity, rE

Sheet Page 105, bottom
A1: COMPUTING THE WACC FOR WHOLE FOODS MARKET (WFM)
A2: Shares outstanding | B2: 183.56 | C2: <-- Millions
A3: Share price, 29 June 2012 | B3: 95.32
A4: Equity value, E | B4: =B2*B3 -> 17496.9392 | C4: =getformula(B4)&", Millions" -> <-- =B2*B3, Millions
A5: Net debt, D | B5: ='Page 75'!C17/1000 -> -728.375 | C5: <-- Millions
A6: Tax rate, TC | B6: ='Page 75, bottom'!D5 -> 0.379002088 | C6: =getformula(B6) -> <-- ='Page 75, bottom'!D5
A7: Cost of debt, rD | B7: 0.04718 | C7: <-- From financial statements, interest on term loan
A8: Expected market return, E(rM) | B8: ='Page 102'!B5 -> 0.08453947368 | C8: =getformula(B8) -> <-- ='Page 102'!B5
A9: Risk-free rate, rf | B9: 0.0006
A10: Equity beta, b | B10: 0.51 | C10: <-- From Yahoo
A12: WACC based on Gordon per-share dividends
A13: Current dividend/share | B13: ='Page 104'!B5 -> 0.56 | C13: =getformula(B13) -> <-- ='Page 104'!B5
A14: Growth rate | B14: =AVERAGE('Page 104'!B9:B10) -> 0.0546912657 | C14: =getformula(B14) -> <-- =AVERAGE('Page 104'!B9:B10)
A15: Cost of equity, rE | B15: =B13*(1+B14)/B3+B14 -> 0.06088752157 | C15: =getformula(B15) -> <-- =B13*(1+B14)/B3+B14
A16: WACC | B16: =B15*$B$4/($B$4+$B$5)+B7*(1-$B$6)*$B$5/($B$4+$B$5) -> 0.0622596439 | C16: =getformula(B16) -> <-- =B15*$B$4/($B$4+$B$5)+B7*(1-$B$6)*$B$5/($B$4+$B$5)
A18: WACC based on Gordon equity payouts
A19: Current equity payout | B19: Not applicable
A20: Growth rate
A21: Cost of equity, rE
A22: WACC
A24: WACC based on classic CAPM
A25: Cost of equity, rE | B25: =B9+B10*(B8-B9) -> 0.04340913158 | C25: =getformula(B25) -> <-- =B9+B10*(B8-B9)
A26: WACC | B26: =B25*$B$4/($B$4+$B$5)+B17*(1-$B$6)*$B$5/($B$4+$B$5) -> 0.04529469112 | C26: =getformula(B26) -> <-- =B25*$B$4/($B$4+$B$5)+B17*(1-$B$6)*$B$5/($B$4+$B$5)
A28: WACC based on tax-adjusted CAPM
A29: Cost of equity, rE | B29: =B9*(1-B6)+B10*(B8-B9*(1-B6)) -> 0.04329770497 | C29: =getformula(B29) -> <-- =B9*(1-B6)+B10*(B8-B9*(1-B6))
A30: WACC | B30: =B29*$B$4/($B$4+$B$5)+B21*(1-$B$6)*$B$5/($B$4+$B$5) -> 0.04517842448 | C30: =getformula(B30) -> <-- =B29*$B$4/($B$4+$B$5)+B21*(1-$B$6)*$B$5/($B$4+$B$5)
A32: Estimated WACC? | B32: =AVERAGE(B16,B26,B30) -> 0.05091091983 | C32: =getformula(B32) -> <-- =AVERAGE(B16,B26,B30)

Sheet Page 106, top
A1: CATERPILLAR DEBT and Cost of debt rD Numbers in thousands
B2: 2009-12-31 | C2: 2010-12-31 | D2: 2011-12-31
A3: Cash | B3: 4867000 | C3: 3592000 | D3: 3057000
A5: Short-term debt | B5: 9648000 | C5: 7981000 | D5: 9784000
A6: Long-term debt | B6: 24944000 | C6: 20437000 | D6: 21847000
A8: Net debt | B8: =SUM(B5:B6)-SUM(B3:B3) -> 29725000 | C8: =SUM(C5:C6)-SUM(C3:C3) -> 24826000 | D8: =SUM(D5:D6)-SUM(D3:D3) -> 28574000
A10: Interest expense | B10: 389000 | C10: 343000 | D10: 396000
A11: Cost of debt, rD? | C11: =C10/AVERAGE(B8:C8) -> 0.01257538817 | D11: =D10/AVERAGE(C8:D8) -> 0.01483146067 | E11: =getformula(D11) -> <-- =D10/AVERAGE(C8:D8)

Sheet Page 106, bottom
A1: CATERPILLAR TAX RATE
B2: 40178 | C2: 40543 | D2: 40908
A3: Income before tax | B3: 569000 | C3: 3750000 | D3: 6725000
A4: Income tax expense | B4: -270000 | C4: 968000 | D4: 1720000
A5: Implied tax rate | B5: =B4/B3 -> -0.474516696 | C5: =C4/C3 -> 0.2581333333 | D5: =D4/D3 -> 0.2557620818 | E5: =getformula(D5) -> <-- =D4/D3

Sheet Page 107
A1: CATERPILLAR DIVIDEND GROWTH AND GORDON DIVIDEND rE
A2: Date | B2: Dividend per share | D2: Dividend growth
A3: 2001-10-18 | B3: 0.175 | D3: Whole period
A4: 2002-01-17 | B4: 0.175 | D4: Quarterly growth | E4: =(B43/B3)^(1/40)-1 -> 0.02445525511 | F4: =getformula(E4) -> <-- =(B43/B3)^(1/40)-1
A5: 2002-04-18 | B5: 0.175 | D5: Annual growth | E5: =(1+E4)^4-1 -> 0.1014682379 | F5: =getformula(E5) -> <-- =(1+E4)^4-1
A6: 2002-07-18 | B6: 0.175
A7: 2002-10-17 | B7: 0.175 | D7: Last 5 years
A8: 2003-01-16 | B8: 0.175 | D8: Quarterly growth | E8: =(B43/B23)^(1/20)-1 -> 0.02160222199 | F8: =getformula(E8) -> <-- =(B43/B23)^(1/20)-1
A9: 2003-04-16 | B9: 0.175 | D9: Annual growth | E9: =(1+E8)^4-1 -> 0.08924936491 | F9: =getformula(E9) -> <-- =(1+E8)^4-1
A10: 2003-07-17 | B10: 0.175
A11: 2003-10-16 | B11: 0.185 | D11: Cost of equity
A12: 2004-01-15 | B12: 0.185 | D12: Current share price, P0 | E12: 90.6
A13: 2004-04-22 | B13: 0.185 | D13: Current dividend, Div0 | E13: 0.7
A14: 2004-07-16 | B14: 0.205 | D14: Dividend growth, g | E14: =E9 -> 0.08924936491 | F14: =getformula(E14) -> <-- =E9
A15: 2004-10-21 | B15: 0.205 | D15: Gordon cost of equity, rE | E15: =E13*(1+E14)/E12+E14 -> 0.09766519886 | F15: =getformula(E15) -> <-- =E13*(1+E14)/E12+E14
A16: 2005-01-18 | B16: 0.205
A17: 2005-04-21 | B17: 0.205
A18: 2005-07-20 | B18: 0.25
A19: 2005-10-20 | B19: 0.25
A20: 2006-01-18 | B20: 0.25
A21: 2006-04-20 | B21: 0.25
A22: 2006-07-18 | B22: 0.3
A23: 2006-10-19 | B23: 0.3
A24: 2007-01-18 | B24: 0.3
A25: 2007-04-19 | B25: 0.3
A26: 2007-07-18 | B26: 0.36
A27: 2007-10-18 | B27: 0.36
A28: 2008-01-17 | B28: 0.36
A29: 2008-04-17 | B29: 0.36
A30: 2008-07-17 | B30: 0.42
A31: 2008-10-16 | B31: 0.42
A32: 2009-01-15 | B32: 0.42
A33: 2009-04-16 | B33: 0.42
A34: 2009-07-16 | B34: 0.42
A35: 2009-10-22 | B35: 0.42
A36: 2010-01-15 | B36: 0.42
A37: 2010-04-22 | B37: 0.42
A38: 2010-07-16 | B38: 0.44
A39: 2010-10-21 | B39: 0.44
A40: 2011-01-18 | B40: 0.44
A41: 2011-04-20 | B41: 0.44
A42: 2011-07-18 | B42: 0.46
A43: 2011-10-20 | B43: 0.46

Sheet Page 108, top
A1: CATERPILLAR'S EQUITY PAYOUTS
B2: Dividends | C2: Shares issued | D2: Treasury shares purchased | E2: Total equity payout
A3: 2007-12-31 | B3: 845 | C3: -328 | D3: 2405 | E3: =B3+C3+D3 -> 2922 | F3: =getformula(E3) -> <-- =B3+C3+D3
A4: 2008-12-31 | B4: 953 | C4: -135 | D4: 1800 | E4: =B4+C4+D4 -> 2618
A5: 2009-12-31 | B5: 1029 | C5: -89 | E5: =B5+C5+D5 -> 940
A6: 2010-12-31 | B6: 1084 | C6: -296 | E6: =B6+C6+D6 -> 788
A7: 2011-12-31 | B7: 1159 | C7: -123 | E7: =B7+C7+D7 -> 1036
A9: Growth, 5 years | B9: =(E7/E3)^(1/4)-1 -> -0.2283508432 | C9: =getformula(B9) -> <-- =(E7/E3)^(1/4)-1
A10: Growth, last 3 years | B10: =(E7/E5)^(1/2)-1 -> 0.04982268006 | C10: =getformula(B10) -> <-- =(E7/E5)^(1/2)-1

Sheet Page 109, bottom
A1: COMPUTING THE WACC FOR CATERPILLAR (CAT)
A2: Shares outstanding | B2: =(814894624-190171905)/1000000 -> 624.722719 | C2: <-- million
A3: Share price, 29 June 2012 | B3: 90.6
A4: Equity value, E | B4: =B2*B3/1000 -> 56.59987834 | C4: =getformula(B4) -> <-- =B2*B3/1000
A5: Net debt, D | B5: ='Page 106, top'!D8/1000000 -> 28.574 | C5: <-- Billions
A6: Tax rate, TC | B6: ='Page 106, bottom'!D5 -> 0.2557620818 | C6: =getformula(B6) -> <-- ='Page 106, bottom'!D5
A7: Cost of debt, rD | B7: ='Page 106, top'!D11 -> 0.01483146067 | C7: =getformula(B7) -> <-- ='Page 106, top'!D11
A8: Expected market return, E(rM) | B8: ='Page 102'!B5 -> 0.08453947368 | C8: =getformula(B8) -> <-- ='Page 102'!B5
A9: Risk-free rate, rf | B9: 0.0006
A10: Equity beta, b | B10: 1.98 | C10: <-- Yahoo
A12: WACC based on Gordon per-share dividends
A13: Current dividend/share | B13: =4*'Page 107'!B3 -> 0.7 | C13: =getformula(B13) -> <-- =4*'Page 107'!B3
A14: Growth rate | B14: ='Page 107'!E15 -> 0.09766519886 | C14: =getformula(B14) -> <-- ='Page 107'!E15
A15: Cost of equity, rE | B15: =B13*(1+B14)/B3+B14 -> 0.1061460558 | C15: =getformula(B15) -> <-- =B13*(1+B14)/B3+B14
A16: WACC | B16: =B15*$B$4/($B$4+$B$5)+B7*(1-$B$6)*$B$5/($B$4+$B$5) -> 0.07423939886 | C16: =getformula(B16) -> <-- =B15*$B$4/($B$4+$B$5)+B7*(1-$B$6)*$B$5/($B$4+$B$5)
A18: WACC based on Gordon equity payouts
A19: Current equity payout | B19: ='Page 108, top'!E7/1000 -> 1.036 | C19: =getformula(B19) -> <-- ='Page 108, top'!E7/1000
A20: Growth rate | B20: ='Page 108, top'!B10 -> 0.04982268006 | C20: =getformula(B20) -> <-- ='Page 108, top'!B10
A21: Cost of equity, rE | B21: =B19*(1+B20)/B4+B20 -> 0.06903855699 | C21: =getformula(B21) -> <-- =B19*(1+B20)/B4+B20
A22: WACC | B22: =B21*$B$4/($B$4+$B$5)+B7*(1-$B$6)*$B$5/($B$4+$B$5) -> 0.04958066593 | C22: =getformula(B22) -> <-- =B21*$B$4/($B$4+$B$5)+B7*(1-$B$6)*$B$5/($B$4+$B$5)
A24: WACC based on classic CAPM
A25: Cost of equity, rE | B25: =B9+B10*(B8-B9) -> 0.1668001579 | C25: =getformula(B25) -> <-- =B9+B10*(B8-B9)
A26: WACC | B26: =B25*$B$4/($B$4+$B$5)+B17*(1-$B$6)*$B$5/($B$4+$B$5) -> 0.1108423008 | C26: =getformula(B26) -> <-- =B25*$B$4/($B$4+$B$5)+B17*(1-$B$6)*$B$5/($B$4+$B$5)
A28: WACC based on tax-adjusted CAPM
A29: Cost of equity, rE | B29: =B9*(1-B6)+B10*(B8-B9*(1-B6)) -> 0.166950546 | C29: =getformula(B29) -> <-- =B9*(1-B6)+B10*(B8-B9*(1-B6))
A30: WACC | B30: =B29*$B$4/($B$4+$B$5)+B21*(1-$B$6)*$B$5/($B$4+$B$5) -> 0.1281794923 | C30: =getformula(B30) -> <-- =B29*$B$4/($B$4+$B$5)+B21*(1-$B$6)*$B$5/($B$4+$B$5)
A32: Estimated WACC? | B32: =AVERAGE(B26,B30) -> 0.1195108966 | C32: =getformula(B32) -> <-- =AVERAGE(B26,B30)

Sheet Pages 109,110
A1: FORD MOTOR CO. DIVIDEND HISTORY 1989-1998
A2: Year | B2: Dividend
A3: 1989 | B3: 3
A4: 1990 | B4: 3
A5: 1991 | B5: 1.95
A6: 1992 | B6: 1.6
A7: 1993 | B7: 1.6
A8: 1994 | B8: 1.33
A9: 1995 | B9: 1.23
A10: 1996 | B10: 1.46
A11: 1997 | B11: 1.64
A12: 1998 | B12: 22.81
A13: Growth rate, 1989-1997 | B13: =(B11/B3)^(1/8)-1 -> -0.07271053841 | C13: =getformula(B13) -> <-- =(B11/B3)^(1/8)-1
A14: Growth rate, 1989-1998 | B14: =(B12/B3)^(1/9)-1 -> 0.2528219007 | C14: =getformula(B14) -> <-- =(B12/B3)^(1/9)-1
A17: FORD'S DIVIDENS EXCLUDING THE 1998 $21.09 DIVIDEND
A18: Year | B18: Dividend
A19: 1989 | B19: 3
A20: 1990 | B20: 3
A21: 1991 | B21: 1.95
A22: 1992 | B22: 1.6
A23: 1993 | B23: 1.6
A24: 1994 | B24: 1.33
A25: 1995 | B25: 1.23
A26: 1996 | B26: 1.46
A27: 1997 | B27: 1.64
A28: 1998 | B28: 1.72
A29: Growth rate, 1994-1998 | B29: =(B28/B24)^(1/4)-1 -> 0.06639770433 | C29: =getformula(B29) -> <-- =(B28/B24)^(1/4)-1
A30: Ford's stock price, end-1998 | B30: 58.69
A31: Gordon cost of equity | B31: =B28*(1+B29)/B30+B29 -> 0.09765011618 | C31: =getformula(B31) -> <-- =B28*(1+B29)/B30+B29

Sheet Page 111
A1: COMPUTING BIG CITY BAGEL'S BETA
A2: S&P 500 Index | E2: Big City Bagels (BIGC)
A3: Date | B3: Closing price | E3: Date | F3: Closing price | I3: CAPM cost of equity calculations calculations
A4: 1996-05-01 | B4: 669.12 | E4: 1996-05-01 | F4: 46.25
A5: 1996-06-01 | B5: 670.63 | C5: =B5/B4-1 -> 0.002256695361 | E5: 1996-06-01 | F5: 38.75 | G5: =F5/F4-1 -> -0.1621621622 | I5: Big City's beta | J5: =COVAR(C5:C38,G5:G38)/VARP(C5:C38) -> -0.6407520978 | K5: =getformula(J5) -> <-- =COVAR(C5:C38,G5:G38)/VARP(C5:C38)
A6: 1996-07-01 | B6: 639.95 | C6: =B6/B5-1 -> -0.04574802797 | E6: 1996-07-01 | F6: 50 | G6: 0.2903225806
A7: 1996-08-01 | B7: 651.99 | C7: 0.01881396984 | E7: 1996-08-01 | F7: 45.625 | G7: -0.0875 | I7: Classical CAPM cost of equity
A8: 1996-09-01 | B8: 687.33 | C8: 0.05420328533 | E8: 1996-09-01 | F8: 35 | G8: -0.2328767123 | I8: Risk premium | J8: 0.084 | K8: <-- E(rM)-rf
A9: 1996-10-01 | B9: 705.27 | C9: 0.02610099952 | E9: 1996-10-01 | F9: 33.75 | G9: -0.03571428571 | I9: Risk-free rate | J9: 0.044 | K9: <-- Treasury bill rate, end 1998
A10: 1996-11-01 | B10: 757.02 | C10: 0.07337615381 | E10: 1996-11-01 | F10: 16.25 | G10: -0.5185185185 | I10: rE, the cost of equity | J10: =J9+J5*J8 -> -0.009823176219 | K10: =getformula(J10) -> <-- =J9+J5*J8
A11: 1996-12-01 | B11: 740.74 | C11: -0.02150537634 | E11: 1996-12-01 | F11: 13.125 | G11: -0.1923076923
A12: 1997-01-01 | B12: 786.16 | C12: 0.06131706132 | E12: 1997-01-01 | F12: 17.5 | G12: 0.3333333333 | I12: Tax-adjusted CAPM
A13: 1997-02-01 | B13: 790.82 | C13: 0.005927546555 | E13: 1997-02-01 | F13: 22.5 | G13: 0.2857142857 | I13: Risk premium | J13: 0.084 | K13: <-- E(rM)-rf
A14: 1997-03-01 | B14: 757.12 | C14: -0.0426139956 | E14: 1997-03-01 | F14: 25.625 | G14: 0.1388888889 | I14: Risk-free rate | J14: =J9 -> 0.044 | K14: <-- Treasury bill rate, end 1998
A15: 1997-04-01 | B15: 801.34 | C15: 0.05840553677 | E15: 1997-04-01 | F15: 30 | G15: 0.1707317073 | I15: Corporate tax | J15: 0.4
A16: 1997-05-01 | B16: 848.28 | C16: 0.05857688372 | E16: 1997-05-01 | F16: 25 | G16: -0.1666666667 | I16: Tax-adjusted SML slope | J16: =J13+J15*J14 -> 0.1016 | K16: <-- =J13+J15*J14 = E(rM)-rf*(1-TC)
A17: 1997-06-01 | B17: 885.14 | C17: 0.04345263356 | E17: 1997-06-01 | F17: 24.375 | G17: -0.025 | I17: rE, the cost of equity | J17: =J14*(1-J15)+J5*J16 -> -0.03870041314 | K17: =getformula(J17) -> <-- =J14*(1-J15)+J5*J16
A18: 1997-07-01 | B18: 954.31 | C18: 0.07814583004 | E18: 1997-07-01 | F18: 26.25 | G18: 0.07692307692
A19: 1997-08-01 | B19: 899.47 | C19: -0.05746560342 | E19: 1997-08-01 | F19: 20.9375 | G19: -0.2023809524
A20: 1997-09-01 | B20: 947.28 | C20: 0.05315352374 | E20: 1997-09-01 | F20: 22.5 | G20: 0.07462686567
A21: 1997-10-01 | B21: 914.62 | C21: -0.03447766236 | E21: 1997-10-01 | F21: 10.1562 | G21: -0.5486133333
A22: 1997-11-01 | B22: 955.4 | C22: 0.04458682294 | E22: 1997-11-01 | F22: 12.5 | G22: 0.23077529
A23: 1997-12-01 | B23: 970.43 | C23: 0.01573163073 | E23: 1997-12-01 | F23: 6.4062 | G23: -0.487504
A24: 1998-01-01 | B24: 980.28 | C24: 0.01015013963 | E24: 1998-01-01 | F24: 5.9375 | G24: -0.07316349786
A25: 1998-02-01 | B25: 1049.34 | C25: 0.0704492594 | E25: 1998-02-01 | F25: 4.375 | G25: -0.2631578947
A26: 1998-03-01 | B26: 1101.75 | C26: 0.04994568014 | E26: 1998-03-01 | F26: 4.375 | G26: 0
A27: 1998-04-01 | B27: 1111.75 | C27: 0.009076469253 | E27: 1998-04-01 | F27: 2.1875 | G27: -0.5
A28: 1998-05-01 | B28: 1090.82 | C28: -0.01882617495 | E28: 1998-05-01 | F28: 2.0312 | G28: -0.07145142857
A29: 1998-06-01 | B29: 1133.84 | C29: 0.03943822079 | E29: 1998-06-01 | F29: 1 | G29: -0.5076801891
A30: 1998-07-01 | B30: 1120.67 | C30: -0.01161539547 | E30: 1998-07-01 | F30: 1 | G30: 0
A31: 1998-08-01 | B31: 957.28 | C31: -0.1457967109 | E31: 1998-08-01 | F31: 0.625 | G31: -0.375
A32: 1998-09-01 | B32: 1017.01 | C32: 0.06239553736 | E32: 1998-09-01 | F32: 0.375 | G32: -0.4
A33: 1998-10-01 | B33: 1098.67 | C33: 0.08029419573 | E33: 1998-10-01 | F33: 0.25 | G33: -0.3333333333
A34: 1998-11-01 | B34: 1163.63 | C34: 0.0591260342 | E34: 1998-11-01 | F34: 0.375 | G34: 0.5
A35: 1998-12-01 | B35: 1229.23 | C35: 0.0563753083 | E35: 1998-12-01 | F35: 0.25 | G35: -0.3333333333
A36: 1999-01-01 | B36: 1279.64 | C36: 0.0410094124 | E36: 1999-01-01 | F36: 0.375 | G36: 0.5
A37: 1999-02-01 | B37: 1238.33 | C37: -0.03228251696 | E37: 1999-02-01 | F37: 1.0625 | G37: 1.833333333
A38: 1999-03-01 | B38: 1286.37 | C38: 0.03879418249 | E38: 1999-03-01 | F38: 0.9688 | G38: -0.08818823529
A39: Return sigma (monthly) | C39: =STDEV(C5:C38) -> 0.04913247648 | G39: =STDEV(G5:G38) -> 0.4380551024
A40: Return sigma (annual) | C40: =SQRT(12)*C39 -> 0.1701998911 | G40: =SQRT(12)*G39 -> 1.517467388

Sheet 3month_treasury_raw
A1: ST. LOUIS FEDERAL RESERVE TREASURY-BILL RATES
A2: Title: | C2: 3-Month Treasury Bill: Secondary Market Rate
A3: Series ID: | C3: TB3MS
A4: Source: | C4: Board of Governors of theFederal Reserve System
A5: Release: | C5: H.15 Selected Interest Rates
A6: Seasonal Adjustment: | C6: Not Seasonally Adjusted
A7: Frequency: | C7: Monthly
A8: Units: | C8: Percent
A9: Date Range: | C9: 1934-01-01 to 2012-05-01
A10: Last Updated: | C10: 2012-06-04 3:31 PM CDT
A11: Notes: | C11: Averages of Business Days, Discount Basis
A13: DATE | B13: VALUE
A14: 1934-01-01 | B14: 0.72
A15: 1934-02-01 | B15: 0.62
A16: 1934-03-01 | B16: 0.24
A17: 1934-04-01 | B17: 0.15
A18: 1934-05-01 | B18: 0.16
A19: 1934-06-01 | B19: 0.15
A20: 1934-07-01 | B20: 0.15
A21: 1934-08-01 | B21: 0.19
A22: 1934-09-01 | B22: 0.21
A23: 1934-10-01 | B23: 0.27
A24: 1934-11-01 | B24: 0.25
A25: 1934-12-01 | B25: 0.23
A26: 1935-01-01 | B26: 0.2
A27: 1935-02-01 | B27: 0.19
A28: 1935-03-01 | B28: 0.15
A29: 1935-04-01 | B29: 0.15
A30: 1935-05-01 | B30: 0.15
A31: 1935-06-01 | B31: 0.15
A32: 1935-07-01 | B32: 0.15
A33: 1935-08-01 | B33: 0.16
A34: 1935-09-01 | B34: 0.2
A35: 1935-10-01 | B35: 0.2
A36: 1935-11-01 | B36: 0.16
A37: 1935-12-01 | B37: 0.15
A38: 1936-01-01 | B38: 0.2
A39: 1936-02-01 | B39: 0.2
A40: 1936-03-01 | B40: 0.2
A41: 1936-04-01 | B41: 0.2
A42: 1936-05-01 | B42: 0.2
A43: 1936-06-01 | B43: 0.2
A44: 1936-07-01 | B44: 0.15
A45: 1936-08-01 | B45: 0.2
A46: 1936-09-01 | B46: 0.16
A47: 1936-10-01 | B47: 0.13
A48: 1936-11-01 | B48: 0.11
A49: 1936-12-01 | B49: 0.12
A50: 1937-01-01 | B50: 0.17
A51: 1937-02-01 | B51: 0.15
A52: 1937-03-01 | B52: 0.38
A53: 1937-04-01 | B53: 0.56
A54: 1937-05-01 | B54: 0.41
A55: 1937-06-01 | B55: 0.36
A56: 1937-07-01 | B56: 0.28
A57: 1937-08-01 | B57: 0.29
A58: 1937-09-01 | B58: 0.31
A59: 1937-10-01 | B59: 0.2
A60: 1937-11-01 | B60: 0.09
A61: 1937-12-01 | B61: 0.11
A62: 1938-01-01 | B62: 0.1
A63: 1938-02-01 | B63: 0.08
A64: 1938-03-01 | B64: 0.08
A65: 1938-04-01 | B65: 0.09
A66: 1938-05-01 | B66: 0.05
A67: 1938-06-01 | B67: 0.05
A68: 1938-07-01 | B68: 0.07
A69: 1938-08-01 | B69: 0.06
A70: 1938-09-01 | B70: 0.08
A71: 1938-10-01 | B71: 0.05
A72: 1938-11-01 | B72: 0.04
A73: 1938-12-01 | B73: 0.03
A74: 1939-01-01 | B74: 0.03
A75: 1939-02-01 | B75: 0.03
A76: 1939-03-01 | B76: 0.03
A77: 1939-04-01 | B77: 0.03
A78: 1939-05-01 | B78: 0.03
A79: 1939-06-01 | B79: 0.03
A80: 1939-07-01 | B80: 0.04
A81: 1939-08-01 | B81: 0.05
A82: 1939-09-01 | B82: 0.14
A83: 1939-10-01 | B83: 0.05
A84: 1939-11-01 | B84: 0.05
A85: 1939-12-01 | B85: 0.04
A86: 1940-01-01 | B86: 0.01
A87: 1940-02-01 | B87: 0.02
A88: 1940-03-01 | B88: 0.02
A89: 1940-04-01 | B89: 0.02
A90: 1940-05-01 | B90: 0.06
A91: 1940-06-01 | B91: 0.1
A92: 1940-07-01 | B92: 0.05
A93: 1940-08-01 | B93: 0.04
A94: 1940-09-01 | B94: 0.05
A95: 1940-10-01 | B95: 0.02
A96: 1940-11-01 | B96: 0.02
A97: 1940-12-01 | B97: 0.02
A98: 1941-01-01 | B98: 0.02
A99: 1941-02-01 | B99: 0.04
A100: 1941-03-01 | B100: 0.11
A101: 1941-04-01 | B101: 0.1
A102: 1941-05-01 | B102: 0.11
A103: 1941-06-01 | B103: 0.12
A104: 1941-07-01 | B104: 0.12
A105: 1941-08-01 | B105: 0.13
A106: 1941-09-01 | B106: 0.1
A107: 1941-10-01 | B107: 0.09
A108: 1941-11-01 | B108: 0.28
A109: 1941-12-01 | B109: 0.33
A110: 1942-01-01 | B110: 0.27
A111: 1942-02-01 | B111: 0.25
A112: 1942-03-01 | B112: 0.25
A113: 1942-04-01 | B113: 0.32
A114: 1942-05-01 | B114: 0.37
A115: 1942-06-01 | B115: 0.37
A116: 1942-07-01 | B116: 0.38
A117: 1942-08-01 | B117: 0.38
A118: 1942-09-01 | B118: 0.38
A119: 1942-10-01 | B119: 0.38
A120: 1942-11-01 | B120: 0.38
A121: 1942-12-01 | B121: 0.38
A122: 1943-01-01 | B122: 0.38
A123: 1943-02-01 | B123: 0.38
A124: 1943-03-01 | B124: 0.38
A125: 1943-04-01 | B125: 0.38
A126: 1943-05-01 | B126: 0.38
A127: 1943-06-01 | B127: 0.38
A128: 1943-07-01 | B128: 0.38
A129: 1943-08-01 | B129: 0.38
A130: 1943-09-01 | B130: 0.38
A131: 1943-10-01 | B131: 0.38
A132: 1943-11-01 | B132: 0.38
A133: 1943-12-01 | B133: 0.38
A134: 1944-01-01 | B134: 0.38
A135: 1944-02-01 | B135: 0.38
A136: 1944-03-01 | B136: 0.38
A137: 1944-04-01 | B137: 0.38
A138: 1944-05-01 | B138: 0.38
A139: 1944-06-01 | B139: 0.38
A140: 1944-07-01 | B140: 0.38
A141: 1944-08-01 | B141: 0.38
A142: 1944-09-01 | B142: 0.38
A143: 1944-10-01 | B143: 0.38
A144: 1944-11-01 | B144: 0.38
A145: 1944-12-01 | B145: 0.38
A146: 1945-01-01 | B146: 0.38
A147: 1945-02-01 | B147: 0.38
A148: 1945-03-01 | B148: 0.38
A149: 1945-04-01 | B149: 0.38
A150: 1945-05-01 | B150: 0.38
A151: 1945-06-01 | B151: 0.38
A152: 1945-07-01 | B152: 0.38
A153: 1945-08-01 | B153: 0.38
A154: 1945-09-01 | B154: 0.38
A155: 1945-10-01 | B155: 0.38
A156: 1945-11-01 | B156: 0.38
A157: 1945-12-01 | B157: 0.38
A158: 1946-01-01 | B158: 0.38
A159: 1946-02-01 | B159: 0.38
A160: 1946-03-01 | B160: 0.38
A161: 1946-04-01 | B161: 0.38
A162: 1946-05-01 | B162: 0.38
A163: 1946-06-01 | B163: 0.38
A164: 1946-07-01 | B164: 0.38
A165: 1946-08-01 | B165: 0.38
A166: 1946-09-01 | B166: 0.38
A167: 1946-10-01 | B167: 0.38
A168: 1946-11-01 | B168: 0.38
A169: 1946-12-01 | B169: 0.38
A170: 1947-01-01 | B170: 0.38
A171: 1947-02-01 | B171: 0.38
A172: 1947-03-01 | B172: 0.38
A173: 1947-04-01 | B173: 0.38
A174: 1947-05-01 | B174: 0.38
A175: 1947-06-01 | B175: 0.38
A176: 1947-07-01 | B176: 0.66
A177: 1947-08-01 | B177: 0.75
A178: 1947-09-01 | B178: 0.8
A179: 1947-10-01 | B179: 0.85
A180: 1947-11-01 | B180: 0.92
A181: 1947-12-01 | B181: 0.95
A182: 1948-01-01 | B182: 0.97
A183: 1948-02-01 | B183: 1
A184: 1948-03-01 | B184: 1
A185: 1948-04-01 | B185: 1
A186: 1948-05-01 | B186: 1
A187: 1948-06-01 | B187: 1
A188: 1948-07-01 | B188: 1
A189: 1948-08-01 | B189: 1.06
A190: 1948-09-01 | B190: 1.09
A191: 1948-10-01 | B191: 1.12
A192: 1948-11-01 | B192: 1.14
A193: 1948-12-01 | B193: 1.16
A194: 1949-01-01 | B194: 1.17
A195: 1949-02-01 | B195: 1.17
A196: 1949-03-01 | B196: 1.17
A197: 1949-04-01 | B197: 1.17
A198: 1949-05-01 | B198: 1.17
A199: 1949-06-01 | B199: 1.17
A200: 1949-07-01 | B200: 1.02
A201: 1949-08-01 | B201: 1.04
... 753 more rows

Sheet 3month_treasury (2)
A1: ST. LOUIS FEDERAL RESERVE TREASURY-BILL RATES
A3: Date | B3: Discount basis | C3: Annual interest rate | D3: Monthly interest rate | F3: ="The formula in cell "&CHAR(COLUMN(C4)+64)&ROW(C4)&" translates from discount basis to annualized interest rate: "&CHAR(10)&ggetformula(C4) -> The formula in cell C4 translates from discount basis to annualized interest rate: =LN(100/(100-B4))
A4: 1987-04-01 | B4: 1900-01-05T15:21:36 | C4: =LN(100/(100-B4)) -> 0.05805293145 | D4: =C4/12 -> 0.004837744287 | E4: =getformula(D4) -> <-- =C4/12
A5: 1987-05-01 | B5: 1900-01-05T15:50:24 | C5: =LN(100/(100-B5)) -> 0.05826490813 | D5: =C5/12 -> 0.004855409011 | E5: =getformula(D5) -> <-- =C5/12
A6: 1987-06-01 | B6: 1900-01-05T16:04:48 | C6: 0.05837091333 | D6: 0.004864242777 | E6: <-- =C6/12
A7: 1987-07-01 | B7: 1900-01-05T16:33:36 | C7: 0.05858295743 | D7: 0.004881913119 | E7: <-- =C7/12
A8: 1987-08-01 | B8: 1900-01-06T00:57:36 | C8: 0.0623010262 | D8: 0.005191752183 | E8: <-- =C8/12
A9: 1987-09-01 | B9: 1900-01-06T09:36:00 | C9: 0.0661398025 | D9: 0.005511650209 | E9: <-- =C9/12
A10: 1987-10-01 | B10: 1900-01-06T03:07:12 | C10: 0.06325933964 | D10: 0.005271611637 | E10: <-- =C10/12
A11: 1987-11-01 | B11: 1900-01-05T16:33:36 | C11: 0.05858295743 | D11: 0.004881913119
A12: 1987-12-01 | B12: 1900-01-05T18:28:48 | C12: 0.05943158377 | D12: 0.004952631981
A13: 1988-01-01 | B13: 1900-01-05T19:26:24 | C13: 0.05985616715 | D13: 0.004988013929
A14: 1988-02-01 | B14: 1900-01-05T15:50:24 | C14: 0.05826490813 | D14: 0.004855409011
A15: 1988-03-01 | B15: 1900-01-05T16:48:00 | C15: 0.05868899635 | D15: 0.004890749696
A16: 1988-04-01 | B16: 1900-01-05T21:50:24 | C16: 0.06091841497 | D16: 0.005076534581
A17: 1988-05-01 | B17: 1900-01-06T06:14:24 | C17: 0.06464519349 | D17: 0.005387099458
A18: 1988-06-01 | B18: 1900-01-06T11:02:24 | C18: 0.06678103369 | D18: 0.005565086141
A19: 1988-07-01 | B19: 1900-01-06T17:31:12 | C19: 0.06967167325 | D19: 0.005805972771
A20: 1988-08-01 | B20: 1900-01-07T01:26:24 | C20: 0.07321606233 | D20: 0.006101338528
A21: 1988-09-01 | B21: 1900-01-07T05:45:36 | C21: 0.0751546736 | D21: 0.006262889467
A22: 1988-10-01 | B22: 1900-01-07T08:24:00 | C22: 0.07634123326 | D22: 0.006361769438
A23: 1988-11-01 | B23: 1900-01-07T18:14:24 | C23: 0.08077631003 | D23: 0.006731359169
A24: 1988-12-01 | B24: 1900-01-08T01:40:48 | C24: 0.08414276811 | D24: 0.007011897343
A25: 1989-01-01 | B25: 1900-01-08T06:28:48 | C25: 0.08632070647 | D25: 0.007193392206
A26: 1989-02-01 | B26: 1900-01-08T12:43:12 | C26: 0.08915913632 | D26: 0.007429928027
A27: 1989-03-01 | B27: 1900-01-08T19:40:48 | C27: 0.0923346112 | D27: 0.007694550934
A28: 1989-04-01 | B28: 1900-01-08T15:36:00 | C28: 0.09047190316 | D28: 0.007539325264
A29: 1989-05-01 | B29: 1900-01-08T10:19:12 | C29: 0.08806647887 | D29: 0.007338873239
A30: 1989-06-01 | B30: 1900-01-08T03:36:00 | C30: 0.08501337433 | D30: 0.007084447861
A31: 1989-07-01 | B31: 1900-01-07T21:07:12 | C31: 0.08207811104 | D31: 0.006839842586
A32: 1989-08-01 | B32: 1900-01-07T21:36:00 | C32: 0.08229524273 | D32: 0.006857936894
A33: 1989-09-01 | B33: 1900-01-07T18:00:00 | C33: 0.08066790307 | D33: 0.006722325256
A34: 1989-10-01 | B34: 1900-01-07T15:21:36 | C34: 0.0794762015 | D34: 0.006623016792
A35: 1989-11-01 | B35: 1900-01-07T16:33:36 | C35: 0.08001770799 | D35: 0.006668142332
A36: 1989-12-01 | B36: 1900-01-07T15:07:12 | C36: 0.07936793538 | D36: 0.006613994615
A37: 1990-01-01 | B37: 1900-01-07T15:21:36 | C37: 0.0794762015 | D37: 0.006623016792
A38: 1990-02-01 | B38: 1900-01-07T17:45:36 | C38: 0.08055950786 | D38: 0.006713292322
A39: 1990-03-01 | B39: 1900-01-07T21:36:00 | C39: 0.08229524273 | D39: 0.006857936894
A40: 1990-04-01 | B40: 1900-01-07T18:28:48 | C40: 0.08088472874 | D40: 0.006740394062
A41: 1990-05-01 | B41: 1900-01-07T17:45:36 | C41: 0.08055950786 | D41: 0.006713292322
A42: 1990-06-01 | B42: 1900-01-07T17:31:12 | C42: 0.0804511244 | D42: 0.006704260366
A43: 1990-07-01 | B43: 1900-01-07T14:52:48 | C43: 0.07925968099 | D43: 0.006604973415
A44: 1990-08-01 | B44: 1900-01-07T10:48:00 | C44: 0.07742114697 | D44: 0.006451762247
A45: 1990-09-01 | B45: 1900-01-07T08:38:24 | C45: 0.07644917216 | D45: 0.006370764347
A46: 1990-10-01 | B46: 1900-01-07T04:04:48 | C46: 0.07440032258 | D46: 0.006200026881
A47: 1990-11-01 | B47: 1900-01-07T01:26:24 | C47: 0.07321606233 | D47: 0.006101338528
A48: 1990-12-01 | B48: 1900-01-06T17:45:36 | C48: 0.06977889461 | D48: 0.005814907884
A49: 1991-01-01 | B49: 1900-01-06T05:16:48 | C49: 0.06421857233 | D49: 0.005351547694
A50: 1991-02-01 | B50: 1900-01-05T22:33:36 | C50: 0.06123730947 | D50: 0.005103109123
A51: 1991-03-01 | B51: 1900-01-05T21:50:24 | C51: 0.06091841497 | D51: 0.005076534581
A52: 1991-04-01 | B52: 1900-01-05T15:36:00 | C52: 0.05815891417 | D52: 0.004846576181
A53: 1991-05-01 | B53: 1900-01-05T11:02:24 | C53: 0.05614716062 | D53: 0.004678930052
A54: 1991-06-01 | B54: 1900-01-05T13:40:48 | C54: 0.05731136671 | D54: 0.004775947226
A55: 1991-07-01 | B55: 1900-01-05T13:55:12 | C55: 0.05741727087 | D55: 0.004784772572
A56: 1991-08-01 | B56: 1900-01-05T07:55:12 | C56: 0.05477302585 | D56: 0.004564418821
A57: 1991-09-01 | B57: 1900-01-05T05:16:48 | C57: 0.05361176945 | D57: 0.004467647454
A58: 1991-10-01 | B58: 1900-01-04T23:45:36 | C58: 0.05118803677 | D58: 0.004265669731
A59: 1991-11-01 | B59: 1900-01-04T13:26:24 | C59: 0.0466724082 | D59: 0.00388936735
A60: 1991-12-01 | B60: 1900-01-04T01:40:48 | C60: 0.04155142716 | D60: 0.00346261893
A61: 1992-01-01 | B61: 1900-01-03T19:12:00 | C61: 0.03874082832 | D61: 0.00322840236
A62: 1992-02-01 | B62: 1900-01-03T20:09:36 | C62: 0.0391567152 | D62: 0.0032630596
A63: 1992-03-01 | B63: 1900-01-04T00:57:36 | C63: 0.04123874802 | D63: 0.003436562335
A64: 1992-04-01 | B64: 1900-01-03T18:00:00 | C64: 0.03822121282 | D64: 0.003185101068
A65: 1992-05-01 | B65: 1900-01-03T15:07:12 | C65: 0.03697523612 | D65: 0.003081269677
A66: 1992-06-01 | B66: 1900-01-03T15:50:24 | C66: 0.03728658479 | D66: 0.003107215399
A67: 1992-07-01 | B67: 1900-01-03T05:02:24 | C67: 0.03262650283 | D67: 0.002718875236
A68: 1992-08-01 | B68: 1900-01-03T03:07:12 | C68: 0.03180031255 | D68: 0.002650026046
A69: 1992-09-01 | B69: 1900-01-02T21:50:24 | C69: =LN(100/(100-B69)) -> 0.02953180261 | D69: =C69/12 -> 0.002460983551
A70: 1992-10-01 | B70: 1900-01-02T20:38:24 | C70: 0.02901694907 | D70: 0.002418079089
A71: 1992-11-01 | B71: 1900-01-03T03:07:12 | C71: 0.03180031255 | D71: 0.002650026046
A72: 1992-12-01 | B72: 1900-01-03T05:16:48 | C72: 0.03272982462 | D72: 0.002727485385
A73: 1993-01-01 | B73: 1900-01-03 | C73: 0.03045920748 | D73: 0.00253826729
A74: 1993-02-01 | B74: 1900-01-02T22:19:12 | C74: 0.02973781826 | D74: 0.002478151522
A75: 1993-03-01 | B75: 1900-01-02T22:48:00 | C75: 0.02994387637 | D75: 0.002495323031
A76: 1993-04-01 | B76: 1900-01-02T20:52:48 | C76: 0.02911989857 | D76: 0.002426658214
A77: 1993-05-01 | B77: 1900-01-02T23:02:24 | C77: 0.03004692135 | D77: 0.002503910113
A78: 1993-06-01 | B78: 1900-01-03T01:40:48 | C78: 0.03118111748 | D78: 0.002598426457
A79: 1993-07-01 | B79: 1900-01-03T00:57:36 | C79: 0.03087166367 | D79: 0.002572638639
A80: 1993-08-01 | B80: 1900-01-03T00:28:48 | C80: 0.03066541431 | D80: 0.002555451193
A81: 1993-09-01 | B81: 1900-01-02T22:48:00 | C81: 0.02994387637 | D81: 0.002495323031
A82: 1993-10-01 | B82: 1900-01-03T00:28:48 | C82: 0.03066541431 | D82: 0.002555451193
A83: 1993-11-01 | B83: 1900-01-03T02:24:00 | C83: 0.03149066709 | D83: 0.002624222258
A84: 1993-12-01 | B84: 1900-01-03T01:26:24 | C84: 0.03107795557 | D84: 0.002589829631
A85: 1994-01-01 | B85: 1900-01-02T23:31:12 | C85: 0.03025304317 | D85: 0.002521086931
A86: 1994-02-01 | B86: 1900-01-03T06:00:00 | C86: 0.03303985408 | D86: 0.002753321173
A87: 1994-03-01 | B87: 1900-01-03T12:00:00 | C87: 0.03562717764 | D87: 0.00296893147
A88: 1994-04-01 | B88: 1900-01-03T16:19:12 | C88: 0.03749420443 | D88: 0.003124517036
A89: 1994-05-01 | B89: 1900-01-04T03:21:36 | C89: 0.04228139226 | D89: 0.003523449355
A90: 1994-06-01 | B90: 1900-01-04T03:21:36 | C90: 0.04228139226 | D90: 0.003523449355
A91: 1994-07-01 | B91: 1900-01-04T07:55:12 | C91: 0.0442654163 | D91: 0.003688784692
A92: 1994-08-01 | B92: 1900-01-04T11:31:12 | C92: 0.04583453634 | D92: 0.003819544695
A93: 1994-09-01 | B93: 1900-01-04T14:52:48 | C93: 0.04730127312 | D93: 0.00394177276
A94: 1994-10-01 | B94: 1900-01-04T22:48:00 | C94: 0.05076711705 | D94: 0.004230593088
A95: 1994-11-01 | B95: 1900-01-05T06:57:36 | C95: 0.05435059475 | D95: 0.004529216229
A96: 1994-12-01 | B96: 1900-01-05T14:24:00 | C96: 0.05762911284 | D96: 0.00480242607
A97: 1995-01-01 | B97: 1900-01-05T17:02:24 | C97: 0.05879504651 | D97: 0.004899587209
A98: 1995-02-01 | B98: 1900-01-05T18:28:48 | C98: 0.05943158377 | D98: 0.004952631981
A99: 1995-03-01 | B99: 1900-01-05T17:31:12 | C99: 0.05900718058 | D99: 0.004917265048
A100: 1995-04-01 | B100: 1900-01-05T15:36:00 | C100: 0.05815891417 | D100: 0.004846576181
A101: 1995-05-01 | B101: 1900-01-05T16:04:48 | C101: 0.05837091333 | D101: 0.004864242777
A102: 1995-06-01 | B102: 1900-01-05T11:16:48 | C102: 0.05625294155 | D102: 0.004687745129
A103: 1995-07-01 | B103: 1900-01-05T10:04:48 | C103: 0.05572414877 | D103: 0.004643679064
A104: 1995-08-01 | B104: 1900-01-05T09:36:00 | C104: 0.05551270993 | D104: 0.004626059161
A105: 1995-09-01 | B105: 1900-01-05T06:43:12 | C105: 0.05424501485 | D105: 0.004520417904
A106: 1995-10-01 | B106: 1900-01-05T06:43:12 | C106: 0.05424501485 | D106: 0.004520417904
A107: 1995-11-01 | B107: 1900-01-05T08:38:24 | C107: 0.05508996632 | D107: 0.004590830526
A108: 1995-12-01 | B108: 1900-01-05T03:21:36 | C108: 0.05276806554 | D108: 0.004397338795
A109: 1996-01-01 | B109: 1900-01-05 | C109: 0.05129329439 | D109: 0.004274441199
A110: 1996-02-01 | B110: 1900-01-04T19:55:12 | C110: 0.0495054199 | D110: 0.004125451659
A111: 1996-03-01 | B111: 1900-01-04T23:02:24 | C111: 0.05087233037 | D111: 0.004239360864
A112: 1996-04-01 | B112: 1900-01-04T22:48:00 | C112: 0.05076711705 | D112: 0.004230593088
A113: 1996-05-01 | B113: 1900-01-05T00:28:48 | C113: 0.05150384287 | D113: 0.004291986906
A114: 1996-06-01 | B114: 1900-01-05T02:09:36 | C114: 0.05224111185 | D114: 0.004353425987
A115: 1996-07-01 | B115: 1900-01-05T03:36:00 | C115: 0.05287348961 | D115: 0.004406124134
A116: 1996-08-01 | B116: 1900-01-05T01:12:00 | C116: 0.05181974873 | D116: 0.004318312394
A117: 1996-09-01 | B117: 1900-01-05T02:09:36 | C117: 0.05224111185 | D117: 0.004353425987
A118: 1996-10-01 | B118: 1900-01-04T23:45:36 | C118: 0.05118803677 | D118: 0.004265669731
A119: 1996-11-01 | B119: 1900-01-05T00:43:12 | C119: 0.05160913373 | D119: 0.004300761144
A120: 1996-12-01 | B120: 1900-01-04T21:50:24 | C120: 0.05034637444 | D120: 0.004195531203
A121: 1997-01-01 | B121: 1900-01-05T00:43:12 | C121: 0.05160913373 | D121: 0.004300761144
A122: 1997-02-01 | B122: 1900-01-05T00:14:24 | C122: 0.05139856309 | D122: 0.004283213591
A123: 1997-03-01 | B123: 1900-01-05T03:21:36 | C123: 0.05276806554 | D123: 0.004397338795
A124: 1997-04-01 | B124: 1900-01-05T03:50:24 | C124: 0.05297892479 | D124: 0.004414910399
A125: 1997-05-01 | B125: 1900-01-05T01:12:00 | C125: 0.05181974873 | D125: 0.004318312394
A126: 1997-06-01 | B126: 1900-01-04T22:19:12 | C126: 0.05055672362 | D126: 0.004213060301
A127: 1997-07-01 | B127: 1900-01-05T01:12:00 | C127: 0.05181974873 | D127: 0.004318312394
A128: 1997-08-01 | B128: 1900-01-05T03:21:36 | C128: 0.05276806554 | D128: 0.004397338795
A129: 1997-09-01 | B129: 1900-01-04T22:48:00 | C129: 0.05076711705 | D129: 0.004230593088
A130: 1997-10-01 | B130: 1900-01-04T23:16:48 | C130: 0.05097755476 | D130: 0.004248129564
A131: 1997-11-01 | B131: 1900-01-05T03:21:36 | C131: 0.05276806554 | D131: 0.004397338795
A132: 1997-12-01 | B132: 1900-01-05T03:50:24 | C132: 0.05297892479 | D132: 0.004414910399
A133: 1998-01-01 | B133: 1900-01-05T00:57:36 | C133: =LN(100/(100-B133)) -> 0.05171443569 | D133: =C133/12 -> 0.004309536307
A134: 1998-02-01 | B134: 1900-01-05T02:09:36 | C134: 0.05224111185 | D134: 0.004353425987
A135: 1998-03-01 | B135: 1900-01-05T00:43:12 | C135: 0.05160913373 | D135: 0.004300761144
A136: 1998-04-01 | B136: 1900-01-04T22:48:00 | C136: 0.05076711705 | D136: 0.004230593088
A137: 1998-05-01 | B137: 1900-01-05 | C137: 0.05129329439 | D137: 0.004274441199
A138: 1998-06-01 | B138: 1900-01-04T23:31:12 | C138: 0.05108279023 | D138: 0.004256899186
A139: 1998-07-01 | B139: 1900-01-04T23:02:24 | C139: 0.05087233037 | D139: 0.004239360864
A140: 1998-08-01 | B140: 1900-01-04T21:36:00 | C140: 0.05024121644 | D140: 0.004186768036
A141: 1998-09-01 | B141: 1900-01-04T14:38:24 | C141: 0.04719643483 | D141: 0.003933036236
A142: 1998-10-01 | B142: 1900-01-03T23:02:24 | C142: 0.04040541464 | D142: 0.003367117886
A143: 1998-11-01 | B143: 1900-01-04T09:50:24 | C143: 0.04510197391 | D143: 0.003758497826
A144: 1998-12-01 | B144: 1900-01-04T09:21:36 | C144: 0.04489276889 | D144: 0.003741064074
A145: 1999-01-01 | B145: 1900-01-04T08:09:36 | C145: 0.04436994774 | D145: 0.003697495645
A146: 1999-02-01 | B146: 1900-01-04T10:33:36 | C146: 0.04541586353 | D146: 0.003784655294
A147: 1999-03-01 | B147: 1900-01-04T10:33:36 | C147: 0.04541586353 | D147: 0.003784655294
A148: 1999-04-01 | B148: 1900-01-04T06:57:36 | C148: 0.04384739978 | D148: 0.003653949982
A149: 1999-05-01 | B149: 1900-01-04T12:00:00 | C149: 0.0460439385 | D149: 0.003836994875
A150: 1999-06-01 | B150: 1900-01-04T13:40:48 | C150: 0.04677719156 | D150: 0.003898099297
A151: 1999-07-01 | B151: 1900-01-04T13:12:00 | C151: 0.04656763582 | D151: 0.003880636318
A152: 1999-08-01 | B152: 1900-01-04T17:16:48 | C152: 0.04835026094 | D152: 0.004029188412
A153: 1999-09-01 | B153: 1900-01-04T16:19:12 | C153: 0.04793053376 | D153: 0.003994211146
A154: 1999-10-01 | B154: 1900-01-04T20:38:24 | C154: 0.04982069498 | D154: 0.004151724582
A155: 1999-11-01 | B155: 1900-01-05T01:40:48 | C155: 0.05203040809 | D155: 0.004335867341
A156: 1999-12-01 | B156: 1900-01-05T04:48:00 | C156: 0.05340077673 | D156: 0.004450064727
A157: 2000-01-01 | B157: 1900-01-05T07:40:48 | C157: 0.05466740134 | D157: 0.004555616779
A158: 2000-02-01 | B158: 1900-01-05T13:12:00 | C158: 0.05709959204 | D158: 0.004758299337
A159: 2000-03-01 | B159: 1900-01-05T16:33:36 | C159: 0.05858295743 | D159: 0.004881913119
A160: 2000-04-01 | B160: 1900-01-05T15:50:24 | C160: 0.05826490813 | D160: 0.004855409011
A161: 2000-05-01 | B161: 1900-01-05T18:57:36 | C161: 0.05964385293 | D161: 0.004970321077
A162: 2000-06-01 | B162: 1900-01-05T16:33:36 | C162: 0.05858295743 | D162: 0.004881913119
A163: 2000-07-01 | B163: 1900-01-05T23:02:24 | C163: 0.06144996232 | D163: 0.005120830193
A164: 2000-08-01 | B164: 1900-01-06T02:09:36 | C164: 0.06283330917 | D164: 0.005236109098
A165: 2000-09-01 | B165: 1900-01-06 | C165: 0.06187540372 | D165: 0.005156283643
A166: 2000-10-01 | B166: 1900-01-06T02:38:24 | C166: 0.06304630172 | D166: 0.005253858476
A167: 2000-11-01 | B167: 1900-01-06T04:04:48 | C167: 0.06368555169 | D167: 0.005307129307
A168: 2000-12-01 | B168: 1900-01-05T18:28:48 | C168: 0.05943158377 | D168: 0.004952631981
A169: 2001-01-01 | B169: 1900-01-05T03:36:00 | C169: 0.05287348961 | D169: 0.004406124134
A170: 2001-02-01 | B170: 1900-01-04T21:07:12 | C170: 0.05003093361 | D170: 0.004169244467
A171: 2001-03-01 | B171: 1900-01-04T10:04:48 | C171: 0.04520659284 | D171: 0.00376721607
A172: 2001-04-01 | B172: 1900-01-03T20:52:48 | C172: 0.03946874391 | D172: 0.003289061993
A173: 2001-05-01 | B173: 1900-01-03T14:52:48 | C173: 0.03687147478 | D173: 0.003072622898
A174: 2001-06-01 | B174: 1900-01-03T11:45:36 | C174: 0.03552355607 | D174: 0.002960296339
A175: 2001-07-01 | B175: 1900-01-03T12:14:24 | C175: 0.03573080996 | D175: 0.002977567496
A176: 2001-08-01 | B176: 1900-01-03T08:38:24 | C176: 0.0341774518 | D176: 0.002848120983
A177: 2001-09-01 | B177: 1900-01-02T15:21:36 | C177: 0.02675473731 | D177: 0.002229561442
A178: 2001-10-01 | B178: 1900-01-02T03:50:24 | C178: 0.02183669461 | D178: 0.001819724551
A179: 2001-11-01 | B179: 1900-01-01T20:52:48 | C179: 0.01887705577 | D179: 0.001573087981
A180: 2001-12-01 | B180: 1900-01-01T16:33:36 | C180: 0.01704443461 | D180: 0.001420369551
A181: 2002-01-01 | B181: 1900-01-01T15:36:00 | C181: 0.01663764115 | D181: 0.001386470096
A182: 2002-02-01 | B182: 1900-01-01T17:31:12 | C182: 0.01745139361 | D182: 0.001454282801
A183: 2002-03-01 | B183: 1900-01-01T18:57:36 | C183: 0.01806214282 | D183: 0.001505178568
A184: 2002-04-01 | B184: 1900-01-01T17:16:48 | C184: 0.01734963834 | D184: 0.001445803195
A185: 2002-05-01 | B185: 1900-01-01T17:31:12 | C185: 0.01745139361 | D185: 0.001454282801
A186: 2002-06-01 | B186: 1900-01-01T16:48:00 | C186: 0.01714615883 | D186: 0.00142884657
A187: 2002-07-01 | B187: 1900-01-01T16:19:12 | C187: 0.01694272073 | D187: 0.001411893394
A188: 2002-08-01 | B188: 1900-01-01T14:52:48 | C188: 0.01633265462 | D188: 0.001361054552
A189: 2002-09-01 | B189: 1900-01-01T15:07:12 | C189: 0.01643430646 | D189: 0.001369525539
A190: 2002-10-01 | B190: 1900-01-01T13:55:12 | C190: 0.01592615055 | D190: 0.001327179213
A191: 2002-11-01 | B191: 1900-01-01T05:31:12 | C191: 0.01237627107 | D191: 0.001031355922
A192: 2002-12-01 | B192: 1900-01-01T04:33:36 | C192: 0.01197137178 | D192: 0.0009976143151
A193: 2003-01-01 | B193: 1900-01-01T04:04:48 | C193: 0.0117689836 | D193: 0.0009807486333
A194: 2003-02-01 | B194: 1900-01-01T04:04:48 | C194: 0.0117689836 | D194: 0.0009807486333
A195: 2003-03-01 | B195: 1900-01-01T03:07:12 | C195: 0.01136433008 | D195: 0.0009470275066
A196: 2003-04-01 | B196: 1900-01-01T03:07:12 | C196: 0.01136433008 | D196: 0.0009470275066
A197: 2003-05-01 | B197: 1900-01-01T01:40:48 | C197: =LN(100/(100-B197)) -> 0.01075765665 | D197: =C197/12 -> 0.0008964713877
A198: 2003-06-01 | B198: 22:04:48 | C198: 0.009242581367 | D198: 0.0007702151139
A199: 2003-07-01 | B199: 21:36:00 | C199: 0.009040744652 | D199: 0.0007533953877
A200: 2003-08-01 | B200: 22:48:00 | C200: 0.009545412844 | D200: 0.0007954510703
A201: 2003-09-01 | B201: 22:33:36 | C201: 0.009444458828 | D201: 0.0007870382357
... 104 more rows
